Workbook

Sheet EquipConfig
B1: Id | C1: Name | D1: SuiteID | E1: Quality | F1: ProfessionLimit | G1: Position | H1: Star | I1: Property | J1: PropertyMin | K1: PropertyMax | L1: PassiveSkill | M1: Pool | N1: SecondNumMin | O1: SecondNumMax | P1: limit | Q1: Formula | R1: Resource | S1: Bcakground | T1: Range | U1: Describe | V1: Parameter | W1: SkillPoolId | X1: InitialLevel | Y1: IfClear | Z1: IfShow | AA1: Score | AB1: NoUse1 | AC1: NoUse3 | AD1: NoUse4
B2: int | C2: string | D2: int | E2: int | F2: int | G2: int | H2: int | I2: mut,int#int,2 | J2: mut,int#int,1 | K2: mut,int#int,1 | L2: mut,int#int,1 | M2: mut,int#int,1 | N2: int | O2: int | P2: int | Q2: mut,int#int,2 | R2: mut,int#int,2 | S2: string | T2: mut,int#int,1 | U2: string | V2: mut,string#string,2 | W2: mut,int#int,1 | X2: int | Y2: int | Z2: int | AA2: int | AB2: string | AC2: string | AD2: string
B3: 2 | C3: 3 | D3: 2 | E3: 2 | F3: 2 | G3: 2 | H3: 2 | I3: 2 | J3: 2 | K3: 2 | L3: 2 | M3: 2 | N3: 2 | O3: 2 | P3: 2 | Q3: 2 | R3: 2 | S3: 3 | T3: 2 | U3: 3 | V3: 3 | W3: 2 | X3: 2 | Y3: 2 | Z3: 3 | AA3: 2 | AB3: 0 | AC3: 0 | AD3: 0
B4: 道具id | C4: 道具名 | D4: 所属套装id | E4: 装备品质 2绿色 3蓝色 4紫色 5橙色 6红色 7彩色 | F4: 职业限定 0 不限定 1、武卫；2、天罚；3、秘法；4，玄策；5，生花 | G4: 位置 (1武器 2全身铠甲 3头饰 4鞋子 5魂印） | H4: 装备星级 | I4: 属性 属性id#num （属性id找propertyconfig表） | J4: 属性区间min 属性id#num （属性id找propertyconfig表） | K4: 属性区间max 属性id#num | L4: 被动效果id（去PassiveSkillLogicConfig表找） | M4: 附属性库 | N4: 副属性随机最少个数，不重复 | O4: 副属性最多随机个数，不重复 | P4: 是否唯一（是否只能一名武将佩戴） 1是 0否 | Q4: 合成公式 （品质id（Quality）#数量） | R4: 合成消耗 材料id#数量（itemconfig找道具id） | S4: 背景描述 | T4: 适用英雄 英雄id#英雄id 0代表所有英雄均适用 | U4: 适用英雄描述%s代表 | V4: 英雄效果参数#英雄效果参数|英雄效果参数#英雄次效果参数 为0时只显示describe列 | W4: 附带技能库id | X4: 初始自带重置等级 | Y4: 是否可重铸 0不可重铸 1可重铸 | Z4: 是否在图鉴中显示 0不显示 1显示 | AA4: 战力评分 | AB4: 没啥用、 | AC4: 没啥用、 | AD4: 没啥用、
A5: 默认值 | B5: 0 | C5: ="" ->  | D5: 0 | F5: 0 | G5: 0 | H5: 0 | J5: null | K5: null | M5: null | N5: 0 | O5: 0 | X5: 0 | Y5: 0 | AA5: 0 | AB5: ="" ->  | AC5: ="" ->  | AD5: ="" -> 
A6: 正确性校对 | Z6: 0
A7: 校对值
B8: 60001 | C8: 猎户大斧 | E8: 2 | F8: 0 | G8: 1 | H8: 1 | I8: 2#120 | J8: 2#120 | K8: 2#120 | X8: 0 | Y8: 0
B9: 60002 | C9: 兽骨大斧 | E9: 2 | F9: 0 | G9: 1 | H9: 2 | I9: 2#150 | J9: 2#150 | K9: 2#150 | X9: 0 | Y9: 0
B10: 60016 | C10: 戍卫战甲 | E10: 2 | F10: 0 | G10: 2 | H10: 1 | I10: 3#40 | J10: 3#40 | K10: 3#40 | X10: 0 | Y10: 0
B11: 60017 | C11: 硬木战甲 | E11: 2 | F11: 0 | G11: 2 | H11: 2 | I11: 3#50 | J11: 3#50 | K11: 3#50 | X11: 0 | Y11: 0
B12: 60022 | C12: 猎户草帽 | E12: 2 | F12: 0 | G12: 3 | H12: 1 | I12: 4#40 | J12: 4#40 | K12: 4#40 | X12: 0 | Y12: 0
B13: 60023 | C13: 兽皮兜帽 | E13: 2 | F13: 0 | G13: 3 | H13: 2 | I13: 4#50 | J13: 4#50 | K13: 4#50 | X13: 0 | Y13: 0
B14: 60025 | C14: 猎户草鞋 | E14: 2 | F14: 0 | G14: 4 | H14: 1 | I14: 1#800 | J14: 1#800 | K14: 1#800 | X14: 0 | Y14: 0
B15: 60026 | C15: 兽皮皮靴 | E15: 2 | F15: 0 | G15: 4 | H15: 2 | I15: 1#1000 | J15: 1#1000 | K15: 1#1000 | X15: 0 | Y15: 0
B16: 60034 | C16: 乌木大斧 | E16: 3 | F16: 0 | G16: 1 | H16: 3 | I16: 2#180 | J16: 2#180 | K16: 2#180 | X16: 0 | Y16: 0
B17: 60035 | C17: 陨铁大斧 | E17: 3 | F17: 0 | G17: 1 | H17: 4 | I17: 2#270 | J17: 2#270 | K17: 2#270 | X17: 0 | Y17: 0
B18: 60049 | C18: 乌木战甲 | E18: 3 | F18: 0 | G18: 2 | H18: 3 | I18: 3#60 | J18: 3#60 | K18: 3#60 | X18: 0 | Y18: 0
B19: 60050 | C19: 陨铁战甲 | E19: 3 | F19: 0 | G19: 2 | H19: 4 | I19: 3#90 | J19: 3#90 | K19: 3#90 | X19: 0 | Y19: 0
B20: 60055 | C20: 乌木战盔 | E20: 3 | F20: 0 | G20: 3 | H20: 3 | I20: 4#60 | J20: 4#60 | K20: 4#60 | X20: 0 | Y20: 0
B21: 60056 | C21: 陨铁战盔 | E21: 3 | F21: 0 | G21: 3 | H21: 4 | I21: 4#90 | J21: 4#90 | K21: 4#90 | X21: 0 | Y21: 0
B22: 60058 | C22: 乌木战靴 | E22: 3 | F22: 0 | G22: 4 | H22: 3 | I22: 1#1200 | J22: 1#1200 | K22: 1#1200 | X22: 0 | Y22: 0
B23: 60059 | C23: 陨铁战靴 | E23: 3 | F23: 0 | G23: 4 | H23: 4 | I23: 1#1800 | J23: 1#1800 | K23: 1#1800 | X23: 0 | Y23: 0
B24: 60067 | C24: 御风战斧 | E24: 4 | F24: 0 | G24: 1 | H24: 5 | I24: 2#360 | J24: 2#360 | K24: 2#360 | X24: 0 | Y24: 0
B25: 60068 | C25: 困雨战斧 | E25: 4 | F25: 0 | G25: 1 | H25: 6 | I25: 2#450 | J25: 2#450 | K25: 2#450 | X25: 0 | Y25: 0
B26: 60069 | C26: 折雪战斧 | D26: 1 | E26: 4 | F26: 0 | G26: 1 | H26: 7 | I26: 2#630 | J26: 2#630 | K26: 2#630 | M26: 1001 | N26: 1 | O26: 1 | X26: 0 | Y26: 0
B27: 60082 | C27: 屠戮战甲 | E27: 4 | F27: 0 | G27: 2 | H27: 5 | I27: 3#120 | J27: 3#120 | K27: 3#120 | X27: 0 | Y27: 0
B28: 60083 | C28: 明光战甲 | E28: 4 | F28: 0 | G28: 2 | H28: 6 | I28: 3#150 | J28: 3#150 | K28: 3#150 | X28: 0 | Y28: 0
B29: 60084 | C29: 冥魂战甲 | D29: 1 | E29: 4 | F29: 0 | G29: 2 | H29: 7 | I29: 3#210 | J29: 3#210 | K29: 3#210 | M29: 1000 | N29: 1 | O29: 1 | X29: 0 | Y29: 0
B30: 60088 | C30: 神行战盔 | E30: 4 | F30: 0 | G30: 3 | H30: 5 | I30: 4#120 | J30: 4#120 | K30: 4#120 | X30: 0 | Y30: 0
B31: 60089 | C31: 乘风战盔 | E31: 4 | F31: 0 | G31: 3 | H31: 6 | I31: 4#150 | J31: 4#150 | K31: 4#150 | X31: 0 | Y31: 0
B32: 60090 | C32: 破空战盔 | D32: 1 | E32: 4 | F32: 0 | G32: 3 | H32: 7 | I32: 4#210 | J32: 4#210 | K32: 4#210 | M32: 1002 | N32: 1 | O32: 1 | X32: 0 | Y32: 0
B33: 60091 | C33: 神行战靴 | E33: 4 | F33: 0 | G33: 4 | H33: 5 | I33: 1#2400 | J33: 1#2400 | K33: 1#2400 | X33: 0 | Y33: 0
B34: 60092 | C34: 乘风战靴 | E34: 4 | F34: 0 | G34: 4 | H34: 6 | I34: 1#3000 | J34: 1#3000 | K34: 1#3000 | X34: 0 | Y34: 0
B35: 60093 | C35: 破空战靴 | D35: 1 | E35: 4 | F35: 0 | G35: 4 | H35: 7 | I35: 1#4200 | J35: 1#4200 | K35: 1#4200 | M35: 1002 | N35: 1 | O35: 1 | X35: 0 | Y35: 0
B36: 60100 | C36: 断念神斧 | D36: 2 | E36: 5 | F36: 0 | G36: 1 | H36: 8 | I36: 2#840 | J36: 2#840 | K36: 2#840 | M36: 1004 | N36: 1 | O36: 1 | X36: 0 | Y36: 0
B37: 60101 | C37: 斩尘神斧 | D37: 3 | E37: 5 | F37: 0 | G37: 1 | H37: 9 | I37: 2#1140 | J37: 2#1140 | K37: 2#1140 | M37: 1007 | N37: 1 | O37: 1 | X37: 0 | Y37: 0
B38: 60102 | C38: 凝墨神斧 | D38: 4 | E38: 5 | F38: 0 | G38: 1 | H38: 10 | I38: 2#1500 | J38: 2#1500 | K38: 2#1500 | M38: 1010 | N38: 1 | O38: 1 | X38: 0 | Y38: 0
B39: 60103 | C39: 孤星战斧 | D39: 5 | E39: 5 | F39: 0 | G39: 1 | H39: 11 | I39: 2#2040 | J39: 2#2040 | K39: 2#2040 | M39: 1013 | N39: 1 | O39: 1 | X39: 0 | Y39: 0
B40: 60125 | C40: 虬龙仙甲 | D40: 2 | E40: 5 | F40: 0 | G40: 2 | H40: 8 | I40: 3#280 | J40: 3#280 | K40: 3#280 | M40: 1003 | N40: 1 | O40: 1 | X40: 0 | Y40: 0
B41: 60126 | C41: 神凰羽衣 | D41: 3 | E41: 5 | F41: 0 | G41: 2 | H41: 9 | I41: 3#380 | J41: 3#380 | K41: 3#380 | M41: 1006 | N41: 1 | O41: 1 | X41: 0 | Y41: 0
B42: 60127 | C42: 饕餮战衣 | D42: 4 | E42: 5 | F42: 0 | G42: 2 | H42: 10 | I42: 3#500 | J42: 3#500 | K42: 3#500 | M42: 1009 | N42: 1 | O42: 1 | X42: 0 | Y42: 0
B43: 60128 | C43: 孤星战衣 | D43: 5 | E43: 5 | F43: 0 | G43: 2 | H43: 11 | I43: 3#680 | J43: 3#680 | K43: 3#680 | M43: 1012 | N43: 1 | O43: 1 | X43: 0 | Y43: 0
B44: 60135 | C44: 虬龙战盔 | D44: 2 | E44: 5 | F44: 0 | G44: 3 | H44: 8 | I44: 4#280 | J44: 4#280 | K44: 4#280 | M44: 1005 | N44: 1 | O44: 1 | X44: 0 | Y44: 0
B45: 60136 | C45: 神凰战盔 | D45: 3 | E45: 5 | F45: 0 | G45: 3 | H45: 9 | I45: 4#380 | J45: 4#380 | K45: 4#380 | M45: 1008 | N45: 1 | O45: 1 | X45: 0 | Y45: 0
B46: 60137 | C46: 饕餮战盔 | D46: 4 | E46: 5 | F46: 0 | G46: 3 | H46: 10 | I46: 4#500 | J46: 4#500 | K46: 4#500 | M46: 1011 | N46: 1 | O46: 1 | X46: 0 | Y46: 0
B47: 60138 | C47: 孤星战盔 | D47: 5 | E47: 5 | F47: 0 | G47: 3 | H47: 11 | I47: 4#680 | J47: 4#680 | K47: 4#680 | M47: 1014 | N47: 1 | O47: 1 | X47: 0 | Y47: 0
B48: 60140 | C48: 虬龙战靴 | D48: 2 | E48: 5 | F48: 0 | G48: 4 | H48: 8 | I48: 1#5600 | J48: 1#5600 | K48: 1#5600 | M48: 1005 | N48: 1 | O48: 1 | X48: 0 | Y48: 0
B49: 60141 | C49: 神凰战靴 | D49: 3 | E49: 5 | F49: 0 | G49: 4 | H49: 9 | I49: 1#7600 | J49: 1#7600 | K49: 1#7600 | M49: 1008 | N49: 1 | O49: 1 | X49: 0 | Y49: 0
B50: 60142 | C50: 饕餮战靴 | D50: 4 | E50: 5 | F50: 0 | G50: 4 | H50: 10 | I50: 1#10000 | J50: 1#10000 | K50: 1#10000 | M50: 1011 | N50: 1 | O50: 1 | X50: 0 | Y50: 0
B51: 60144 | C51: 孤星战靴 | D51: 5 | E51: 5 | F51: 0 | G51: 4 | H51: 11 | I51: 1#13600 | J51: 1#13600 | K51: 1#13600 | M51: 1014 | N51: 1 | O51: 1 | X51: 0 | Y51: 0
B52: 60155 | C52: 弹指神戟 | D52: 6 | E52: 6 | F52: 0 | G52: 1 | H52: 12 | I52: 2#3180 | J52: 2#3180 | K52: 2#3180 | M52: 1016 | N52: 1 | O52: 1 | X52: 0 | Y52: 0
B53: 60156 | C53: 刹那神戟 | D53: 7 | E53: 6 | F53: 0 | G53: 1 | H53: 13 | I53: 2#4890 | J53: 2#4890 | K53: 2#4890 | M53: 1019 | N53: 1 | O53: 1 | X53: 0 | Y53: 0
B54: 60157 | C54: 一念神戟 | D54: 8 | E54: 6 | F54: 0 | G54: 1 | H54: 14 | I54: 2#7410|55#200 | J54: 2#7410 | K54: 2#7410 | M54: 1022 | N54: 1 | O54: 1 | X54: 0 | Y54: 0
B55: 60158 | C55: 须臾神戟 | D55: 9 | E55: 6 | F55: 0 | G55: 1 | H55: 15 | I55: 2#11070|55#400 | J55: 2#11070 | K55: 2#11070 | M55: 1025 | N55: 1 | O55: 1 | X55: 0 | Y55: 0
B56: 60159 | C56: 劫火神戟 | D56: 10 | E56: 6 | F56: 0 | G56: 1 | H56: 16 | I56: 2#16380|55#800 | J56: 2#16380 | K56: 2#16380 | M56: 1028 | N56: 1 | O56: 1 | X56: 0 | Y56: 0
B57: 60160 | C57: 弹指神刺 | D57: 11 | E57: 6 | F57: 0 | G57: 1 | H57: 17 | I57: 2#24000|55#1600 | J57: 2#24000 | K57: 2#24000 | M57: 1031 | N57: 1 | O57: 1 | X57: 0 | Y57: 0
B58: 60180 | C58: 炎帝战甲 | D58: 6 | E58: 6 | F58: 0 | G58: 2 | H58: 12 | I58: 3#1060 | J58: 3#1060 | K58: 3#1060 | M58: 1015 | N58: 1 | O58: 1 | X58: 0 | Y58: 0
B59: 60181 | C59: 句芒战甲 | D59: 7 | E59: 6 | F59: 0 | G59: 2 | H59: 13 | I59: 3#1630 | J59: 3#1630 | K59: 3#1630 | M59: 1018 | N59: 1 | O59: 1 | X59: 0 | Y59: 0
B60: 60182 | C60: 云龙战甲 | D60: 8 | E60: 6 | F60: 0 | G60: 2 | H60: 14 | I60: 3#2470|60#200 | J60: 3#2470 | K60: 3#2470 | M60: 1021 | N60: 1 | O60: 1 | X60: 0 | Y60: 0
B61: 60183 | C61: 霜狼战甲 | D61: 9 | E61: 6 | F61: 0 | G61: 2 | H61: 15 | I61: 3#3690|60#400 | J61: 3#3690 | K61: 3#3690 | M61: 1024 | N61: 1 | O61: 1 | X61: 0 | Y61: 0
B62: 60184 | C62: 银月战甲 | D62: 10 | E62: 6 | F62: 0 | G62: 2 | H62: 16 | I62: 3#5460|60#800 | J62: 3#5460 | K62: 3#5460 | M62: 1027 | N62: 1 | O62: 1 | X62: 0 | Y62: 0
B63: 60185 | C63: 赤阳战甲 | D63: 11 | E63: 6 | F63: 0 | G63: 2 | H63: 17 | I63: 3#8000|60#1600 | J63: 3#8000 | K63: 3#8000 | N63: 1 | O63: 1 | X63: 0 | Y63: 0
B64: 60190 | C64: 六合战盔 | D64: 6 | E64: 6 | F64: 0 | G64: 3 | H64: 12 | I64: 4#1060 | J64: 4#1060 | K64: 4#1060 | M64: 1017 | N64: 1 | O64: 1 | X64: 0 | Y64: 0
B65: 60191 | C65: 八荒战盔 | D65: 7 | E65: 6 | F65: 0 | G65: 3 | H65: 13 | I65: 4#1630 | J65: 4#1630 | K65: 4#1630 | M65: 1020 | N65: 1 | O65: 1 | X65: 0 | Y65: 0
B66: 60192 | C66: 太初战盔 | D66: 8 | E66: 6 | F66: 0 | G66: 3 | H66: 14 | I66: 4#2470|53#200 | J66: 4#2470 | K66: 4#2470 | M66: 1023 | N66: 1 | O66: 1 | X66: 0 | Y66: 0
B67: 60193 | C67: 鸿蒙战盔 | D67: 9 | E67: 6 | F67: 0 | G67: 3 | H67: 15 | I67: 4#3690|53#400 | J67: 4#3690 | K67: 4#3690 | M67: 1026 | N67: 1 | O67: 1 | X67: 0 | Y67: 0
B68: 60194 | C68: 轩辕战盔 | D68: 10 | E68: 6 | F68: 0 | G68: 3 | H68: 16 | I68: 4#5460|53#800 | J68: 4#5460 | K68: 4#5460 | M68: 1029 | N68: 1 | O68: 1 | X68: 0 | Y68: 0
B69: 60195 | C69: 六合战靴 | D69: 6 | E69: 6 | F69: 0 | G69: 4 | H69: 12 | I69: 1#21200 | J69: 1#21200 | K69: 1#21200 | M69: 1017 | N69: 1 | O69: 1 | X69: 0 | Y69: 0
B70: 60196 | C70: 八荒战靴 | D70: 7 | E70: 6 | F70: 0 | G70: 4 | H70: 13 | I70: 1#32600 | J70: 1#32600 | K70: 1#32600 | M70: 1020 | N70: 1 | O70: 1 | X70: 0 | Y70: 0
B71: 60197 | C71: 太初战靴 | D71: 8 | E71: 6 | F71: 0 | G71: 4 | H71: 14 | I71: 1#49400|54#200 | J71: 1#49400 | K71: 1#49400 | M71: 1023 | N71: 1 | O71: 1 | X71: 0 | Y71: 0
B72: 60198 | C72: 鸿蒙战靴 | D72: 9 | E72: 6 | F72: 0 | G72: 4 | H72: 15 | I72: 1#73800|54#400 | J72: 1#73800 | K72: 1#73800 | M72: 1026 | N72: 1 | O72: 1 | X72: 0 | Y72: 0
B73: 60199 | C73: 轩辕战靴 | D73: 10 | E73: 6 | F73: 0 | G73: 4 | H73: 16 | I73: 1#109200|54#800 | J73: 1#109200 | K73: 1#109200 | M73: 1029 | N73: 1 | O73: 1 | X73: 0 | Y73: 0
B74: 60200 | C74: 昊天战盔 | D74: 11 | E74: 6 | F74: 0 | G74: 3 | H74: 17 | I74: 4#8000|53#1600 | J74: 4#8000 | K74: 4#8000 | N74: 1 | O74: 1 | X74: 0 | Y74: 0
B75: 60201 | C75: 昊天战靴 | D75: 11 | E75: 6 | F75: 0 | G75: 4 | H75: 17 | I75: 1#160000|54#1600 | J75: 1#160000 | K75: 1#160000 | N75: 1 | O75: 1 | X75: 0 | Y75: 0
B76: 5000001 | C76: 嫦娥魂印 | E76: 4 | F76: 0 | G76: 5 | H76: 0 | I76: 56#500 | J76: 56#500 | K76: 56#500 | P76: 0 | R76: 14#20000 | S76: 无敌 | T76: 0 | U76: 适用全部神将 | V76: 0 | AA76: 7200
B77: 5000002 | C77: 申公豹魂印 | E77: 4 | F77: 0 | G77: 5 | H77: 0 | I77: 2#300 | J77: 2#300 | K77: 2#300 | L77: 1000002 | P77: 0 | R77: 14#20000 | S77: 无敌 | T77: 0 | U77: 适用全部神将 | V77: 0 | AA77: 7200
B78: 5000003 | C78: 普贤菩萨魂印 | E78: 4 | F78: 0 | G78: 5 | H78: 0 | I78: 1#2000 | J78: 1#2000 | K78: 1#2000 | L78: 1000003 | P78: 0 | R78: 14#20000 | S78: 无敌 | T78: 0 | U78: 适用全部神将 | V78: 0 | AA78: 7200
B79: 5000004 | C79: 达摩魂印 | E79: 4 | F79: 0 | G79: 5 | H79: 0 | I79: 3#100 | J79: 3#100 | K79: 3#100 | L79: 1000004#1000060#1000062 | P79: 0 | R79: 14#20000 | S79: 无敌 | T79: 0 | U79: 适用全部神将 | V79: 0 | AA79: 7200
B80: 5000005 | C80: 红孩儿魂印 | E80: 4 | F80: 0 | G80: 5 | H80: 0 | I80: 60#800 | J80: 60#800 | K80: 60#800 | P80: 0 | R80: 14#20000 | S80: 无敌 | T80: 0 | U80: 适用全部神将 | V80: 0 | AA80: 7200
B81: 5000006 | C81: 混世魔王魂印 | E81: 4 | F81: 0 | G81: 5 | H81: 0 | I81: 55#800 | J81: 55#800 | K81: 55#800 | P81: 0 | R81: 14#20000 | S81: 无敌 | T81: 0 | U81: 适用全部神将 | V81: 0 | AA81: 7200
B82: 5000007 | C82: 吴刚魂印 | E82: 4 | F82: 0 | G82: 5 | H82: 0 | I82: 51#500 | J82: 51#500 | K82: 51#500 | P82: 0 | R82: 14#20000 | S82: 无敌 | T82: 0 | U82: 适用全部神将 | V82: 0 | AA82: 7200
B83: 5000008 | C83: 金翅大鹏魂印 | E83: 4 | F83: 0 | G83: 5 | H83: 0 | I83: 52#500 | J83: 52#500 | K83: 52#500 | P83: 0 | R83: 14#20000 | S83: 无敌 | T83: 0 | U83: 适用全部神将 | V83: 0 | AA83: 7200
B84: 5000009 | C84: 妲己魂印 | E84: 5 | F84: 0 | G84: 5 | H84: 0 | L84: 1000009 | P84: 0 | R84: 14#20000 | S84: 无敌 | T84: 10005#10027 | U84: 沉默概率增加%s%% | V84: 24|24 | AA84: 24000
B85: 5000010 | C85: 猪八戒魂印 | E85: 5 | F85: 0 | G85: 5 | H85: 0 | L85: 1000010 | P85: 0 | R85: 14#20000 | S85: 无敌 | T85: 10003 | U85: 反伤比例增加%s%% | V85: 30 | AA85: 24000
B86: 5000011 | C86: 伏羲魂印 | E86: 5 | F86: 0 | G86: 5 | H86: 0 | I86: 51#1200 | J86: 51#1200 | K86: 51#1200 | P86: 0 | R86: 14#20000 | S86: 无敌 | T86: 0 | U86: 适用全部神将 | V86: 0 | AA86: 24000
B87: 5000012 | C87: 精卫魂印 | E87: 5 | F87: 0 | G87: 5 | H87: 0 | L87: 1000012 | P87: 0 | R87: 14#20000 | S87: 无敌 | T87: 10011#10008#10002#10006#10003#10005#10020#10044#10031#10028#10045#10085#10023#10022#10010#10089#10033#10015#10012#10034#10039#10029#10030#10086#10001#10014#10016#10009#10021#10017#10087#10046#10032#10035#10036#10040#10088#10026#10019#10042#10043#10013#10041#10025#10037#10027#10038#10090 | U87: 击杀目标回复自身%s点怒气 | V87: 1|1|1|1|1|1|1|1|1|1|1|1|1|1|1|1|1|1|1|1|1|1|1|1|1|1|1|1|1|1|1|1|1|1|1|1|1|1|1|1|1|1|1|1|1|1|1|1 | AA87: 24000
B88: 5000013 | C88: 百花仙子魂印 | E88: 5 | F88: 0 | G88: 5 | H88: 0 | L88: 1000013 | P88: 0 | R88: 14#20000 | S88: 无敌 | T88: 10008#10045#10033#10043 | U88: 技能直接伤害转化为生命治疗当前生命最少的神将的比例提升%s%% | V88: 18|18|18|18 | AA88: 24000
B89: 5000014 | C89: 唐僧魂印 | E89: 5 | F89: 0 | G89: 5 | H89: 0 | L89: 1000014 | P89: 0 | R89: 14#20000 | S89: 无敌 | T89: 10018#10007#10004#10024 | U89: 技能对己方生命最少神将造成治疗效果额外提升治疗神将自身攻击的%s%% | V89: 55|55|55|55 | AA89: 24000
B90: 5000015 | C90: 九天玄女魂印 | E90: 5 | F90: 0 | G90: 5 | H90: 0 | I90: 60#2000 | J90: 60#2000 | K90: 60#2000 | P90: 0 | R90: 14#20000 | S90: 无敌 | T90: 0 | U90: 适用全部神将 | V90: 0 | AA90: 24000
B91: 5000016 | C91: 孙悟空魂印 | E91: 5 | F91: 0 | G91: 5 | H91: 0 | L91: 1000016 | P91: 0 | R91: 14#20000 | S91: 无敌 | T91: 0 | U91: 适用全部神将 | V91: 0 | AA91: 24000
B92: 5000017 | C92: 降龙罗汉魂印 | E92: 5 | F92: 0 | G92: 5 | H92: 0 | I92: 2#900 | J92: 2#900 | K92: 2#900 | L92: 1000017 | P92: 0 | R92: 14#20000 | S92: 无敌 | T92: 0 | U92: 适用全部神将 | V92: 0 | AA92: 24000
B93: 5000018 | C93: 孔雀明王魂印 | E93: 5 | F93: 0 | G93: 5 | H93: 0 | L93: 1000018 | P93: 0 | R93: 14#20000 | S93: 无敌 | T93: 10010#10019 | U93: 减伤盾减伤效果增加%s%% | V93: 12|36 | AA93: 24000
B94: 5000019 | C94: 燃灯魂印 | E94: 5 | F94: 0 | G94: 5 | H94: 0 | I94: 1#6000 | J94: 1#6000 | K94: 1#6000 | L94: 1000019 | P94: 0 | R94: 14#20000 | S94: 无敌 | T94: 0 | U94: 适用全部神将 | V94: 0 | AA94: 24000
B95: 5000020 | C95: 月光菩萨魂印 | E95: 5 | F95: 0 | G95: 5 | H95: 0 | L95: 1000020 | P95: 0 | R95: 14#20000 | S95: 无敌 | T95: 10020#10022#10029#10030#10021#10036#10088#10037 | U95: 眩晕概率增加%s%% | V95: 24|16|24|48|8|24|16|48 | AA95: 24000
B96: 5000021 | C96: 龙吉公主魂印 | E96: 5 | F96: 0 | G96: 5 | H96: 0 | L96: 1000021 | P96: 0 | R96: 14#20000 | S96: 无敌 | T96: 10009#10013 | U96: 麻痹概率增加%s%% | V96: 24|12 | AA96: 24000
B97: 5000022 | C97: 九命猫魂印 | E97: 5 | F97: 0 | G97: 5 | H97: 0 | L97: 1000022 | P97: 0 | R97: 14#20000 | S97: 无敌 | T97: 10018#10007#10004#10024 | U97: 技能的治疗效果提升%s%%，同时为技能目标附加%s个免伤盾。受到直接伤害降低%s%%持续%s回合。 | V97: 25#1#12#1|25#1#12#1|25#1#12#1|25#1#12#1 | AA97: 24000
B98: 5000023 | C98: 蚩尤魂印 | E98: 5 | F98: 0 | G98: 5 | H98: 0 | I98: 3#300 | J98: 3#300 | K98: 3#300 | L98: 1000023#1000061#1000063 | P98: 0 | R98: 14#20000 | S98: 无敌 | T98: 0 | U98: 适用全部神将 | V98: 0 | AA98: 24000
B99: 5000024 | C99: 妈祖魂印 | E99: 5 | F99: 0 | G99: 5 | H99: 0 | I99: 56#1200 | J99: 56#1200 | K99: 56#1200 | P99: 0 | R99: 14#20000 | S99: 无敌 | T99: 0 | U99: 适用全部神将 | V99: 0 | AA99: 24000
B100: 5000025 | C100: 娥皇魂印 | E100: 5 | F100: 0 | G100: 5 | H100: 0 | L100: 1000025 | P100: 0 | R100: 14#20000 | S100: 无敌 | T100: 10014#10087#10046 | U100: 普通攻击附加灼烧的概率增加%s%%，技能附加灼烧的概率增加%s%%。 | V100: 20#10|60#20|60#20 | AA100: 24000
B101: 5000026 | C101: 冥毒邪宴魂印 | E101: 5 | F101: 0 | G101: 5 | H101: 0 | L101: 1000026 | P101: 0 | R101: 14#20000 | S101: 无敌 | T101: 10041#10038 | U101: 造成的中毒伤害的%s%%转化为生命治疗自己 | V101: 10|10 | AA101: 24000
B102: 5000027 | C102: 太阴星君魂印 | E102: 5 | F102: 0 | G102: 5 | H102: 0 | L102: 1000027 | P102: 0 | R102: 14#20000 | S102: 无敌 | T102: 0 | U102: 适用全部神将 | V102: 0 | AA102: 24000
B103: 5000028 | C103: 巨灵神魂印 | E103: 5 | F103: 0 | G103: 5 | H103: 0 | I103: 52#1200 | J103: 52#1200 | K103: 52#1200 | P103: 0 | R103: 14#20000 | S103: 无敌 | T103: 0 | U103: 适用全部神将 | V103: 0 | AA103: 24000
B104: 5000029 | C104: 通天教主魂印 | E104: 5 | F104: 0 | G104: 5 | H104: 0 | L104: 1000029 | P104: 0 | R104: 14#20000 | S104: 无敌 | T104: 10041#10038 | U104: 技能附加中毒的概率增加%s%% | V104: 20|20 | AA104: 24000
B105: 5000030 | C105: 罗刹魂印 | E105: 5 | F105: 0 | G105: 5 | H105: 0 | L105: 1000030 | P105: 0 | R105: 14#20000 | S105: 无敌 | T105: 10030#10036#10043#10027#10042#10037 | U105: %s单体目标时额外降低目标%s点怒气 | V105: 攻击#1|普通攻击#1|普通攻击#1|普通攻击#1|技能攻击#1|技能攻击#1 | AA105: 24000
B106: 5000031 | C106: 夜叉魂印 | E106: 5 | F106: 0 | G106: 5 | H106: 0 | L106: 1000031 | P106: 0 | R106: 14#20000 | S106: 无敌 | T106: 10041#10038 | U106: 中毒伤害增加%s%% | V106: 20|20 | AA106: 24000
B107: 5000032 | C107: 帝释天魂印 | E107: 5 | F107: 0 | G107: 5 | H107: 0 | I107: 55#2000 | J107: 55#2000 | K107: 55#2000 | P107: 0 | R107: 14#20000 | S107: 无敌 | T107: 0 | U107: 适用全部神将 | V107: 0 | AA107: 24000
B108: 5000033 | C108: 瘟癀疫病魂印 | E108: 6 | F108: 0 | G108: 5 | H108: 0 | L108: 1000033 | P108: 0 | R108: 14#20000 | S108: 无敌 | T108: 10041#10038 | U108: 释放技能造成的%s附加封疗效果 | V108: 中毒|中毒 | AA108: 72000
B109: 5000034 | C109: 蚀骨火毒魂印 | E109: 6 | F109: 0 | G109: 5 | H109: 0 | L109: 1000034 | P109: 0 | R109: 14#20000 | S109: 无敌 | T109: 10041#10038 | U109: 中毒状态额外增加%s回合 | V109: 1|1 | AA109: 72000
B110: 5000035 | C110: 神女庇佑魂印 | E110: 6 | F110: 0 | G110: 5 | H110: 0 | L110: 1000035 | P110: 0 | R110: 14#20000 | S110: 无敌 | T110: 10015#10017#10035 | U110: 直接伤害击杀目标后追加%s次技能，对敌方单体造成%s%%物理伤害。（追击技能不消耗怒气，不触发任何特性） | V110: 1#175|1#175|1#175 | AA110: 72000
B111: 5000036 | C111: 姑获鸟魂印 | E111: 6 | F111: 0 | G111: 5 | H111: 0 | L111: 1000036 | P111: 0 | R111: 14#20000 | S111: 无敌 | T111: 10029#10025#10020 | U111: 攻击纵排目标降低其%s点怒气 | V111: 1|1|1 | AA111: 72000
B112: 5000037 | C112: 敖丙魂印 | E112: 6 | F112: 0 | G112: 5 | H112: 0 | L112: 1000037 | P112: 0 | R112: 14#20000 | S112: 无敌 | T112: 0 | U112: 适用全部神将 | V112: 0 | AA112: 72000
B113: 5000038 | C113: 义结金兰魂印 | E113: 6 | F113: 0 | G113: 5 | H113: 0 | L113: 1000038 | P113: 0 | R113: 14#20000 | S113: 无敌 | T113: 0 | U113: 适用全部神将 | V113: 0 | AA113: 72000
B114: 5000039 | C114: 青鸟传信魂印 | E114: 6 | F114: 0 | G114: 5 | H114: 0 | L114: 1000039 | P114: 0 | R114: 14#20000 | S114: 无敌 | T114: 10014#10087#10046 | U114: 普通攻击附加灼烧的概率增加%s%%，技能附加灼烧的概率增加%s%%。 | V114: 32#16|96#32|96#32 | AA114: 72000
B115: 5000040 | C115: 火烧连城魂印 | E115: 6 | F115: 0 | G115: 5 | H115: 0 | L115: 1000040 | P115: 0 | R115: 14#20000 | S115: 无敌 | T115: 10014#10087#10046 | U115: 被灼烧的神将无法获得%s和%s效果 | V115: 无敌#无敌吸血盾|无敌#无敌吸血盾|无敌#无敌吸血盾 | AA115: 72000
B116: 5000041 | C116: 破邪怒斩魂印 | E116: 6 | F116: 0 | G116: 5 | H116: 0 | L116: 1000041 | P116: 0 | R116: 14#20000 | S116: 无敌 | T116: 10015#10017#10035 | U116: 所有攻击优先攻击当前敌方生命最%s的神将 | V116: 低|低|低 | AA116: 72000
B117: 5000042 | C117: 狂噬戮兽魂印 | E117: 6 | F117: 0 | G117: 5 | H117: 0 | L117: 1000042 | P117: 0 | R117: 14#20000 | S117: 无敌 | T117: 10011#10008#10002#10006#10003#10005#10020#10044#10031#10028#10045#10085#10023#10022#10010#10089#10033#10015#10012#10034#10039#10029#10030#10086#10001#10014#10016#10009#10021#10017#10087#10046#10032#10035#10036#10040#10088#10026#10019#10042#10043#10013#10041#10025#10037#10027#10038#10090 | U117: 技能直接伤害的%s%%转化为生命治疗自己 | V117: 18|18|18|18|18|18|18|18|18|18|18|18|18|18|18|18|18|18|18|18|18|18|18|18|18|18|18|18|18|18|18|18|18|18|18|18|18|18|18|18|18|18|18|18|18|18|18|18 | AA117: 72000
B118: 5000043 | C118: 哪吒魂印 | E118: 6 | F118: 0 | G118: 5 | H118: 0 | L118: 1000043 | P118: 0 | R118: 14#20000 | S118: 无敌 | T118: 10014#10087#10046 | U118: 灼烧状态额外增加%s回合 | V118: 1|1|1 | AA118: 72000
B119: 5000044 | C119: 失心暴怒魂印 | E119: 6 | F119: 0 | G119: 5 | H119: 0 | L119: 1000044 | P119: 0 | R119: 14#20000 | S119: 无敌 | T119: 0 | U119: 适用全部神将 | V119: 0 | AA119: 72000
B120: 5000045 | C120: 起死回生魂印 | E120: 6 | F120: 0 | G120: 5 | H120: 0 | L120: 1000045 | P120: 0 | R120: 14#20000 | S120: 无敌 | T120: 10018#10007#10004#10024 | U120: 技能对己方生命最少的%s名神将造成治疗效果额外提升治疗神将自身攻击的%s%% | V120: 3#32|3#32|3#32|3#32 | AA120: 72000
B121: 5000046 | C121: 破军魂印 | E121: 6 | F121: 0 | G121: 5 | H121: 0 | L121: 1000046 | P121: 0 | R121: 14#20000 | S121: 无敌 | T121: 10011#10008#10002#10006#10003#10005#10020#10044#10031#10028#10045#10085#10023#10022#10010#10089#10033#10015#10012#10034#10039#10029#10030#10086#10001#10014#10016#10009#10021#10017#10087#10046#10032#10035#10036#10040#10088#10026#10019#10042#10043#10013#10041#10025#10037#10027#10038#10090 | U121: 普攻有%s%%概率清除目标无敌，技能有%s%%概率清除目标无敌。 | V121: 33#16|33#33|50#33|100#100|100#50|100#33|100#50|100#50|100#33|100#25|100#100|50#50|50#50|33#33|100#33|100#50|100#100|100#100|100#33|100#33|100#50|100#50|100#100|100#50|33#33|33#16|100#100|100#33|100#16|100#100|100#33|100#33|100#33|100#100|100#50|100#50|33#33|33#16|100#100|100#100|100#100|100#16|100#33|100#50|100#100|100#33|100#33|100#33 | AA121: 72000
B122: 5000047 | C122: 辟邪守护魂印 | E122: 6 | F122: 0 | G122: 5 | H122: 0 | L122: 1000047 | P122: 0 | R122: 14#20000 | S122: 无敌 | T122: 0 | U122: 适用全部神将 | V122: 0 | AA122: 72000
B123: 5000048 | C123: 破阵穿心魂印 | E123: 7 | F123: 0 | G123: 5 | H123: 0 | L123: 1000048 | P123: 0 | Q123: 6#3 | R123: 14#10000000 | S123: 无敌 | T123: 10002#10044#10031#10085#10023#10012#10034#10039#10086#10001#10032#10040#10041#10038#10090 | U123: 我方纵排、前排、后排输出神将对敌方造成伤害如被分摊其分摊比降低%s%% | V123: 50|50|50|50|50|50|50|50|50|50|50|50|50|50|50 | AA123: 216000
B124: 5000049 | C124: 饕餮吞鲸魂印 | E124: 7 | F124: 0 | G124: 5 | H124: 0 | L124: 1000049 | P124: 0 | Q124: 6#3 | R124: 14#10000000 | S124: 无敌 | T124: 10011#10002#10044#10031#10028#10085#10023#10015#10012#10034#10039#10086#10001#10017#10032#10035#10040#10026#10041#10038#10025#10090 | U124: 技能直接击杀敌方目标时，获得目标剩余的所有怒气（%s神将佩戴） | V124: 输出|输出|输出|输出|输出|输出|输出|输出|输出|输出|输出|输出|输出|输出|输出|输出|输出|输出|输出|输出|输出|输出|输出|输出| | AA124: 216000
B125: 5000050 | C125: 斩妖净气魂印 | E125: 7 | F125: 0 | G125: 5 | H125: 0 | I125: 51#1800 | J125: 51#1800 | K125: 51#1800 | P125: 0 | Q125: 6#3 | R125: 14#10000000 | S125: 无敌 | T125: 0 | U125: 适用全部神将 | V125: 0 | AA125: 216000
B126: 5000051 | C126: 羲农之佑魂印 | E126: 7 | F126: 0 | G126: 5 | H126: 0 | L126: 1000051 | P126: 0 | Q126: 6#3 | R126: 14#10000000 | S126: 无敌 | T126: 0 | U126: 适用全部神将 | V126: 0 | AA126: 216000
B127: 5000052 | C127: 除妖斩魔魂印 | E127: 7 | F127: 0 | G127: 5 | H127: 0 | L127: 1000052 | P127: 0 | Q127: 6#3 | R127: 14#10000000 | S127: 无敌 | T127: 0 | U127: 适用全部神将 | V127: 0 | AA127: 216000
B128: 5000053 | C128: 历战之躯魂印 | E128: 7 | F128: 0 | G128: 5 | H128: 0 | L128: 1000053 | P128: 1 | Q128: 6#3 | R128: 14#10000000 | S128: 无敌 | T128: 10003#10010#10016#10019 | U128: 每回合最多受到自身生命上限%s%%的伤害 | V128: 50|50|50|50 | AA128: 216000
B129: 5000054 | C129: 舍身济世魂印 | E129: 7 | F129: 0 | G129: 5 | H129: 0 | L129: 1000054 | P129: 1 | Q129: 6#3 | R129: 14#10000000 | S129: 无敌 | T129: 10003#10010#10016#10019 | U129: 同阵营神将受到直接伤害时该伤害%s%%转移给佩戴此魂印的神将转移伤害属于直接伤害 | V129: 40|40|40|40 | AA129: 216000
B130: 5000055 | C130: 灵气护体魂印 | E130: 7 | F130: 0 | G130: 5 | H130: 0 | I130: 52#1800 | J130: 52#1800 | K130: 52#1800 | P130: 0 | Q130: 6#3 | R130: 14#10000000 | S130: 无敌 | T130: 0 | U130: 适用全部神将 | V130: 0 | AA130: 216000
B131: 5000056 | C131: 灭魂一击魂印 | E131: 7 | F131: 0 | G131: 5 | H131: 0 | L131: 1000056 | P131: 0 | Q131: 6#3 | R131: 14#10000000 | S131: 无敌 | T131: 10040 | U131: 初始怒气增加%s点，并且强化暴毙触发的时机，目标血量低于%s%%即有概率触发暴毙 | V131: 1#30 | AA131: 216000
B132: 5000057 | C132: 见血封喉魂印 | E132: 7 | F132: 0 | G132: 5 | H132: 0 | L132: 1000057 | P132: 0 | Q132: 6#3 | R132: 14#10000000 | S132: 无敌 | T132: 10040 | U132: 暴毙概率提升%s%%，杨戬直接伤害击杀的灼烧目标有%s%%概率无法复活，触发暴毙的目标%s%%概率无法复活 | V132: 20#70#100 | AA132: 216000
B133: 5000058 | C133: 阴阳调和魂印 | E133: 7 | F133: 0 | G133: 5 | H133: 0 | L133: 1000058 | P133: 0 | Q133: 6#3 | R133: 14#10000000 | S133: 无敌 | T133: 10090 | U133: 初始怒气增加%s点，敌方处于链接符状态的目标在回合结束时有%s%%概率减少%s点怒气 | V133: 1#70#1 | AA133: 216000
B134: 5000059 | C134: 气运在握魂印 | E134: 7 | F134: 0 | G134: 5 | H134: 0 | L134: 1000059 | P134: 0 | Q134: 6#3 | R134: 14#10000000 | S134: 无敌 | T134: 10090 | U134: 敌方处于链接符状态的目标在获得无敌盾时有%s%%概率获取失败 | V134: 60 | AA134: 216000

Sheet 辅助表
B1: 装备id | C1: 装备名字 | D1: 位置 | E1: 武器名字 | F1: 主属性 | G1: 主属性id | H1: 品质 | I1: 辅助列 | J1: 主属性数值min | K1: 主属性数值max | L1: 输出 | M1: 输出
B2: 3001 | C2: 绿色武卫武器1 | D2: 1 | E2: =LEFT(RIGHT(C2,3),2) -> 武器 | F2: =VLOOKUP(E2,$Y$7:$Z$11,2,0) -> 攻击 | G2: =VLOOKUP(F2,$Y$16:$Z$39,2,0) -> 2 | H2: =LEFT(C2,2) -> 绿色 | I2: =H2&F2 -> 绿色攻击 | J2: =ROUND(VLOOKUP(I2,$AD$21:$AF$40,2,0)*VLOOKUP(E2,$Y$7:$AA$11,3,0),0) -> 42 | K2: =ROUND(VLOOKUP(I2,$AD$21:$AF$40,3,0)*VLOOKUP(E2,$Y$7:$AA$11,3,0),0) -> 70 | L2: =$G2&"#"&J2 -> 2#42 | M2: =$G2&"#"&K2 -> 2#70 | N2: =IF(OR(E2="布甲",E2="板甲"),H2&"铠甲",H2&E2) -> 绿色武器 | O2: =VLOOKUP(N2,[1]Sheet1!A:B,2,0) ->  | AD2: 装备上限 | AE2: 装备下限 | AF2: 速度上限 | AG2: 速度下线 | AH2: 百分比属性 | AI2: 工坊放大两倍
B3: 3002 | C3: 绿色武卫武器2 | D3: 1 | E3: =LEFT(RIGHT(C3,3),2) -> 武器 | F3: =VLOOKUP(E3,$Y$7:$Z$11,2,0) -> 攻击 | G3: =VLOOKUP(F3,$Y$16:$Z$39,2,0) -> 2 | H3: =LEFT(C3,2) -> 绿色 | I3: =H3&F3 -> 绿色攻击 | J3: =ROUND(VLOOKUP(I3,$AD$21:$AF$40,2,0)*VLOOKUP(E3,$Y$7:$AA$11,3,0),0) -> 42 | K3: =ROUND(VLOOKUP(I3,$AD$21:$AF$40,3,0)*VLOOKUP(E3,$Y$7:$AA$11,3,0),0) -> 70 | L3: =$G3&"#"&J3 -> 2#42 | M3: =$G3&"#"&K3 -> 2#70 | N3: =IF(OR(E3="布甲",E3="板甲"),H3&"铠甲",H3&E3) -> 绿色武器 | O3: =VLOOKUP(N3,[1]Sheet1!A:B,2,0) ->  | AC3: 绿 | AD3: 0.5810606061 | AE3: =AD3*0.6 -> 0.3486363636 | AF3: 0.25 | AG3: =AF3*0.85 -> 0.2125
B4: 3003 | C4: 绿色生花武器1 | D4: 1 | E4: 武器 | F4: 攻击 | G4: 2 | H4: 绿色 | I4: 绿色攻击 | J4: 42 | K4: 70 | L4: 2#42 | M4: 2#70 | N4: 绿色武器 | O4: =VLOOKUP(N4,[1]Sheet1!A:B,2,0) ->  | AC4: 蓝 | AD4: 0.778030303 | AE4: =AD4*0.6 -> 0.4668181818 | AF4: 0.5 | AG4: =AF4*0.85 -> 0.425 | AH4: 20
B5: 3004 | C5: 绿色生花武器2 | D5: 1 | E5: 武器 | F5: 攻击 | G5: 2 | H5: 绿色 | I5: 绿色攻击 | J5: 42 | K5: 70 | L5: 2#42 | M5: 2#70 | N5: 绿色武器 | O5: =VLOOKUP(N5,[1]Sheet1!A:B,2,0) ->  | AC5: 紫 | AD5: 1 | AE5: 0.6 | AF5: 0.75 | AG5: 0.6375 | AH5: 40
B6: 3005 | C6: 绿色秘法武器1 | D6: 1 | E6: 武器 | F6: 攻击 | G6: 2 | H6: 绿色 | I6: 绿色攻击 | J6: 42 | K6: 70 | L6: 2#42 | M6: 2#70 | N6: 绿色武器 | O6: =VLOOKUP(N6,[1]Sheet1!A:B,2,0) ->  | AC6: 橙 | AD6: 5.318181818 | AE6: 3.190909091 | AF6: 1 | AG6: 0.85 | AH6: 60
B7: 3006 | C7: 绿色秘法武器2 | D7: 1 | E7: 武器 | F7: 攻击 | G7: 2 | H7: 绿色 | I7: 绿色攻击 | J7: 42 | K7: 70 | L7: 2#42 | M7: 2#70 | N7: 绿色武器 | O7: =VLOOKUP(N7,[1]Sheet1!A:B,2,0) ->  | Y7: 武器 | Z7: 攻击 | AA7: 0.6
B8: 3007 | C8: 绿色天罚武器1 | D8: 1 | E8: 武器 | F8: 攻击 | G8: 2 | H8: 绿色 | I8: 绿色攻击 | J8: 42 | K8: 70 | L8: 2#42 | M8: 2#70 | N8: 绿色武器 | O8: =VLOOKUP(N8,[1]Sheet1!A:B,2,0) ->  | Y8: 布甲 | Z8: 魔抗 | AA8: 0.58
B9: 3008 | C9: 绿色天罚武器2 | D9: 1 | E9: 武器 | F9: 攻击 | G9: 2 | H9: 绿色 | I9: 绿色攻击 | J9: 42 | K9: 70 | L9: 2#42 | M9: 2#70 | N9: 绿色武器 | O9: =VLOOKUP(N9,[1]Sheet1!A:B,2,0) ->  | Y9: 板甲 | Z9: 护甲 | AA9: 0.62
B10: 3009 | C10: 绿色玄策武器1 | D10: 1 | E10: 武器 | F10: 攻击 | G10: 2 | H10: 绿色 | I10: 绿色攻击 | J10: 42 | K10: 70 | L10: 2#42 | M10: 2#70 | N10: 绿色武器 | O10: =VLOOKUP(N10,[1]Sheet1!A:B,2,0) ->  | Y10: 鞋子 | Z10: 速度 | AA10: 0.64 | AC10: 基础属性
B11: 3010 | C11: 绿色玄策武器2 | D11: 1 | E11: 武器 | F11: 攻击 | G11: 2 | H11: 绿色 | I11: 绿色攻击 | J11: 42 | K11: 70 | L11: 2#42 | M11: 2#70 | N11: 绿色武器 | O11: =VLOOKUP(N11,[1]Sheet1!A:B,2,0) ->  | Y11: 头饰 | Z11: 生命 | AA11: 0.55 | AD11: 生命 | AE11: 2400
B12: 3011 | C12: 绿色板甲1 | D12: 2 | E12: 板甲 | F12: 护甲 | G12: 3 | H12: 绿色 | I12: 绿色护甲 | J12: 43 | K12: 72 | L12: 3#43 | M12: 3#72 | N12: 绿色铠甲 | O12: =VLOOKUP(N12,[1]Sheet1!A:B,2,0) ->  | AD12: 攻击 | AE12: 200
B13: 3012 | C13: 绿色板甲2 | D13: 2 | E13: 板甲 | F13: 护甲 | G13: 3 | H13: 绿色 | I13: 绿色护甲 | J13: 43 | K13: 72 | L13: 3#43 | M13: 3#72 | N13: 绿色铠甲 | O13: =VLOOKUP(N13,[1]Sheet1!A:B,2,0) ->  | AD13: 护甲 | AE13: 200
B14: 3013 | C14: 绿色布甲1 | D14: 2 | E14: 布甲 | F14: 魔抗 | G14: 4 | H14: 绿色 | I14: 绿色魔抗 | J14: 40 | K14: 67 | L14: 4#40 | M14: 4#67 | N14: 绿色铠甲 | O14: =VLOOKUP(N14,[1]Sheet1!A:B,2,0) ->  | AD14: 魔抗 | AE14: 200
B15: 3014 | C15: 绿色布甲2 | D15: 2 | E15: 布甲 | F15: 魔抗 | G15: 4 | H15: 绿色 | I15: 绿色魔抗 | J15: 40 | K15: 67 | L15: 4#40 | M15: 4#67 | N15: 绿色铠甲 | O15: =VLOOKUP(N15,[1]Sheet1!A:B,2,0) ->  | AD15: 速度 | AE15: 176
B16: 3015 | C16: 绿色鞋子1 | D16: 4 | E16: 鞋子 | F16: 速度 | G16: 5 | H16: 绿色 | I16: 绿色速度 | J16: 24 | K16: 28 | L16: 5#24 | M16: 5#28 | N16: 绿色鞋子 | O16: =VLOOKUP(N16,[1]Sheet1!A:B,2,0) ->  | Y16: 生命 | Z16: 1
B17: 3016 | C17: 绿色鞋子2 | D17: 4 | E17: 鞋子 | F17: 速度 | G17: 5 | H17: 绿色 | I17: 绿色速度 | J17: 24 | K17: 28 | L17: 5#24 | M17: 5#28 | N17: 绿色鞋子 | O17: =VLOOKUP(N17,[1]Sheet1!A:B,2,0) ->  | Y17: 攻击 | Z17: 2
B18: 3017 | C18: 绿色头饰1 | D18: 3 | E18: 头饰 | F18: 生命 | G18: 1 | H18: 绿色 | I18: 绿色生命 | J18: 460 | K18: 767 | L18: 1#460 | M18: 1#767 | N18: 绿色头饰 | O18: =VLOOKUP(N18,[1]Sheet1!A:B,2,0) ->  | P18: 蓝色装备 | T18: 紫色装备 | Y18: 护甲 | Z18: 3
B19: 3018 | C19: 绿色头饰2 | D19: 3 | E19: 头饰 | F19: 生命 | G19: 1 | H19: 绿色 | I19: 绿色生命 | J19: 460 | K19: 767 | L19: 1#460 | M19: 1#767 | N19: 绿色头饰 | O19: =VLOOKUP(N19,[1]Sheet1!A:B,2,0) ->  | Q19: 速度 | R19: 15 | U19: 速度 | V19: 15 | Y19: 魔抗 | Z19: 4
B20: 3101 | C20: 蓝色武卫武器1 | D20: 1 | E20: 武器 | F20: 攻击 | G20: 2 | H20: 蓝色 | I20: 蓝色攻击 | J20: 56 | K20: 93 | L20: 2#56 | M20: 2#93 | N20: 蓝色武器 | O20: =VLOOKUP(N20,[1]Sheet1!A:B,2,0) -> 1 | Q20: 效果抵抗 | R20: 50 | U20: 效果抵抗 | V20: 50 | Y20: 速度 | Z20: 5 | AE20: min | AF20: max | AG20: 符文加成
B21: 3102 | C21: 蓝色武卫武器2 | D21: 1 | E21: 武器 | F21: 攻击 | G21: 2 | H21: 蓝色 | I21: 蓝色攻击 | J21: 56 | K21: 93 | L21: 2#56 | M21: 2#93 | N21: 蓝色武器 | O21: =VLOOKUP(N21,[1]Sheet1!A:B,2,0) -> 1 | Q21: 效果命中 | R21: 50 | U21: 效果命中 | V21: 50 | Y21: 伤害加成百分比 | Z21: 51 | AD21: 绿色生命 | AE21: =AE11*$AE$3 -> 836.7272727 | AF21: =AE11*$AD$3 -> 1394.545455 | AG21: =INT(AE21/4/8) -> 26 | AH21: =INT(AF21/4/8) -> 43
B22: 3103 | C22: 蓝色生花武器1 | D22: 1 | E22: 武器 | F22: 攻击 | G22: 2 | H22: 蓝色 | I22: 蓝色攻击 | J22: 56 | K22: 93 | L22: 2#56 | M22: 2#93 | N22: 蓝色武器 | O22: =VLOOKUP(N22,[1]Sheet1!A:B,2,0) -> 1 | U22: 暴击伤害 | V22: 57 | Y22: 伤害减免百分比 | Z22: 52 | AD22: 绿色攻击 | AE22: =AE12*$AE$3 -> 69.72727273 | AF22: =AE12*$AD$3 -> 116.2121212 | AG22: =INT(AE22/4/8) -> 2 | AH22: =INT(AF22/4/8) -> 3
B23: 3104 | C23: 蓝色生花武器2 | D23: 1 | E23: 武器 | F23: 攻击 | G23: 2 | H23: 蓝色 | I23: 蓝色攻击 | J23: 56 | K23: 93 | L23: 2#56 | M23: 2#93 | N23: 蓝色武器 | O23: =VLOOKUP(N23,[1]Sheet1!A:B,2,0) -> 1 | P23: 蓝色铠甲 | U23: 暴击率 | V23: 22 | Y23: 效果命中 | Z23: 53 | AD23: 绿色护甲 | AE23: 69.72727273 | AF23: 116.2121212 | AG23: 2 | AH23: 3
B24: 3105 | C24: 蓝色秘法武器1 | D24: 1 | E24: 武器 | F24: 攻击 | G24: 2 | H24: 蓝色 | I24: 蓝色攻击 | J24: 56 | K24: 93 | L24: 2#56 | M24: 2#93 | N24: 蓝色武器 | O24: =VLOOKUP(N24,[1]Sheet1!A:B,2,0) -> 1 | Q24: 生命 | R24: 21 | T24: 紫色铠甲 | Y24: 效果抵抗 | Z24: 54 | AD24: 绿色魔抗 | AE24: 69.72727273 | AF24: 116.2121212 | AG24: 2 | AH24: 3
B25: 3106 | C25: 蓝色秘法武器2 | D25: 1 | E25: 武器 | F25: 攻击 | G25: 2 | H25: 蓝色 | I25: 蓝色攻击 | J25: 56 | K25: 93 | L25: 2#56 | M25: 2#93 | N25: 蓝色武器 | O25: =VLOOKUP(N25,[1]Sheet1!A:B,2,0) -> 1 | Q25: 攻击 | R25: 21 | U25: 生命 | V25: 21 | Y25: 暴击率 | Z25: 55 | AD25: 绿色速度 | AE25: =AE15*AG3 -> 37.4 | AF25: =AE15*AF3 -> 44 | AG25: 1 | AH25: 1
B26: 3107 | C26: 蓝色天罚武器1 | D26: 1 | E26: 武器 | F26: 攻击 | G26: 2 | H26: 蓝色 | I26: 蓝色攻击 | J26: 56 | K26: 93 | L26: 2#56 | M26: 2#93 | N26: 蓝色武器 | O26: =VLOOKUP(N26,[1]Sheet1!A:B,2,0) -> 1 | Q26: 效果命中 | R26: 50 | U26: 攻击 | V26: 21 | Y26: 暴击伤害 | Z26: 56 | AD26: 蓝色生命 | AE26: =AE11*$AE$4 -> 1120.363636 | AF26: =$AD$4*AE11 -> 1867.272727
B27: 3108 | C27: 蓝色天罚武器2 | D27: 1 | E27: 武器 | F27: 攻击 | G27: 2 | H27: 蓝色 | I27: 蓝色攻击 | J27: 56 | K27: 93 | L27: 2#56 | M27: 2#93 | N27: 蓝色武器 | O27: =VLOOKUP(N27,[1]Sheet1!A:B,2,0) -> 1 | Q27: 效果抵抗 | R27: 50 | U27: 效果命中 | V27: 50 | Y27: 回复系数 | Z27: 57 | AD27: 蓝色攻击 | AE27: =AE12*$AE$4 -> 93.36363636 | AF27: =$AD$4*AE12 -> 155.6060606
B28: 3109 | C28: 蓝色玄策武器1 | D28: 1 | E28: 武器 | F28: 攻击 | G28: 2 | H28: 蓝色 | I28: 蓝色攻击 | J28: 56 | K28: 93 | L28: 2#56 | M28: 2#93 | N28: 蓝色武器 | O28: =VLOOKUP(N28,[1]Sheet1!A:B,2,0) -> 1 | U28: 效果抵抗 | V28: 50 | Y28: 火攻（%） | Z28: 101 | AD28: 蓝色护甲 | AE28: 93.36363636 | AF28: 155.6060606
B29: 3110 | C29: 蓝色玄策武器2 | D29: 1 | E29: 武器 | F29: 攻击 | G29: 2 | H29: 蓝色 | I29: 蓝色攻击 | J29: 56 | K29: 93 | L29: 2#56 | M29: 2#93 | N29: 蓝色武器 | O29: =VLOOKUP(N29,[1]Sheet1!A:B,2,0) -> 1 | P29: 蓝色鞋子 | Y29: 风攻（%） | Z29: 102 | AD29: 蓝色魔抗 | AE29: 93.36363636 | AF29: 155.6060606
B30: 3111 | C30: 蓝色板甲1 | D30: 2 | E30: 板甲 | F30: 护甲 | G30: 3 | H30: 蓝色 | I30: 蓝色护甲 | J30: 58 | K30: 96 | L30: 3#58 | M30: 3#96 | N30: 蓝色铠甲 | O30: =VLOOKUP(N30,[1]Sheet1!A:B,2,0) -> 2 | Q30: 生命 | R30: 24 | T30: 紫色鞋子 | Y30: 水攻（%） | Z30: 103 | AD30: 蓝色速度 | AE30: =AE15*AG4 -> 74.8 | AF30: =AE15*AF4 -> 88
B31: 3112 | C31: 蓝色板甲2 | D31: 2 | E31: 板甲 | F31: 护甲 | G31: 3 | H31: 蓝色 | I31: 蓝色护甲 | J31: 58 | K31: 96 | L31: 3#58 | M31: 3#96 | N31: 蓝色铠甲 | O31: =VLOOKUP(N31,[1]Sheet1!A:B,2,0) -> 2 | Q31: 攻击 | R31: 19 | U31: 生命 | V31: 24 | Y31: 地攻（%） | Z31: 104 | AD31: 紫色生命 | AE31: =$AE$5*AE11 -> 1440 | AF31: =AE11*$AD$5 -> 2400
B32: 3113 | C32: 蓝色布甲1 | D32: 2 | E32: 布甲 | F32: 魔抗 | G32: 4 | H32: 蓝色 | I32: 蓝色魔抗 | J32: 54 | K32: 90 | L32: 4#54 | M32: 4#90 | N32: 蓝色铠甲 | O32: =VLOOKUP(N32,[1]Sheet1!A:B,2,0) -> 2 | Q32: 护甲 | R32: 10 | U32: 攻击 | V32: 19 | Y32: 光攻（%） | Z32: 105 | AD32: 紫色攻击 | AE32: =$AE$5*AE12 -> 120 | AF32: =AE12*$AD$5 -> 200
B33: 3114 | C33: 蓝色布甲2 | D33: 2 | E33: 布甲 | F33: 魔抗 | G33: 4 | H33: 蓝色 | I33: 蓝色魔抗 | J33: 54 | K33: 90 | L33: 4#54 | M33: 4#90 | N33: 蓝色铠甲 | O33: =VLOOKUP(N33,[1]Sheet1!A:B,2,0) -> 2 | Q33: 魔抗 | R33: 13 | U33: 护甲 | V33: 10 | Y33: 暗攻（%） | Z33: 106 | AD33: 紫色护甲 | AE33: 120 | AF33: 200
B34: 3115 | C34: 蓝色鞋子1 | D34: 4 | E34: 鞋子 | F34: 速度 | G34: 5 | H34: 蓝色 | I34: 蓝色速度 | J34: 48 | K34: 56 | L34: 5#48 | M34: 5#56 | N34: 蓝色鞋子 | O34: =VLOOKUP(N34,[1]Sheet1!A:B,2,0) -> 3 | U34: 魔抗 | V34: 13 | Y34: 火抗（%） | Z34: 107 | AD34: 紫色魔抗 | AE34: 120 | AF34: 200
B35: 3116 | C35: 蓝色鞋子2 | D35: 4 | E35: 鞋子 | F35: 速度 | G35: 5 | H35: 蓝色 | I35: 蓝色速度 | J35: 48 | K35: 56 | L35: 5#48 | M35: 5#56 | N35: 蓝色鞋子 | O35: =VLOOKUP(N35,[1]Sheet1!A:B,2,0) -> 3 | P35: 蓝色头饰 | U35: 暴击率 | V35: 23 | Y35: 风抗（%） | Z35: 108 | AD35: 紫色速度 | AE35: =AE15*AG5 -> 112.2 | AF35: =AF5*AE15 -> 132
B36: 3117 | C36: 蓝色头饰1 | D36: 3 | E36: 头饰 | F36: 生命 | G36: 1 | H36: 蓝色 | I36: 蓝色生命 | J36: 616 | K36: 1027 | L36: 1#616 | M36: 1#1027 | N36: 蓝色头饰 | O36: =VLOOKUP(N36,[1]Sheet1!A:B,2,0) -> 4 | Q36: 护甲 | R36: 28 | U36: 暴击伤害 | V36: 17 | Y36: 水抗（%） | Z36: 109 | AD36: 橙色生命 | AE36: =$AE$6*AE11 -> 7658.181818 | AF36: =$AD$6*AE11 -> 12763.63636
B37: 3118 | C37: 蓝色头饰2 | D37: 3 | E37: 头饰 | F37: 生命 | G37: 1 | H37: 蓝色 | I37: 蓝色生命 | J37: 616 | K37: 1027 | L37: 1#616 | M37: 1#1027 | N37: 蓝色头饰 | O37: =VLOOKUP(N37,[1]Sheet1!A:B,2,0) -> 4 | Q37: 魔抗 | R37: 29 | Y37: 地抗（%） | Z37: 110 | AD37: 橙色攻击 | AE37: =$AE$6*AE12 -> 638.1818182 | AF37: =$AD$6*AE12 -> 1063.636364
B38: 3201 | C38: 紫色武卫武器1 | D38: 1 | E38: 武器 | F38: 攻击 | G38: 2 | H38: 紫色 | I38: 紫色攻击 | J38: 72 | K38: 120 | L38: 2#72 | M38: 2#120 | N38: 紫色武器 | O38: =VLOOKUP(N38,[1]Sheet1!A:B,2,0) -> 5 | Q38: 速度 | R38: 21 | T38: 紫色头饰 | Y38: 光抗（%） | Z38: 111 | AD38: 橙色护甲 | AE38: 638.1818182 | AF38: 1063.636364
B39: 3202 | C39: 紫色武卫武器2 | D39: 1 | E39: 武器 | F39: 攻击 | G39: 2 | H39: 紫色 | I39: 紫色攻击 | J39: 72 | K39: 120 | L39: 2#72 | M39: 2#120 | N39: 紫色武器 | O39: =VLOOKUP(N39,[1]Sheet1!A:B,2,0) -> 5 | U39: 护甲 | V39: 28 | Y39: 暗抗（%） | Z39: 112 | AD39: 橙色魔抗 | AE39: 638.1818182 | AF39: 1063.636364
B40: 3203 | C40: 紫色生花武器1 | D40: 1 | E40: 武器 | F40: 攻击 | G40: 2 | H40: 紫色 | I40: 紫色攻击 | J40: 72 | K40: 120 | L40: 2#72 | M40: 2#120 | N40: 紫色武器 | O40: =VLOOKUP(N40,[1]Sheet1!A:B,2,0) -> 5 | U40: 魔抗 | V40: 29 | AD40: 橙色速度 | AE40: =AE15*AG6 -> 149.6 | AF40: =AE15 -> 176
B41: 3204 | C41: 紫色生花武器2 | D41: 1 | E41: 武器 | F41: 攻击 | G41: 2 | H41: 紫色 | I41: 紫色攻击 | J41: 72 | K41: 120 | L41: 2#72 | M41: 2#120 | N41: 紫色武器 | O41: =VLOOKUP(N41,[1]Sheet1!A:B,2,0) -> 5 | U41: 速度 | V41: 21
B42: 3205 | C42: 紫色秘法武器1 | D42: 1 | E42: 武器 | F42: 攻击 | G42: 2 | H42: 紫色 | I42: 紫色攻击 | J42: 72 | K42: 120 | L42: 2#72 | M42: 2#120 | N42: 紫色武器 | O42: =VLOOKUP(N42,[1]Sheet1!A:B,2,0) -> 5 | U42: 暴击伤害 | V42: 26
B43: 3206 | C43: 紫色秘法武器2 | D43: 1 | E43: 武器 | F43: 攻击 | G43: 2 | H43: 紫色 | I43: 紫色攻击 | J43: 72 | K43: 120 | L43: 2#72 | M43: 2#120 | N43: 紫色武器 | O43: =VLOOKUP(N43,[1]Sheet1!A:B,2,0) -> 5
B44: 3207 | C44: 紫色天罚武器1 | D44: 1 | E44: 武器 | F44: 攻击 | G44: 2 | H44: 紫色 | I44: 紫色攻击 | J44: 72 | K44: 120 | L44: 2#72 | M44: 2#120 | N44: 紫色武器 | O44: =VLOOKUP(N44,[1]Sheet1!A:B,2,0) -> 5
B45: 3208 | C45: 紫色天罚武器2 | D45: 1 | E45: 武器 | F45: 攻击 | G45: 2 | H45: 紫色 | I45: 紫色攻击 | J45: 72 | K45: 120 | L45: 2#72 | M45: 2#120 | N45: 紫色武器 | O45: =VLOOKUP(N45,[1]Sheet1!A:B,2,0) -> 5 | P45: 橙色装备
B46: 3209 | C46: 紫色玄策武器1 | D46: 1 | E46: 武器 | F46: 攻击 | G46: 2 | H46: 紫色 | I46: 紫色攻击 | J46: 72 | K46: 120 | L46: 2#72 | M46: 2#120 | N46: 紫色武器 | O46: =VLOOKUP(N46,[1]Sheet1!A:B,2,0) -> 5 | Q46: 速度 | R46: 15
B47: 3210 | C47: 紫色玄策武器2 | D47: 1 | E47: 武器 | F47: 攻击 | G47: 2 | H47: 紫色 | I47: 紫色攻击 | J47: 72 | K47: 120 | L47: 2#72 | M47: 2#120 | N47: 紫色武器 | O47: =VLOOKUP(N47,[1]Sheet1!A:B,2,0) -> 5 | Q47: 效果抵抗 | R47: 50
B48: 3211 | C48: 紫色板甲1 | D48: 2 | E48: 板甲 | F48: 护甲 | G48: 3 | H48: 紫色 | I48: 紫色护甲 | J48: 74 | K48: 124 | L48: 3#74 | M48: 3#124 | N48: 紫色铠甲 | O48: =VLOOKUP(N48,[1]Sheet1!A:B,2,0) -> 6 | Q48: 效果命中 | R48: 50
B49: 3212 | C49: 紫色板甲2 | D49: 2 | E49: 板甲 | F49: 护甲 | G49: 3 | H49: 紫色 | I49: 紫色护甲 | J49: 74 | K49: 124 | L49: 3#74 | M49: 3#124 | N49: 紫色铠甲 | O49: =VLOOKUP(N49,[1]Sheet1!A:B,2,0) -> 6 | Q49: 暴击伤害 | R49: 57
B50: 3213 | C50: 紫色布甲1 | D50: 2 | E50: 布甲 | F50: 魔抗 | G50: 4 | H50: 紫色 | I50: 紫色魔抗 | J50: 70 | K50: 116 | L50: 4#70 | M50: 4#116 | N50: 紫色铠甲 | O50: =VLOOKUP(N50,[1]Sheet1!A:B,2,0) -> 6 | Q50: 暴击率 | R50: 22
B51: 3214 | C51: 紫色布甲2 | D51: 2 | E51: 布甲 | F51: 魔抗 | G51: 4 | H51: 紫色 | I51: 紫色魔抗 | J51: 70 | K51: 116 | L51: 4#70 | M51: 4#116 | N51: 紫色铠甲 | O51: =VLOOKUP(N51,[1]Sheet1!A:B,2,0) -> 6 | Q51: 火攻（%） | R51: 15
B52: 3215 | C52: 紫色鞋子1 | D52: 4 | E52: 鞋子 | F52: 速度 | G52: 5 | H52: 紫色 | I52: 紫色速度 | J52: 72 | K52: 84 | L52: 5#72 | M52: 5#84 | N52: 紫色鞋子 | O52: =VLOOKUP(N52,[1]Sheet1!A:B,2,0) -> 7 | Q52: 风攻（%） | R52: 15
B53: 3216 | C53: 紫色鞋子2 | D53: 4 | E53: 鞋子 | F53: 速度 | G53: 5 | H53: 紫色 | I53: 紫色速度 | J53: 72 | K53: 84 | L53: 5#72 | M53: 5#84 | N53: 紫色鞋子 | O53: =VLOOKUP(N53,[1]Sheet1!A:B,2,0) -> 7 | Q53: 水攻（%） | R53: 15
B54: 3217 | C54: 紫色头饰1 | D54: 3 | E54: 头饰 | F54: 生命 | G54: 1 | H54: 紫色 | I54: 紫色生命 | J54: 792 | K54: 1320 | L54: 1#792 | M54: 1#1320 | N54: 紫色头饰 | O54: =VLOOKUP(N54,[1]Sheet1!A:B,2,0) -> 8 | Q54: 地攻（%） | R54: 15
B55: 3218 | C55: 紫色头饰2 | D55: 3 | E55: 头饰 | F55: 生命 | G55: 1 | H55: 紫色 | I55: 紫色生命 | J55: 792 | K55: 1320 | L55: 1#792 | M55: 1#1320 | N55: 紫色头饰 | O55: =VLOOKUP(N55,[1]Sheet1!A:B,2,0) -> 8 | Q55: 光攻（%） | R55: 15
B56: 3301 | C56: 橙色武卫武器1 | D56: 1 | E56: 武器 | F56: 攻击 | G56: 2 | H56: 橙色 | I56: 橙色攻击 | J56: 383 | K56: 638 | L56: 2#383 | M56: 2#638 | N56: 橙色武器 | O56: =VLOOKUP(N56,[1]Sheet1!A:B,2,0) -> 9 | Q56: 暗攻（%） | R56: 15
B57: 3302 | C57: 橙色武卫武器2 | D57: 1 | E57: 武器 | F57: 攻击 | G57: 2 | H57: 橙色 | I57: 橙色攻击 | J57: 383 | K57: 638 | L57: 2#383 | M57: 2#638 | N57: 橙色武器 | O57: =VLOOKUP(N57,[1]Sheet1!A:B,2,0) -> 9
B58: 3303 | C58: 橙色生花武器1 | D58: 1 | E58: 武器 | F58: 攻击 | G58: 2 | H58: 橙色 | I58: 橙色攻击 | J58: 383 | K58: 638 | L58: 2#383 | M58: 2#638 | N58: 橙色武器 | O58: =VLOOKUP(N58,[1]Sheet1!A:B,2,0) -> 9 | P58: 橙色铠甲
B59: 3304 | C59: 橙色生花武器2 | D59: 1 | E59: 武器 | F59: 攻击 | G59: 2 | H59: 橙色 | I59: 橙色攻击 | J59: 383 | K59: 638 | L59: 2#383 | M59: 2#638 | N59: 橙色武器 | O59: =VLOOKUP(N59,[1]Sheet1!A:B,2,0) -> 9 | Q59: 生命 | R59: 21
B60: 3305 | C60: 橙色秘法武器1 | D60: 1 | E60: 武器 | F60: 攻击 | G60: 2 | H60: 橙色 | I60: 橙色攻击 | J60: 383 | K60: 638 | L60: 2#383 | M60: 2#638 | N60: 橙色武器 | O60: =VLOOKUP(N60,[1]Sheet1!A:B,2,0) -> 9 | Q60: 攻击 | R60: 21
B61: 3306 | C61: 橙色秘法武器2 | D61: 1 | E61: 武器 | F61: 攻击 | G61: 2 | H61: 橙色 | I61: 橙色攻击 | J61: 383 | K61: 638 | L61: 2#383 | M61: 2#638 | N61: 橙色武器 | O61: =VLOOKUP(N61,[1]Sheet1!A:B,2,0) -> 9 | Q61: 效果命中 | R61: 50
B62: 3307 | C62: 橙色天罚武器1 | D62: 1 | E62: 武器 | F62: 攻击 | G62: 2 | H62: 橙色 | I62: 橙色攻击 | J62: 383 | K62: 638 | L62: 2#383 | M62: 2#638 | N62: 橙色武器 | O62: =VLOOKUP(N62,[1]Sheet1!A:B,2,0) -> 9 | Q62: 效果抵抗 | R62: 50
B63: 3308 | C63: 橙色天罚武器2 | D63: 1 | E63: 武器 | F63: 攻击 | G63: 2 | H63: 橙色 | I63: 橙色攻击 | J63: 383 | K63: 638 | L63: 2#383 | M63: 2#638 | N63: 橙色武器 | O63: =VLOOKUP(N63,[1]Sheet1!A:B,2,0) -> 9 | Q63: 风抗（%） | R63: 10
B64: 3309 | C64: 橙色玄策武器1 | D64: 1 | E64: 武器 | F64: 攻击 | G64: 2 | H64: 橙色 | I64: 橙色攻击 | J64: 383 | K64: 638 | L64: 2#383 | M64: 2#638 | N64: 橙色武器 | O64: =VLOOKUP(N64,[1]Sheet1!A:B,2,0) -> 9 | Q64: 水抗（%） | R64: 10
B65: 3310 | C65: 橙色玄策武器2 | D65: 1 | E65: 武器 | F65: 攻击 | G65: 2 | H65: 橙色 | I65: 橙色攻击 | J65: 383 | K65: 638 | L65: 2#383 | M65: 2#638 | N65: 橙色武器 | O65: =VLOOKUP(N65,[1]Sheet1!A:B,2,0) -> 9 | Q65: 地抗（%） | R65: 10
B66: 3311 | C66: 橙色板甲1 | D66: 2 | E66: 板甲 | F66: 护甲 | G66: 3 | H66: 橙色 | I66: 橙色护甲 | J66: 396 | K66: 659 | L66: 3#396 | M66: 3#659 | N66: 橙色铠甲 | O66: =VLOOKUP(N66,[1]Sheet1!A:B,2,0) -> 10 | Q66: 光抗（%） | R66: 10
B67: 3312 | C67: 橙色板甲2 | D67: 2 | E67: =LEFT(RIGHT(C67,3),2) -> 板甲 | F67: =VLOOKUP(E67,$Y$7:$Z$11,2,0) -> 护甲 | G67: =VLOOKUP(F67,$Y$16:$Z$39,2,0) -> 3 | H67: =LEFT(C67,2) -> 橙色 | I67: =H67&F67 -> 橙色护甲 | J67: =ROUND(VLOOKUP(I67,$AD$21:$AF$40,2,0)*VLOOKUP(E67,$Y$7:$AA$11,3,0),0) -> 396 | K67: =ROUND(VLOOKUP(I67,$AD$21:$AF$40,3,0)*VLOOKUP(E67,$Y$7:$AA$11,3,0),0) -> 659 | L67: =$G67&"#"&J67 -> 3#396 | M67: =$G67&"#"&K67 -> 3#659 | N67: =IF(OR(E67="布甲",E67="板甲"),H67&"铠甲",H67&E67) -> 橙色铠甲 | O67: =VLOOKUP(N67,[1]Sheet1!A:B,2,0) -> 10 | Q67: 暗抗（%） | R67: 10
B68: 3313 | C68: 橙色布甲1 | D68: 2 | E68: 布甲 | F68: 魔抗 | G68: 4 | H68: 橙色 | I68: 橙色魔抗 | J68: 370 | K68: 617 | L68: 4#370 | M68: 4#617 | N68: 橙色铠甲 | O68: =VLOOKUP(N68,[1]Sheet1!A:B,2,0) -> 10
B69: 3314 | C69: 橙色布甲2 | D69: 2 | E69: 布甲 | F69: 魔抗 | G69: 4 | H69: 橙色 | I69: 橙色魔抗 | J69: 370 | K69: 617 | L69: 4#370 | M69: 4#617 | N69: 橙色铠甲 | O69: =VLOOKUP(N69,[1]Sheet1!A:B,2,0) -> 10
B70: 3315 | C70: 橙色鞋子1 | D70: 4 | E70: 鞋子 | F70: 速度 | G70: 5 | H70: 橙色 | I70: 橙色速度 | J70: 96 | K70: 113 | L70: 5#96 | M70: 5#113 | N70: 橙色鞋子 | O70: =VLOOKUP(N70,[1]Sheet1!A:B,2,0) -> 11 | P70: 橙色鞋子
B71: 3316 | C71: 橙色鞋子2 | D71: 4 | E71: 鞋子 | F71: 速度 | G71: 5 | H71: 橙色 | I71: 橙色速度 | J71: 96 | K71: 113 | L71: 5#96 | M71: 5#113 | N71: 橙色鞋子 | O71: =VLOOKUP(N71,[1]Sheet1!A:B,2,0) -> 11 | Q71: 生命 | R71: 24
B72: 3317 | C72: 橙色头饰1 | D72: 3 | E72: 头饰 | F72: 生命 | G72: 1 | H72: 橙色 | I72: 橙色生命 | J72: 4212 | K72: 7020 | L72: 1#4212 | M72: 1#7020 | N72: 橙色头饰 | O72: =VLOOKUP(N72,[1]Sheet1!A:B,2,0) -> 12 | Q72: 攻击 | R72: 19
B73: 3318 | C73: 橙色头饰2 | D73: 3 | E73: 头饰 | F73: 生命 | G73: 1 | H73: 橙色 | I73: 橙色生命 | J73: 4212 | K73: 7020 | L73: 1#4212 | M73: 1#7020 | N73: 橙色头饰 | O73: =VLOOKUP(N73,[1]Sheet1!A:B,2,0) -> 12 | Q73: 护甲 | R73: 10
B74: 3319 | C74: 橙色武卫武器1_蓝图 | D74: 1 | E74: 武器 | F74: 攻击 | G74: 2 | H74: 橙色 | I74: 橙色攻击 | J74: 383 | K74: 638 | L74: 2#383 | M74: 2#638 | N74: 橙色武器 | O74: =VLOOKUP(N74,[1]Sheet1!A:B,2,0) -> 9 | Q74: 魔抗 | R74: 13
B75: 3320 | C75: 橙色武卫武器2_蓝图 | D75: 1 | E75: 武器 | F75: 攻击 | G75: 2 | H75: 橙色 | I75: 橙色攻击 | J75: 383 | K75: 638 | L75: 2#383 | M75: 2#638 | N75: 橙色武器 | O75: =VLOOKUP(N75,[1]Sheet1!A:B,2,0) -> 9 | Q75: 暴击率 | R75: 23
B76: 3321 | C76: 橙色生花武器1_蓝图 | D76: 1 | E76: 武器 | F76: 攻击 | G76: 2 | H76: 橙色 | I76: 橙色攻击 | J76: 383 | K76: 638 | L76: 2#383 | M76: 2#638 | N76: 橙色武器 | O76: =VLOOKUP(N76,[1]Sheet1!A:B,2,0) -> 9 | Q76: 暴击伤害 | R76: 17
B77: 3322 | C77: 橙色生花武器2_蓝图 | D77: 1 | E77: 武器 | F77: 攻击 | G77: 2 | H77: 橙色 | I77: 橙色攻击 | J77: 383 | K77: 638 | L77: 2#383 | M77: 2#638 | N77: 橙色武器 | O77: =VLOOKUP(N77,[1]Sheet1!A:B,2,0) -> 9 | Q77: 风抗（%） | R77: 15
B78: 3323 | C78: 橙色秘法武器1_蓝图 | D78: 1 | E78: 武器 | F78: 攻击 | G78: 2 | H78: 橙色 | I78: 橙色攻击 | J78: 383 | K78: 638 | L78: 2#383 | M78: 2#638 | N78: 橙色武器 | O78: =VLOOKUP(N78,[1]Sheet1!A:B,2,0) -> 9 | Q78: 水抗（%） | R78: 15
B79: 3324 | C79: 橙色秘法武器2_蓝图 | D79: 1 | E79: 武器 | F79: 攻击 | G79: 2 | H79: 橙色 | I79: 橙色攻击 | J79: 383 | K79: 638 | L79: 2#383 | M79: 2#638 | N79: 橙色武器 | O79: =VLOOKUP(N79,[1]Sheet1!A:B,2,0) -> 9 | Q79: 地抗（%） | R79: 15
B80: 3325 | C80: 橙色天罚武器1_蓝图 | D80: 1 | E80: 武器 | F80: 攻击 | G80: 2 | H80: 橙色 | I80: 橙色攻击 | J80: 383 | K80: 638 | L80: 2#383 | M80: 2#638 | N80: 橙色武器 | O80: =VLOOKUP(N80,[1]Sheet1!A:B,2,0) -> 9 | Q80: 光抗（%） | R80: 15
B81: 3326 | C81: 橙色天罚武器2_蓝图 | D81: 1 | E81: 武器 | F81: 攻击 | G81: 2 | H81: 橙色 | I81: 橙色攻击 | J81: 383 | K81: 638 | L81: 2#383 | M81: 2#638 | N81: 橙色武器 | O81: =VLOOKUP(N81,[1]Sheet1!A:B,2,0) -> 9 | Q81: 暗抗（%） | R81: 15
B82: 3327 | C82: 橙色玄策武器1_蓝图 | D82: 1 | E82: 武器 | F82: 攻击 | G82: 2 | H82: 橙色 | I82: 橙色攻击 | J82: 383 | K82: 638 | L82: 2#383 | M82: 2#638 | N82: 橙色武器 | O82: =VLOOKUP(N82,[1]Sheet1!A:B,2,0) -> 9
B83: 3328 | C83: 橙色玄策武器2_蓝图 | D83: 1 | E83: 武器 | F83: 攻击 | G83: 2 | H83: 橙色 | I83: 橙色攻击 | J83: 383 | K83: 638 | L83: 2#383 | M83: 2#638 | N83: 橙色武器 | O83: =VLOOKUP(N83,[1]Sheet1!A:B,2,0) -> 9 | P83: 橙色头饰
B84: 3329 | C84: 橙色板甲1_蓝图 | D84: 2 | E84: 板甲 | F84: 护甲 | G84: 3 | H84: 橙色 | I84: 橙色护甲 | J84: 396 | K84: 659 | L84: 3#396 | M84: 3#659 | N84: 橙色铠甲 | O84: =VLOOKUP(N84,[1]Sheet1!A:B,2,0) -> 10 | Q84: 护甲 | R84: 28
B85: 3330 | C85: 橙色板甲2_蓝图 | D85: 2 | E85: 板甲 | F85: 护甲 | G85: 3 | H85: 橙色 | I85: 橙色护甲 | J85: 396 | K85: 659 | L85: 3#396 | M85: 3#659 | N85: 橙色铠甲 | O85: =VLOOKUP(N85,[1]Sheet1!A:B,2,0) -> 10 | Q85: 魔抗 | R85: 29
B86: 3331 | C86: 橙色布甲1_蓝图 | D86: 2 | E86: 布甲 | F86: 魔抗 | G86: 4 | H86: 橙色 | I86: 橙色魔抗 | J86: 370 | K86: 617 | L86: 4#370 | M86: 4#617 | N86: 橙色铠甲 | O86: =VLOOKUP(N86,[1]Sheet1!A:B,2,0) -> 10 | Q86: 速度 | R86: 21
B87: 3332 | C87: 橙色布甲2_蓝图 | D87: 2 | E87: 布甲 | F87: 魔抗 | G87: 4 | H87: 橙色 | I87: 橙色魔抗 | J87: 370 | K87: 617 | L87: 4#370 | M87: 4#617 | N87: 橙色铠甲 | O87: =VLOOKUP(N87,[1]Sheet1!A:B,2,0) -> 10 | Q87: 暴击伤害 | R87: 26
B88: 3333 | C88: 橙色鞋子1_蓝图 | D88: 4 | E88: 鞋子 | F88: 速度 | G88: 5 | H88: 橙色 | I88: 橙色速度 | J88: 96 | K88: 113 | L88: 5#96 | M88: 5#113 | N88: 橙色鞋子 | O88: =VLOOKUP(N88,[1]Sheet1!A:B,2,0) -> 11 | Q88: 火攻（%） | R88: 10
B89: 3334 | C89: 橙色鞋子2_蓝图 | D89: 4 | E89: 鞋子 | F89: 速度 | G89: 5 | H89: 橙色 | I89: 橙色速度 | J89: 96 | K89: 113 | L89: 5#96 | M89: 5#113 | N89: 橙色鞋子 | O89: =VLOOKUP(N89,[1]Sheet1!A:B,2,0) -> 11 | Q89: 风攻（%） | R89: 10
B90: 3335 | C90: 橙色头饰1_蓝图 | D90: 3 | E90: 头饰 | F90: 生命 | G90: 1 | H90: 橙色 | I90: 橙色生命 | J90: 4212 | K90: 7020 | L90: 1#4212 | M90: 1#7020 | N90: 橙色头饰 | O90: =VLOOKUP(N90,[1]Sheet1!A:B,2,0) -> 12 | Q90: 水攻（%） | R90: 10
B91: 3336 | C91: 橙色头饰2_蓝图 | D91: 3 | E91: 头饰 | F91: 生命 | G91: 1 | H91: 橙色 | I91: 橙色生命 | J91: 4212 | K91: 7020 | L91: 1#4212 | M91: 1#7020 | N91: 橙色头饰 | O91: =VLOOKUP(N91,[1]Sheet1!A:B,2,0) -> 12 | Q91: 地攻（%） | R91: 10
B92: 4001 | C92: 紫色武卫武器1_蓝图 | D92: 1 | E92: 武器 | F92: 攻击 | G92: 2 | H92: 紫色 | I92: 紫色攻击 | J92: 72 | K92: 120 | L92: 2#72 | M92: 2#120 | N92: 紫色武器 | O92: =VLOOKUP(N92,[1]Sheet1!A:B,2,0) -> 5 | Q92: 光攻（%） | R92: 10
B93: 4002 | C93: 紫色生花武器1_蓝图 | D93: 1 | E93: 武器 | F93: 攻击 | G93: 2 | H93: 紫色 | I93: 紫色攻击 | J93: 72 | K93: 120 | L93: 2#72 | M93: 2#120 | N93: 紫色武器 | O93: =VLOOKUP(N93,[1]Sheet1!A:B,2,0) -> 5 | Q93: 暗攻（%） | R93: 10
B94: 4003 | C94: 紫色秘法武器1_蓝图 | D94: 1 | E94: 武器 | F94: 攻击 | G94: 2 | H94: 紫色 | I94: 紫色攻击 | J94: 72 | K94: 120 | L94: 2#72 | M94: 2#120 | N94: 紫色武器 | O94: =VLOOKUP(N94,[1]Sheet1!A:B,2,0) -> 5
B95: 4004 | C95: 紫色天罚武器1_蓝图 | D95: 1 | E95: 武器 | F95: 攻击 | G95: 2 | H95: 紫色 | I95: 紫色攻击 | J95: 72 | K95: 120 | L95: 2#72 | M95: 2#120 | N95: 紫色武器 | O95: =VLOOKUP(N95,[1]Sheet1!A:B,2,0) -> 5
B96: 4005 | C96: 紫色玄策武器1_蓝图 | D96: 1 | E96: 武器 | F96: 攻击 | G96: 2 | H96: 紫色 | I96: 紫色攻击 | J96: 72 | K96: 120 | L96: 2#72 | M96: 2#120 | N96: 紫色武器 | O96: =VLOOKUP(N96,[1]Sheet1!A:B,2,0) -> 5
B97: 4006 | C97: 紫色板甲1_蓝图 | D97: 2 | E97: 板甲 | F97: 护甲 | G97: 3 | H97: 紫色 | I97: 紫色护甲 | J97: 74 | K97: 124 | L97: 3#74 | M97: 3#124 | N97: 紫色铠甲 | O97: =VLOOKUP(N97,[1]Sheet1!A:B,2,0) -> 6
B98: 4007 | C98: 紫色布甲1_蓝图 | D98: 2 | E98: 布甲 | F98: 魔抗 | G98: 4 | H98: 紫色 | I98: 紫色魔抗 | J98: 70 | K98: 116 | L98: 4#70 | M98: 4#116 | N98: 紫色铠甲 | O98: =VLOOKUP(N98,[1]Sheet1!A:B,2,0) -> 6
B99: 4008 | C99: 紫色鞋子1_蓝图 | D99: 4 | E99: 鞋子 | F99: 速度 | G99: 5 | H99: 紫色 | I99: 紫色速度 | J99: 72 | K99: 84 | L99: 5#72 | M99: 5#84 | N99: 紫色鞋子 | O99: =VLOOKUP(N99,[1]Sheet1!A:B,2,0) -> 7
B100: 4009 | C100: 紫色头饰1 | D100: 3 | E100: 头饰 | F100: 生命 | G100: 1 | H100: 紫色 | I100: 紫色生命 | J100: 792 | K100: 1320 | L100: 1#792 | M100: 1#1320 | N100: 紫色头饰 | O100: =VLOOKUP(N100,[1]Sheet1!A:B,2,0) -> 8
B101: 4101 | C101: 橙色武卫武器1_蓝图 | D101: 1 | E101: 武器 | F101: 攻击 | G101: 2 | H101: 橙色 | I101: 橙色攻击 | J101: 383 | K101: 638 | L101: 2#383 | M101: 2#638 | N101: 橙色武器 | O101: =VLOOKUP(N101,[1]Sheet1!A:B,2,0) -> 9
B102: 4102 | C102: 橙色武卫武器2_蓝图 | D102: 1 | E102: 武器 | F102: 攻击 | G102: 2 | H102: 橙色 | I102: 橙色攻击 | J102: 383 | K102: 638 | L102: 2#383 | M102: 2#638 | N102: 橙色武器 | O102: =VLOOKUP(N102,[1]Sheet1!A:B,2,0) -> 9
B103: 4103 | C103: 橙色生花武器1_蓝图 | D103: 1 | E103: 武器 | F103: 攻击 | G103: 2 | H103: 橙色 | I103: 橙色攻击 | J103: 383 | K103: 638 | L103: 2#383 | M103: 2#638 | N103: 橙色武器 | O103: =VLOOKUP(N103,[1]Sheet1!A:B,2,0) -> 9
B104: 4104 | C104: 橙色生花武器2_蓝图 | D104: 1 | E104: 武器 | F104: 攻击 | G104: 2 | H104: 橙色 | I104: 橙色攻击 | J104: 383 | K104: 638 | L104: 2#383 | M104: 2#638 | N104: 橙色武器 | O104: =VLOOKUP(N104,[1]Sheet1!A:B,2,0) -> 9
B105: 4105 | C105: 橙色秘法武器1_蓝图 | D105: 1 | E105: 武器 | F105: 攻击 | G105: 2 | H105: 橙色 | I105: 橙色攻击 | J105: 383 | K105: 638 | L105: 2#383 | M105: 2#638 | N105: 橙色武器 | O105: =VLOOKUP(N105,[1]Sheet1!A:B,2,0) -> 9
B106: 4106 | C106: 橙色秘法武器2_蓝图 | D106: 1 | E106: 武器 | F106: 攻击 | G106: 2 | H106: 橙色 | I106: 橙色攻击 | J106: 383 | K106: 638 | L106: 2#383 | M106: 2#638 | N106: 橙色武器 | O106: =VLOOKUP(N106,[1]Sheet1!A:B,2,0) -> 9
B107: 4107 | C107: 橙色天罚武器1_蓝图 | D107: 1 | E107: 武器 | F107: 攻击 | G107: 2 | H107: 橙色 | I107: 橙色攻击 | J107: 383 | K107: 638 | L107: 2#383 | M107: 2#638 | N107: 橙色武器 | O107: =VLOOKUP(N107,[1]Sheet1!A:B,2,0) -> 9
B108: 4108 | C108: 橙色天罚武器2_蓝图 | D108: 1 | E108: 武器 | F108: 攻击 | G108: 2 | H108: 橙色 | I108: 橙色攻击 | J108: 383 | K108: 638 | L108: 2#383 | M108: 2#638 | N108: 橙色武器 | O108: =VLOOKUP(N108,[1]Sheet1!A:B,2,0) -> 9
B109: 4109 | C109: 橙色玄策武器1_蓝图 | D109: 1 | E109: 武器 | F109: 攻击 | G109: 2 | H109: 橙色 | I109: 橙色攻击 | J109: 383 | K109: 638 | L109: 2#383 | M109: 2#638 | N109: 橙色武器 | O109: =VLOOKUP(N109,[1]Sheet1!A:B,2,0) -> 9
B110: 4110 | C110: 橙色玄策武器2_蓝图 | D110: 1 | E110: 武器 | F110: 攻击 | G110: 2 | H110: 橙色 | I110: 橙色攻击 | J110: 383 | K110: 638 | L110: 2#383 | M110: 2#638 | N110: 橙色武器 | O110: =VLOOKUP(N110,[1]Sheet1!A:B,2,0) -> 9
B111: 4111 | C111: 橙色板甲1_蓝图 | D111: 2 | E111: 板甲 | F111: 护甲 | G111: 3 | H111: 橙色 | I111: 橙色护甲 | J111: 396 | K111: 659 | L111: 3#396 | M111: 3#659 | N111: 橙色铠甲 | O111: =VLOOKUP(N111,[1]Sheet1!A:B,2,0) -> 10
B112: 4112 | C112: 橙色板甲2_蓝图 | D112: 2 | E112: 板甲 | F112: 护甲 | G112: 3 | H112: 橙色 | I112: 橙色护甲 | J112: 396 | K112: 659 | L112: 3#396 | M112: 3#659 | N112: 橙色铠甲 | O112: =VLOOKUP(N112,[1]Sheet1!A:B,2,0) -> 10
B113: 4113 | C113: 橙色布甲1_蓝图 | D113: 2 | E113: 布甲 | F113: 魔抗 | G113: 4 | H113: 橙色 | I113: 橙色魔抗 | J113: 370 | K113: 617 | L113: 4#370 | M113: 4#617 | N113: 橙色铠甲 | O113: =VLOOKUP(N113,[1]Sheet1!A:B,2,0) -> 10
B114: 4114 | C114: 橙色布甲2_蓝图 | D114: 2 | E114: 布甲 | F114: 魔抗 | G114: 4 | H114: 橙色 | I114: 橙色魔抗 | J114: 370 | K114: 617 | L114: 4#370 | M114: 4#617 | N114: 橙色铠甲 | O114: =VLOOKUP(N114,[1]Sheet1!A:B,2,0) -> 10
B115: 4115 | C115: 橙色鞋子1_蓝图 | D115: 4 | E115: 鞋子 | F115: 速度 | G115: 5 | H115: 橙色 | I115: 橙色速度 | J115: 96 | K115: 113 | L115: 5#96 | M115: 5#113 | N115: 橙色鞋子 | O115: =VLOOKUP(N115,[1]Sheet1!A:B,2,0) -> 11
B116: 4116 | C116: 橙色鞋子2_蓝图 | D116: 4 | E116: 鞋子 | F116: 速度 | G116: 5 | H116: 橙色 | I116: 橙色速度 | J116: 96 | K116: 113 | L116: 5#96 | M116: 5#113 | N116: 橙色鞋子 | O116: =VLOOKUP(N116,[1]Sheet1!A:B,2,0) -> 11
B117: 4117 | C117: 橙色头饰1_蓝图 | D117: 3 | E117: 头饰 | F117: 生命 | G117: 1 | H117: 橙色 | I117: 橙色生命 | J117: 4212 | K117: 7020 | L117: 1#4212 | M117: 1#7020 | N117: 橙色头饰 | O117: =VLOOKUP(N117,[1]Sheet1!A:B,2,0) -> 12
B118: 4118 | C118: 橙色头饰2_蓝图 | D118: 3 | E118: 头饰 | F118: 生命 | G118: 1 | H118: 橙色 | I118: 橙色生命 | J118: 4212 | K118: 7020 | L118: 1#4212 | M118: 1#7020 | N118: 橙色头饰 | O118: =VLOOKUP(N118,[1]Sheet1!A:B,2,0) -> 12

Sheet 装备等级分类
B2: 部位 | E2: 紫色 | F2: 橙色 | I2: 副属性 | J2: 特性 | L2: 装备阶梯 | M2: 副属性数量 | N2: 副属性库 | O2: 特性 | P2: 重铸等级
A3: 1 | B3: 武器 | D3: 1 | E3: 2-2 | F3: 3-3 | H3: 1 | I3: 生命、攻击、护甲、魔抗 | J3: 固定伤害类/固定回复类 | L3: 紫色 | M3: 2-2 | N3: 1 | O3: 0 | P3: 0 | Q3: 1
A4: 2 | B4: 鞋 | D4: 2 | E4: 2-2re | F4: 3-3re | H4: 2 | I4: 速度、抗暴、效果命中、效果抵抗 | J4: 视作属性类 | O4: 1 | P4: 0 | Q4: 2
A5: 3 | B5: 甲、头、腰 | D5: 3 | E5: 2-2t | F5: 3-3t | H5: 3 | I5: 暴击、暴伤、治疗、受治疗 | J5: buff类/debuff类 | N5: 1、2 | O5: 0 | P5: 30 | Q5: 3
A6: 4 | B6: 戒 | D6: 4 | E6: 2-3 | F6: 3-4 | H6: 4 | I6: 属性伤害、属性抵抗、伤害加成、伤害减免 | J6: 属性伤害类/属性回复类 | P6: 40
A7: 5 | D7: 5 | E7: 3-3re | F7: 3-4re | H7: 5 | J7: 控制类/增加属性类 | P7: 50
A8: 6 | D8: 6 | E8: 3-3t | F8: 3-4t | H8: 6 | J8: 吸血/免疫 | O8: 1、2 | P8: 0 | Q8: 4
A9: 7 | H9: 7 | J9: 伤害加成/减伤类 | M9: 2-3 | N9: 1、2 | O9: 0 | P9: 0 | Q9: 5
O10: 1、2 | P10: 0 | Q10: 6
O11: 0 | P11: 30 | Q11: 7
P12: 40
I13: 副属性中不会出现主属性 | J13: 回复类只出现在生花、玄策武器中 | P13: 50
I14: 防御类只在2、3部位中出现 | J14: 控制类只出现在玄策、武卫武器中 | O14: 1、2、3 | P14: 0 | Q14: 8
I15: 攻击类只在1、4部位中出现 | J15: 使用特性47时，遵循副属性的梯度规则 | M15: 3-3 | N15: 1、2、3 | O15: 0 | P15: 30 | Q15: 9
I16: 属性伤害、属性抵抗不遵守上述规则 | J16: 注意特性与职业契合度 | P16: 40
I17: 治疗属性只在生花、玄策武器中 | J17: 1类特性注意数值梯度与属性契合度 | P17: 50
J18: 伤害/回复/吸血只出现在戒指和武器中 | O18: 2、3、4 | P18: 0 | Q18: 10
J19: 所有增加速度特性只出现在鞋子/戒指/玄策武器中 | P19: 30 | Q19: 11
P20: 40
P21: 50
L22: 橙色 | M22: 3-3 | N22: 1、2 | O22: 0 | P22: 0 | Q22: 1
O23: 1 | P23: 0 | Q23: 2
O24: 0 | P24: 30 | Q24: 3
P25: 40
O26: 1、2 | P26: 0 | Q26: 4
P27: 30 | Q27: 5
P28: 40
O29: 1、2、3 | P29: 0 | Q29: 6
P30: 30 | Q30: 7
P31: 40
P32: 50
M33: 3-4 | N33: 1、2、3 | O33: 0 | P33: 0 | Q33: 8
O34: 1、2、3 | P34: 0 | Q34: 9
P35: 30 | Q35: 10
P36: 40
O37: 2、3、4 | P37: 0 | Q37: 11
P38: 30 | Q38: 12
P39: 40
P40: 50
M41: 4-4 | N41: 1、2、3、4 | O41: 1、2、3 | P41: 0 | Q41: 13
P42: 30 | Q42: 14
P43: 40
O44: 2、3、4 | P44: 0 | Q44: 15
P45: 30 | Q45: 16
P46: 40
O47: 3、4、5 | P47: 0 | Q47: 17
P48: 30 | Q48: 18
P49: 40
O50: 3、4、5、6、7 | P50: 0 | Q50: 19
P51: 30 | Q51: 20
P52: 40
P53: 50
O54: 1-7 | P54: 0 | Q54: 21

Sheet 装备等级分类辅助
B1: 最终表 | C1: 最终表 | E1: 最终表 | F1: 最终表 | L1: 属性分配 | M1: 属性分配 | V1: 属性分配 | W1: 属性分配
B2: =VLOOKUP($I$4,$H$7:$I$11,2,FALSE)&"#"&INT(L2) -> 5#293 | C2: =VLOOKUP($I$4,$H$7:$I$11,2,FALSE)&"#"&INT(M2) -> 5#325 | E2: =VLOOKUP($S$4,$H$7:$I$11,2,FALSE)&"#"&INT(V2) -> 5#560 | F2: =VLOOKUP($S$4,$H$7:$I$11,2,FALSE)&"#"&INT(W2) -> 5#622 | H2: 属性下限 | I2: 293 | K2: 0.9 | L2: =$I$2 -> 293 | M2: =$L$2/K2 -> 325.5555556 | N2: 1 | P2: 1 | R2: 属性下限 | S2: 560 | U2: 0.9 | V2: =$S$2 -> 560 | W2: =V2/U2 -> 622.2222222 | X2: 1、2 | Z2: 5
B3: =VLOOKUP($I$4,$H$7:$I$11,2,FALSE)&"#"&INT(L3) -> 5#294 | C3: =VLOOKUP($I$4,$H$7:$I$11,2,FALSE)&"#"&INT(M3) -> 5#333 | E3: =VLOOKUP($S$4,$H$7:$I$11,2,FALSE)&"#"&INT(V3) -> 5#558 | F3: =VLOOKUP($S$4,$H$7:$I$11,2,FALSE)&"#"&INT(W3) -> 5#627 | H3: 属性上限 | I3: 480 | K3: 0.885 | L3: =M3*K3 -> 294.9508333 | M3: =M2+(M23-M2)/20 -> 333.2777778 | R3: 属性上限 | S3: 840 | U3: 0.89 | V3: =W3*U3 -> 558.6233333 | W3: =$W$2+(($W$37-$W$2)*5/20)*Y3/10 -> 627.6666667 | Y3: 1
B4: 5#298 | C4: 5#339 | E4: 5#563 | F4: 5#633 | H4: 属性 | I4: 速度 | K4: 0.88 | L4: =M4*K4 -> 298.3811111 | M4: =$M$3+(($M$23-$M$3)*3/19)*O4/4 -> 339.0694444 | N4: 1、2 | O4: 1 | P4: 3 | R4: 属性 | S4: 速度 | U4: 0.89 | V4: 563.4688889 | W4: =$W$2+(($W$37-$W$2)*5/20)*Y4/10 -> 633.1111111 | Y4: 2
B5: 5#301 | C5: 5#344 | E5: 5#568 | F5: 5#638 | K5: 0.875 | L5: 301.7534722 | M5: =$M$3+(($M$23-$M$3)*3/19)*O5/4 -> 344.8611111 | O5: 2 | U5: 0.89 | V5: 568.3144444 | W5: 638.5555556 | Y5: 3
B6: 5#305 | C6: 5#350 | E6: 5#566 | F6: 5#644 | K6: 0.87 | L6: 305.0679167 | M6: 350.6527778 | O6: 3 | U6: 0.88 | V6: 566.72 | W6: 644 | Y6: 4
B7: 5#308 | C7: 5#356 | E7: 5#571 | F7: 5#649 | H7: 生命 | I7: 1 | K7: 0.865 | L7: 308.3244444 | M7: 356.4444444 | O7: 4 | U7: 0.88 | V7: 571.5111111 | W7: 649.4444444 | Y7: 5
B8: 5#313 | C8: 5#364 | E8: 5#576 | F8: 5#654 | H8: 攻击 | I8: 2 | K8: 0.86 | L8: 313.1833333 | M8: =$M$7+(($M$23-$M$7)*6/16)*O8/6 -> 364.1666667 | N8: 1、2 | O8: 1 | P8: 6 | U8: 0.88 | V8: 576.3022222 | W8: 654.8888889 | Y8: 6
B9: 5#318 | C9: 5#371 | E9: 5#581 | F9: 5#660 | H9: 护甲 | I9: 3 | K9: 0.856 | L9: 318.3368889 | M9: =$M$7+(($M$23-$M$7)*6/16)*O9/6 -> 371.8888889 | O9: 2 | U9: 0.88 | V9: 581.0933333 | W9: 660.3333333 | Y9: 7
B10: 5#323 | C10: 5#379 | E10: 5#579 | F10: 5#665 | H10: 魔抗 | I10: 4 | K10: 0.853 | L10: 323.8082778 | M10: 379.6111111 | O10: 3 | U10: 0.87 | V10: 579.2266667 | W10: 665.7777778 | Y10: 8
B11: 5#329 | C11: 5#387 | E11: 5#583 | F11: 5#671 | H11: 速度 | I11: 5 | K11: 0.85 | L11: 329.2333333 | M11: 387.3333333 | O11: 4 | U11: 0.87 | V11: 583.9633333 | W11: 671.2222222 | Y11: 9
B12: 5#334 | C12: 5#395 | E12: 5#588 | F12: 5#676 | K12: 0.846 | L12: 334.217 | M12: 395.0555556 | O12: 5 | U12: 0.87 | V12: 588.7 | W12: 676.6666667 | Y12: 10
B13: 5#339 | C13: 5#402 | E13: 5#587 | F13: 5#683 | K13: 0.843 | L13: 339.5416667 | M13: 402.7777778 | O13: 6 | U13: 0.86 | V13: 587.7861111 | W13: =$W$12+(($W$37-$W$12)*5/15)*Y13/8 -> 683.4722222 | X13: 1、2、3 | Y13: 1 | Z13: 5
B14: 5#344 | C14: 5#410 | E14: 5#593 | F14: 5#690 | K14: 0.84 | L14: 344.82 | M14: =$M$13+(($M$23-$M$13))*O14/10 -> 410.5 | N14: 1、2、3 | O14: 1 | P14: 10 | U14: 0.86 | V14: 593.6388889 | W14: =$W$12+(($W$37-$W$12)*5/15)*Y14/8 -> 690.2777778 | Y14: 2
B15: 5#349 | C15: 5#418 | E15: 5#599 | F15: 5#697 | K15: 0.836 | L15: 349.6337778 | M15: =$M$13+(($M$23-$M$13))*O15/10 -> 418.2222222 | O15: 2 | U15: 0.86 | V15: 599.4916667 | W15: 697.0833333 | Y15: 3
B16: 5#354 | C16: 5#425 | E16: 5#598 | F16: 5#703 | K16: 0.833 | L16: 354.8117222 | M16: 425.9444444 | O16: 3 | U16: 0.85 | V16: 598.3055556 | W16: 703.8888889 | Y16: 4
B17: 5#359 | C17: 5#433 | E17: 5#604 | F17: 5#710 | K17: 0.83 | L17: 359.9433333 | M17: 433.6666667 | O17: 4 | U17: 0.85 | V17: 604.0902778 | W17: 710.6944444 | Y17: 5
B18: 5#364 | C18: 5#441 | E18: 5#609 | F18: 5#717 | K18: 0.825 | L18: 364.1458333 | M18: 441.3888889 | O18: 5 | U18: 0.85 | V18: 609.875 | W18: 717.5 | Y18: 6
B19: 5#368 | C19: 5#449 | E19: 5#608 | F19: 5#724 | K19: 0.82 | L19: 368.2711111 | M19: 449.1111111 | O19: 6 | U19: 0.84 | V19: 608.4166667 | W19: 724.3055556 | Y19: 7
B20: 5#372 | C20: 5#456 | E20: 5#614 | F20: 5#731 | K20: 0.815 | L20: 372.3191667 | M20: 456.8333333 | O20: 7 | U20: 0.84 | V20: 614.1333333 | W20: 731.1111111 | Y20: 8
B21: 5#376 | C21: 5#464 | E21: 5#619 | F21: 5#737 | K21: 0.81 | L21: 376.29 | M21: 464.5555556 | O21: 8 | U21: 0.84 | V21: 619.5137255 | W21: =$W$20+($W$37-$W$20)*Y21/17 -> 737.5163399 | X21: 1、2、3、4 | Y21: 1 | Z21: 10
B22: 5#380 | C22: 5#472 | E22: 5#624 | F22: 5#743 | K22: 0.805 | L22: 380.1836111 | M22: 472.2777778 | O22: 9 | U22: 0.84 | V22: 624.8941176 | W22: =$W$20+($W$37-$W$20)*Y22/17 -> 743.9215686 | Y22: 2
B23: 5#384 | C23: 5#480 | E23: 5#622 | F23: 5#750 | K23: 0.8 | L23: 384 | M23: =$I$3 -> 480 | O23: 10 | U23: 0.83 | V23: 622.7712418 | W23: 750.3267974 | Y23: 3
E24: 5#628 | F24: 5#756 | U24: 0.83 | V24: 628.0875817 | W24: 756.7320261 | Y24: 4
E25: 5#633 | F25: 5#763 | U25: 0.83 | V25: 633.4039216 | W25: 763.1372549 | Y25: 5
E26: 5#638 | F26: 5#769 | U26: 0.83 | V26: 638.7202614 | W26: 769.5424837 | Y26: 6
E27: 5#636 | F27: 5#775 | U27: 0.82 | V27: 636.2771242 | W27: 775.9477124 | Y27: 7
E28: 5#641 | F28: 5#782 | U28: 0.82 | V28: 641.5294118 | W28: 782.3529412 | Y28: 8
E29: 5#646 | F29: 5#788 | U29: 0.82 | V29: 646.7816993 | W29: 788.7581699 | Y29: 9
E30: 5#652 | F30: 5#795 | U30: 0.82 | V30: 652.0339869 | W30: 795.1633987 | Y30: 10
E31: 5#649 | F31: 5#801 | U31: 0.81 | V31: 649.2705882 | W31: 801.5686275 | Y31: 11
E32: 5#654 | F32: 5#807 | U32: 0.81 | V32: 654.4588235 | W32: 807.9738562 | Y32: 12
E33: 5#659 | F33: 5#814 | U33: 0.81 | V33: 659.6470588 | W33: 814.379085 | Y33: 13
E34: 5#656 | F34: 5#820 | U34: 0.8 | V34: 656.627451 | W34: 820.7843137 | Y34: 14
E35: 5#661 | F35: 5#827 | U35: 0.8 | V35: 661.751634 | W35: 827.1895425 | Y35: 15
E36: 5#666 | F36: 5#833 | U36: 0.8 | V36: 666.875817 | W36: 833.5947712 | Y36: 16
E37: 5#672 | F37: 5#840 | U37: 0.8 | V37: 672 | W37: =$S$3 -> 840 | Y37: 17

Sheet 1
C1: 品质 | D1: 道具名 | E1: 道具品质 | G1: 类型英文 | H1: 道具类型 | I1: 资源名
A2: =LEFT(C2,2) -> 绿色 | B2: 服饰 | C2: 绿色装备 | D2: 铁制锁子甲 | E2: 高级 | G2: CA | H2: 服饰 | I2: r_equip_CA_0001
A3: =LEFT(C3,2) -> 绿色 | B3: 武卫 | C3: 绿色装备 | D3: 铁制巨剑 | E3: 高级 | G3: GS | H3: 武器 | I3: r_equip_GS_0001
A4: 绿色 | B4: 头饰 | C4: 绿色装备 | D4: 铁制耳环 | E4: 高级 | G4: HA | H4: 头饰 | I4: r_equip_HA_0001
A5: 绿色 | B5: 玄策 | C5: 绿色装备 | D5: 铁制双拐 | E5: 高级 | G5: HS | H5: 武器 | I5: r_equip_HS_0001
A6: 绿色 | B6: 秘法 | C6: 绿色装备 | D6: 铁制秘器 | E6: 高级 | G6: HW | H6: 武器 | I6: r_equip_HW_0001
A7: 绿色 | B7: 生花 | C7: 绿色装备 | D7: 铁制法器 | E7: 高级 | G7: MW | H7: 武器 | I7: r_equip_MW_0001
A8: 绿色 | B8: 服饰 | C8: 绿色装备 | D8: 铁制板甲 | E8: 高级 | G8: PA | H8: 服饰 | I8: r_equip_PA_0001
A9: 绿色 | B9: 天罚 | C9: 绿色装备 | D9: 铁制星槌 | E9: 高级 | G9: SH | H9: 武器 | I9: r_equip_SH_0001
A10: 绿色 | B10: 靴 | C10: 绿色装备 | D10: 铁制军靴 | E10: 高级 | G10: Shoes | H10: 靴 | I10: r_equip_Shoes_0001
A11: 蓝色 | B11: 武卫 | C11: 蓝色装备 | D11: 黑铁巨剑 | E11: 顶级 | G11: GS | H11: 武器 | I11: r_equip_GS_0002
A12: 蓝色 | B12: 秘法 | C12: 蓝色装备 | D12: 黑铁秘器 | E12: 顶级 | G12: HW | H12: 武器 | I12: r_equip_HW_0002
A13: 蓝色 | B13: 生花 | C13: 蓝色装备 | D13: 黑铁法器 | E13: 顶级 | G13: MW | H13: 武器 | I13: r_equip_MW_0002
A14: 蓝色 | B14: 玄策 | C14: 蓝色装备 | D14: 黑铁双拐 | E14: 顶级 | G14: HS | H14: 武器 | I14: r_equip_HS_0002
A15: 蓝色 | B15: 天罚 | C15: 蓝色装备 | D15: 黑铁星槌 | E15: 顶级 | G15: SH | H15: 武器 | I15: r_equip_SH_0002
A16: 蓝色 | B16: 头饰 | C16: 蓝色装备 | D16: 黑铁耳环 | E16: 顶级 | G16: HA | H16: 头饰 | I16: r_equip_HA_0002
A17: 蓝色 | B17: 服饰 | C17: 蓝色装备 | D17: 黑铁板甲 | E17: 顶级 | G17: PA | H17: 服饰 | I17: r_equip_PA_0002
A18: 蓝色 | B18: 服饰 | C18: 蓝色装备 | D18: 黑铁锁子甲 | E18: 顶级 | G18: CA | H18: 服饰 | I18: r_equip_CA_0002
A19: 蓝色 | B19: 靴 | C19: 蓝色装备 | D19: 黑铁军靴 | E19: 顶级 | G19: Shoes | H19: 靴 | I19: r_equip_Shoes_0002
A20: 紫色 | B20: 武卫 | C20: 紫色狗粮装备 | D20: 秘钢巨剑 | E20: 英雄 | G20: GS | H20: 武器 | I20: r_equip_GS_0003
A21: 紫色 | B21: 秘法 | C21: 紫色狗粮装备 | D21: 秘钢秘器 | E21: 英雄 | G21: HW | H21: 武器 | I21: r_equip_HW_0003
A22: 紫色 | B22: 生花 | C22: 紫色狗粮装备 | D22: 秘钢法器 | E22: 英雄 | G22: MW | H22: 武器 | I22: r_equip_MW_0003
A23: 紫色 | B23: 玄策 | C23: 紫色狗粮装备 | D23: 秘钢双拐 | E23: 英雄 | G23: HS | H23: 武器 | I23: r_equip_HS_0003
A24: 紫色 | B24: 天罚 | C24: 紫色狗粮装备 | D24: 秘钢星槌 | E24: 英雄 | G24: SH | H24: 武器 | I24: r_equip_SH_0003
A25: 紫色 | B25: 头饰 | C25: 紫色狗粮装备 | D25: 秘钢耳环 | E25: 英雄 | G25: HA | H25: 头饰 | I25: r_equip_HA_0003
A26: 紫色 | B26: 服饰 | C26: 紫色狗粮装备 | D26: 秘钢板甲 | E26: 英雄 | G26: PA | H26: 服饰 | I26: r_equip_PA_0003
A27: 紫色 | B27: 服饰 | C27: 紫色狗粮装备 | D27: 秘钢锁子甲 | E27: 英雄 | G27: CA | H27: 服饰 | I27: r_equip_CA_0003
A28: 紫色 | B28: 靴 | C28: 紫色狗粮装备 | D28: 秘钢军靴 | E28: 英雄 | G28: Shoes | H28: 靴 | I28: r_equip_Shoes_0003
A29: 橙色 | B29: 武卫 | C29: 传说狗粮装备 | D29: 玄金巨剑 | E29: 传说 | G29: GS | H29: 武器 | I29: r_equip_GS_0004
A30: 橙色 | B30: 秘法 | C30: 传说狗粮装备 | D30: 玄金秘器 | E30: 传说 | G30: HW | H30: 武器 | I30: r_equip_HW_0004
A31: 橙色 | B31: 生花 | C31: 传说狗粮装备 | D31: 玄金法器 | E31: 传说 | G31: MW | H31: 武器 | I31: r_equip_MW_0004
A32: 橙色 | B32: 玄策 | C32: 传说狗粮装备 | D32: 玄金双拐 | E32: 传说 | G32: HS | H32: 武器 | I32: r_equip_HS_0004
A33: 橙色 | B33: 天罚 | C33: 传说狗粮装备 | D33: 玄金星槌 | E33: 传说 | G33: SH | H33: 武器 | I33: r_equip_SH_0004
A34: 橙色 | B34: 头饰 | C34: 传说狗粮装备 | D34: 玄金耳环 | E34: 传说 | G34: HA | H34: 头饰 | I34: r_equip_HA_0004
A35: 橙色 | B35: 服饰 | C35: 传说狗粮装备 | D35: 玄金板甲 | E35: 传说 | G35: PA | H35: 服饰 | I35: r_equip_PA_0004
A36: 橙色 | B36: 服饰 | C36: 传说狗粮装备 | D36: 玄金锁子甲 | E36: 传说 | G36: CA | H36: 服饰 | I36: r_equip_CA_0004
A37: 橙色 | B37: 靴 | C37: 传说狗粮装备 | D37: 玄金军靴 | E37: 传说 | G37: Shoes | H37: 靴 | I37: r_equip_Shoes_0004
A38: 紫色 | B38: 武卫 | C38: 紫色专属装备 | D38: 泣血巨人 | E38: 英雄 | G38: GS | H38: 武器 | I38: r_equip_GS_0005
A39: 紫色 | B39: 秘法 | C39: 紫色专属装备 | D39: 红莲灯芯 | E39: 英雄 | G39: HW | H39: 武器 | I39: r_equip_HW_0005
A40: 紫色 | B40: 生花 | C40: 紫色专属装备 | D40: 封神结 | E40: 英雄 | G40: MW | H40: 武器 | I40: r_equip_MW_0005
A41: 紫色 | B41: 玄策 | C41: 紫色专属装备 | D41: 幻木宝镜 | E41: 英雄 | G41: HS | H41: 武器 | I41: r_equip_HS_0005
A42: 紫色 | B42: 天罚 | C42: 紫色专属装备 | D42: 摩尼尊印 | E42: 英雄 | G42: SH | H42: 武器 | I42: r_equip_SH_0005
A43: 紫色 | B43: 头饰 | C43: 紫色专属装备 | D43: 金罡头盔 | E43: 英雄 | G43: HA | H43: 头饰 | I43: r_equip_HA_0005
A44: 紫色 | B44: 服饰 | C44: 紫色专属装备 | D44: 风神战衣 | E44: 英雄 | G44: PA | H44: 服饰 | I44: r_equip_PA_0005
A45: 紫色 | B45: 服饰 | C45: 紫色专属装备 | D45: 碧垠圣袍 | E45: 英雄 | G45: CA | H45: 服饰 | I45: r_equip_CA_0005
A46: 紫色 | B46: 靴 | C46: 紫色专属装备 | D46: 灵蛇宝鞋 | E46: 英雄 | G46: Shoes | H46: 靴 | I46: r_equip_Shoes_0005
A47: 橙色 | B47: 武卫 | C47: 橙色专属装备 | D47: 日落 | E47: 传说 | G47: GS | H47: 武器 | I47: r_equip_GS_0006
A48: 橙色 | B48: 秘法 | C48: 橙色专属装备 | D48: 血狼闪 | E48: 传说 | G48: HW | H48: 武器 | I48: r_equip_HW_0006
A49: 橙色 | B49: 生花 | C49: 橙色专属装备 | D49: 斩风诀 | E49: 传说 | G49: MW | H49: 武器 | I49: r_equip_MW_0006
A50: 橙色 | B50: 玄策 | C50: 橙色专属装备 | D50: 狮心龙鳞 | E50: 传说 | G50: HS | H50: 武器 | I50: r_equip_HS_0006
A51: 橙色 | B51: 天罚 | C51: 橙色专属装备 | D51: 苍星 | E51: 传说 | G51: SH | H51: 武器 | I51: r_equip_SH_0006
A52: 橙色 | B52: 头饰 | C52: 橙色专属装备 | D52: 永恒金盾坠 | E52: 传说 | G52: HA | H52: 头饰 | I52: r_equip_HA_0006
A53: 橙色 | B53: 服饰 | C53: 橙色专属装备 | D53: 灭世 | E53: 传说 | G53: PA | H53: 服饰 | I53: r_equip_PA_0006
A54: 橙色 | B54: 服饰 | C54: 橙色专属装备 | D54: 不死鸟之魂 | E54: 传说 | G54: CA | H54: 服饰 | I54: r_equip_CA_0006
A55: 橙色 | B55: 靴 | C55: 橙色专属装备 | D55: 深渊羽鞋 | E55: 传说 | G55: Shoes | H55: 靴 | I55: r_equip_Shoes_0006

Sheet 合成装备
A2: 53005 | B2: 玄金法杖 | C2: 3 | D2: 1 | E2: 1 | F2: 2#479 | G2: 2#564 | H2: 3 | I2: 1 | J2: 2 | K2: 0 | L2: 0 | M2: 0
A3: 53006 | B3: 墨玉法杖 | C3: 3 | D3: 1 | E3: 1 | F3: 2#499 | G3: 2#588 | H3: 4 | I3: 1 | J3: 2 | K3: 0 | L3: 0 | M3: 0
A4: 53007 | B4: 神行法杖 | C4: 3 | D4: 1 | E4: 1 | F4: 2#520 | G4: 2#612 | H4: 3 | I4: 1 | J4: 2 | K4: 0 | L4: 0 | M4: 0
A5: 53019 | B5: 玄金长剑 | C5: 3 | D5: 2 | E5: 1 | F5: 2#479 | G5: 2#564 | H5: 3 | I5: 1 | J5: 2 | K5: 0 | L5: 0 | M5: 0
A6: 53020 | B6: 墨玉长剑 | C6: 3 | D6: 2 | E6: 1 | F6: 2#499 | G6: 2#588 | H6: 4 | I6: 1 | J6: 2 | K6: 0 | L6: 0 | M6: 0
A7: 53021 | B7: 神行长剑 | C7: 3 | D7: 2 | E7: 1 | F7: 2#520 | G7: 2#612 | H7: 3 | I7: 1 | J7: 2 | K7: 0 | L7: 0 | M7: 0
A8: 53033 | B8: 玄金大斧 | C8: 3 | D8: 3 | E8: 1 | F8: 2#479 | G8: 2#564 | H8: 3 | I8: 1 | J8: 2 | K8: 0 | L8: 0 | M8: 0
A9: 53034 | B9: 墨玉大斧 | C9: 3 | D9: 3 | E9: 1 | F9: 2#499 | G9: 2#588 | H9: 4 | I9: 1 | J9: 2 | K9: 0 | L9: 0 | M9: 0
A10: 53035 | B10: 神行大戟 | C10: 3 | D10: 3 | E10: 1 | F10: 2#520 | G10: 2#612 | H10: 3 | I10: 1 | J10: 2 | K10: 0 | L10: 0 | M10: 0
A11: 53047 | B11: 玄金短剑 | C11: 3 | D11: 4 | E11: 1 | F11: 2#479 | G11: 2#564 | H11: 3 | I11: 1 | J11: 2 | K11: 0 | L11: 0 | M11: 0
A12: 53048 | B12: 墨玉短剑 | C12: 3 | D12: 4 | E12: 1 | F12: 2#499 | G12: 2#588 | H12: 4 | I12: 1 | J12: 2 | K12: 0 | L12: 0 | M12: 0
A13: 53049 | B13: 神行短剑 | C13: 3 | D13: 4 | E13: 1 | F13: 2#520 | G13: 2#612 | H13: 3 | I13: 1 | J13: 2 | K13: 0 | L13: 0 | M13: 0
A14: 53061 | B14: 玄金法杖 | C14: 3 | D14: 5 | E14: 1 | F14: 2#479 | G14: 2#564 | H14: 3 | I14: 1 | J14: 2 | K14: 0 | L14: 0 | M14: 0
A15: 53062 | B15: 墨玉法杖 | C15: 3 | D15: 5 | E15: 1 | F15: 2#499 | G15: 2#588 | H15: 4 | I15: 1 | J15: 2 | K15: 0 | L15: 0 | M15: 0
A16: 53063 | B16: 神行法杖 | C16: 3 | D16: 5 | E16: 1 | F16: 2#520 | G16: 2#612 | H16: 3 | I16: 1 | J16: 2 | K16: 0 | L16: 0 | M16: 0
A17: 53081 | B17: 杀戮战甲 | C17: 3 | D17: 0 | E17: 2 | F17: 3#563 | G17: 3#663 | H17: 6 | I17: 1 | J17: 1 | K17: 0 | L17: 0 | M17: 0
A18: 53091 | B18: 轻灵战盔 | C18: 3 | D18: 0 | E18: 3 | F18: 1#5916 | G18: 1#6960 | H18: 7 | I18: 1 | J18: 2 | K18: 0 | L18: 0 | M18: 0
A19: 53092 | B19: 杀戮战盔 | C19: 3 | D19: 0 | E19: 3 | F19: 1#6120 | G19: 1#7200 | H19: 7 | I19: 1 | J19: 2 | K19: 0 | L19: 0 | M19: 0
A20: 53102 | B20: 轻灵战靴 | C20: 3 | D20: 0 | E20: 4 | F20: 5#1039 | G20: 5#1223 | H20: 8 | I20: 1 | J20: 2 | K20: 0 | L20: 0 | M20: 0
A21: 53103 | B21: 杀戮战靴 | C21: 3 | D21: 0 | E21: 4 | F21: 5#1076 | G21: 5#1267 | H21: 8 | I21: 1 | J21: 2 | K21: 0 | L21: 0 | M21: 0
A22: 54001 | B22: 御风短杖 | C22: 4 | D22: 1 | E22: 1 | F22: 2#780 | G22: 2#1084 | H22: 9 | I22: 2 | J22: 3 | K22: 0 | L22: 0 | M22: 0
A23: 54002 | B23: 困雨短杖 | C23: 4 | D23: 1 | E23: 1 | F23: 2#663 | G23: 2#780 | H23: 9 | I23: 2 | J23: 3 | K23: 0 | L23: 0 | M23: 0
A24: 54011 | B24: 止玄短杖 | C24: 4 | D24: 1 | E24: 1 | F24: 2#957 | G24: 2#1126 | H24: 9 | I24: 2 | J24: 3 | K24: 411004 | L24: 0 | M24: 0
A25: 54012 | B25: 无锋短杖 | C25: 4 | D25: 1 | E25: 1 | F25: 2#998 | G25: 2#1175 | H25: 9 | I25: 2 | J25: 3 | K25: 411005 | L25: 0 | M25: 0
A26: 54013 | B26: 千钧短杖 | C26: 4 | D26: 1 | E26: 1 | F26: 2#1040 | G26: 2#1224 | H26: 9 | I26: 2 | J26: 3 | K26: 411006 | L26: 0 | M26: 0
A27: 54014 | B27: 撼岳短杖 | C27: 4 | D27: 1 | E27: 1 | F27: 2#1083 | G27: 2#1275 | H27: 9 | I27: 2 | J27: 3 | K27: 411007 | L27: 0 | M27: 0
A28: 54015 | B28: 御风短剑 | C28: 4 | D28: 2 | E28: 1 | F28: 2#780 | G28: 2#1084 | H28: 9 | I28: 2 | J28: 3 | K28: 0 | L28: 0 | M28: 0
A29: 54016 | B29: 困雨短剑 | C29: 4 | D29: 2 | E29: 1 | F29: 2#663 | G29: 2#780 | H29: 9 | I29: 2 | J29: 3 | K29: 0 | L29: 0 | M29: 0
A30: 54025 | B30: 止玄之刺 | C30: 4 | D30: 2 | E30: 1 | F30: 2#957 | G30: 2#1126 | H30: 9 | I30: 2 | J30: 3 | K30: 412004 | L30: 0 | M30: 0
A31: 54026 | B31: 无锋之刺 | C31: 4 | D31: 2 | E31: 1 | F31: 2#998 | G31: 2#1175 | H31: 9 | I31: 2 | J31: 3 | K31: 412005 | L31: 0 | M31: 0
A32: 54027 | B32: 千钧之刺 | C32: 4 | D32: 2 | E32: 1 | F32: 2#1040 | G32: 2#1224 | H32: 9 | I32: 2 | J32: 3 | K32: 412006 | L32: 0 | M32: 0
A33: 54028 | B33: 撼岳之刺 | C33: 4 | D33: 2 | E33: 1 | F33: 2#1083 | G33: 2#1275 | H33: 9 | I33: 2 | J33: 3 | K33: 412007 | L33: 0 | M33: 0
A34: 54029 | B34: 御风战斧 | C34: 4 | D34: 3 | E34: 1 | F34: 2#780 | G34: 2#1084 | H34: 9 | I34: 2 | J34: 3 | K34: 0 | L34: 0 | M34: 0
A35: 54030 | B35: 困雨战斧 | C35: 4 | D35: 3 | E35: 1 | F35: 2#663 | G35: 2#780 | H35: 9 | I35: 2 | J35: 3 | K35: 0 | L35: 0 | M35: 0
A36: 54039 | B36: 止玄战矛 | C36: 4 | D36: 3 | E36: 1 | F36: 2#957 | G36: 2#1126 | H36: 9 | I36: 2 | J36: 3 | K36: 413004 | L36: 0 | M36: 0
A37: 54040 | B37: 无锋战矛 | C37: 4 | D37: 3 | E37: 1 | F37: 2#998 | G37: 2#1175 | H37: 9 | I37: 2 | J37: 3 | K37: 413005 | L37: 0 | M37: 0
A38: 54041 | B38: 千钧战矛 | C38: 4 | D38: 3 | E38: 1 | F38: 2#1040 | G38: 2#1224 | H38: 9 | I38: 2 | J38: 3 | K38: 413006 | L38: 0 | M38: 0
A39: 54042 | B39: 撼岳战矛 | C39: 4 | D39: 3 | E39: 1 | F39: 2#1083 | G39: 2#1275 | H39: 9 | I39: 2 | J39: 3 | K39: 413007 | L39: 0 | M39: 0
A40: 54043 | B40: 御风之刃 | C40: 4 | D40: 4 | E40: 1 | F40: 2#780 | G40: 2#1084 | H40: 9 | I40: 2 | J40: 3 | K40: 0 | L40: 0 | M40: 0
A41: 54044 | B41: 困雨之刃 | C41: 4 | D41: 4 | E41: 1 | F41: 2#663 | G41: 2#780 | H41: 9 | I41: 2 | J41: 3 | K41: 0 | L41: 0 | M41: 0
A42: 54053 | B42: 止玄之刃 | C42: 4 | D42: 4 | E42: 1 | F42: 2#957 | G42: 2#1126 | H42: 9 | I42: 2 | J42: 3 | K42: 414004 | L42: 0 | M42: 0
A43: 54054 | B43: 无锋之刃 | C43: 4 | D43: 4 | E43: 1 | F43: 2#998 | G43: 2#1175 | H43: 9 | I43: 2 | J43: 3 | K43: 414005 | L43: 0 | M43: 0
A44: 54055 | B44: 千钧之刃 | C44: 4 | D44: 4 | E44: 1 | F44: 2#1040 | G44: 2#1224 | H44: 9 | I44: 2 | J44: 3 | K44: 414006 | L44: 0 | M44: 0
A45: 54056 | B45: 撼岳之刃 | C45: 4 | D45: 4 | E45: 1 | F45: 2#1083 | G45: 2#1275 | H45: 9 | I45: 2 | J45: 3 | K45: 414007 | L45: 0 | M45: 0
A46: 54057 | B46: 御风法杖 | C46: 4 | D46: 5 | E46: 1 | F46: 2#780 | G46: 2#1084 | H46: 9 | I46: 2 | J46: 3 | K46: 0 | L46: 0 | M46: 0
A47: 54058 | B47: 困雨法杖 | C47: 4 | D47: 5 | E47: 1 | F47: 2#663 | G47: 2#780 | H47: 9 | I47: 2 | J47: 3 | K47: 0 | L47: 0 | M47: 0
A48: 54067 | B48: 止玄秘录 | C48: 4 | D48: 5 | E48: 1 | F48: 2#957 | G48: 2#1126 | H48: 9 | I48: 2 | J48: 3 | K48: 415004 | L48: 0 | M48: 0
A49: 54068 | B49: 无锋秘录 | C49: 4 | D49: 5 | E49: 1 | F49: 2#998 | G49: 2#1175 | H49: 9 | I49: 2 | J49: 3 | K49: 415005 | L49: 0 | M49: 0
A50: 54069 | B50: 千钧秘录 | C50: 4 | D50: 5 | E50: 1 | F50: 2#1040 | G50: 2#1224 | H50: 9 | I50: 2 | J50: 3 | K50: 415006 | L50: 0 | M50: 0
A51: 54070 | B51: 撼岳秘录 | C51: 4 | D51: 5 | E51: 1 | F51: 2#1083 | G51: 2#1275 | H51: 9 | I51: 2 | J51: 3 | K51: 415007 | L51: 0 | M51: 0
A52: 54071 | B52: 神行战甲 | C52: 4 | D52: 0 | E52: 2 | F52: 4#718 | G52: 4#845 | H52: 10 | I52: 2 | J52: 3 | K52: 0 | L52: 0 | M52: 0
A53: 54075 | B53: 逐光战甲 | C53: 4 | D53: 0 | E53: 2 | F53: 4#1173 | G53: 4#1381 | H53: 10 | I53: 2 | J53: 3 | K53: 420008 | L53: 0 | M53: 0
A54: 54076 | B54: 轻尘战甲 | C54: 4 | D54: 0 | E54: 2 | F54: 3#718 | G54: 3#845 | H54: 10 | I54: 2 | J54: 3 | K54: 0 | L54: 0 | M54: 0
A55: 54080 | B55: 遗迹战甲 | C55: 4 | D55: 0 | E55: 2 | F55: 3#1173 | G55: 3#1381 | H55: 10 | I55: 2 | J55: 3 | K55: 420009 | L55: 0 | M55: 0
A56: 54081 | B56: 天启战甲 | C56: 4 | D56: 0 | E56: 2 | F56: 3#997 | G56: 3#1174 | H56: 11 | I56: 2 | J56: 3 | K56: 420007 | L56: 0 | M56: 0
A57: 54082 | B57: 神行战盔 | C57: 4 | D57: 0 | E57: 3 | F57: 1#6630 | G57: 1#7800 | H57: 12 | I57: 2 | J57: 3 | K57: 0 | L57: 0 | M57: 0
A58: 54083 | B58: 乘风战盔 | C58: 4 | D58: 0 | E58: 3 | F58: 1#7050 | G58: 1#8295 | H58: 12 | I58: 2 | J58: 3 | K58: 0 | L58: 0 | M58: 0
A59: 54091 | B59: 遗迹战盔 | C59: 4 | D59: 0 | E59: 3 | F59: 1#10416 | G59: 1#12255 | H59: 12 | I59: 2 | J59: 3 | K59: 430003 | L59: 0 | M59: 0
A60: 54092 | B60: 天启战盔 | C60: 4 | D60: 0 | E60: 3 | F60: 1#10842 | G60: 1#12756 | H60: 12 | I60: 2 | J60: 3 | K60: 430004 | L60: 0 | M60: 0
A61: 54093 | B61: 神行战靴 | C61: 4 | D61: 0 | E61: 4 | F61: 5#1166 | G61: 5#1372 | H61: 13 | I61: 2 | J61: 3 | K61: 0 | L61: 0 | M61: 0
A62: 54094 | B62: 乘风战靴 | C62: 4 | D62: 0 | E62: 4 | F62: 5#1241 | G62: 5#1460 | H62: 13 | I62: 2 | J62: 3 | K62: 0 | L62: 0 | M62: 0
A63: 54102 | B63: 遗迹战靴 | C63: 4 | D63: 0 | E63: 4 | F63: 5#1832 | G63: 5#2156 | H63: 13 | I63: 2 | J63: 3 | K63: 440002 | L63: 0 | M63: 0
A64: 54103 | B64: 天启战靴 | C64: 4 | D64: 0 | E64: 4 | F64: 5#1908 | G64: 5#2245 | H64: 13 | I64: 2 | J64: 3 | K64: 440003 | L64: 0 | M64: 0
A65: 55001 | B65: 断念神杖 | C65: 5 | D65: 1 | E65: 1 | F65: 2#1440 | G65: 2#1836 | H65: 14 | I65: 2 | J65: 4 | K65: 0 | L65: 0 | M65: 0
A66: 55017 | B66: 离恨神杖 | C66: 5 | D66: 1 | E66: 1 | F66: 2#1744 | G66: 2#2052 | H66: 14 | I66: 0 | J66: 0 | K66: 511008 | L66: 0 | M66: 0
A67: 55018 | B67: 无始神杖 | C67: 5 | D67: 1 | E67: 1 | F67: 2#1774 | G67: 2#2088 | H67: 14 | I67: 0 | J67: 0 | K67: 511009 | L67: 0 | M67: 0
A68: 55019 | B68: 归凡神杖 | C68: 5 | D68: 1 | E68: 1 | F68: 2#1805 | G68: 2#2124 | H68: 14 | I68: 0 | J68: 0 | K68: 511010 | L68: 0 | M68: 0
A69: 55020 | B69: 道衍神杖 | C69: 5 | D69: 1 | E69: 1 | F69: 2#1836 | G69: 2#2160 | H69: 14 | I69: 0 | J69: 0 | K69: 511011 | L69: 0 | M69: 0
A70: 55021 | B70: 断念神剑 | C70: 5 | D70: 2 | E70: 1 | F70: 2#1440 | G70: 2#1836 | H70: 14 | I70: 2 | J70: 4 | K70: 0 | L70: 0 | M70: 0
A71: 55037 | B71: 离恨神刺 | C71: 5 | D71: 2 | E71: 1 | F71: 2#1744 | G71: 2#2052 | H71: 14 | I71: 0 | J71: 0 | K71: 512008 | L71: 0 | M71: 0
A72: 55038 | B72: 无始神刺 | C72: 5 | D72: 2 | E72: 1 | F72: 2#1774 | G72: 2#2088 | H72: 14 | I72: 0 | J72: 0 | K72: 512009 | L72: 0 | M72: 0
A73: 55039 | B73: 归凡神刺 | C73: 5 | D73: 2 | E73: 1 | F73: 2#1805 | G73: 2#2124 | H73: 14 | I73: 0 | J73: 0 | K73: 512010 | L73: 0 | M73: 0
A74: 55040 | B74: 道衍神刺 | C74: 5 | D74: 2 | E74: 1 | F74: 2#1836 | G74: 2#2160 | H74: 14 | I74: 0 | J74: 0 | K74: 512011 | L74: 0 | M74: 0
A75: 55041 | B75: 断念神斧 | C75: 5 | D75: 3 | E75: 1 | F75: 2#1440 | G75: 2#1836 | H75: 14 | I75: 2 | J75: 4 | K75: 0 | L75: 0 | M75: 0
A76: 55057 | B76: 离恨神戟 | C76: 5 | D76: 3 | E76: 1 | F76: 2#1744 | G76: 2#2052 | H76: 14 | I76: 0 | J76: 0 | K76: 513008 | L76: 0 | M76: 0
A77: 55058 | B77: 无始神戟 | C77: 5 | D77: 3 | E77: 1 | F77: 2#1774 | G77: 2#2088 | H77: 14 | I77: 0 | J77: 0 | K77: 513009 | L77: 0 | M77: 0
A78: 55059 | B78: 归凡神戟 | C78: 5 | D78: 3 | E78: 1 | F78: 2#1805 | G78: 2#2124 | H78: 14 | I78: 0 | J78: 0 | K78: 513010 | L78: 0 | M78: 0
A79: 55060 | B79: 道衍神戟 | C79: 5 | D79: 3 | E79: 1 | F79: 2#1836 | G79: 2#2160 | H79: 14 | I79: 0 | J79: 0 | K79: 513011 | L79: 0 | M79: 0
A80: 55061 | B80: 断念古剑 | C80: 5 | D80: 4 | E80: 1 | F80: 2#1440 | G80: 2#1836 | H80: 14 | I80: 2 | J80: 4 | K80: 0 | L80: 0 | M80: 0
A81: 55077 | B81: 离恨古剑 | C81: 5 | D81: 4 | E81: 1 | F81: 2#1744 | G81: 2#2052 | H81: 14 | I81: 0 | J81: 0 | K81: 514008 | L81: 0 | M81: 0
A82: 55078 | B82: 无始古剑 | C82: 5 | D82: 4 | E82: 1 | F82: 2#1774 | G82: 2#2088 | H82: 14 | I82: 0 | J82: 0 | K82: 514009 | L82: 0 | M82: 0
A83: 55079 | B83: 归凡古剑 | C83: 5 | D83: 4 | E83: 1 | F83: 2#1805 | G83: 2#2124 | H83: 14 | I83: 0 | J83: 0 | K83: 514010 | L83: 0 | M83: 0
A84: 55080 | B84: 道衍古剑 | C84: 5 | D84: 4 | E84: 1 | F84: 2#1836 | G84: 2#2160 | H84: 14 | I84: 0 | J84: 0 | K84: 514011 | L84: 0 | M84: 0
A85: 55081 | B85: 断念钟 | C85: 5 | D85: 5 | E85: 1 | F85: 2#1440 | G85: 2#1836 | H85: 14 | I85: 2 | J85: 4 | K85: 0 | L85: 0 | M85: 0
A86: 55097 | B86: 离恨宝录 | C86: 5 | D86: 5 | E86: 1 | F86: 2#1744 | G86: 2#2052 | H86: 14 | I86: 0 | J86: 0 | K86: 515008 | L86: 0 | M86: 0
A87: 55098 | B87: 无始宝录 | C87: 5 | D87: 5 | E87: 1 | F87: 2#1774 | G87: 2#2088 | H87: 14 | I87: 0 | J87: 0 | K87: 515009 | L87: 0 | M87: 0
A88: 55099 | B88: 归凡宝录 | C88: 5 | D88: 5 | E88: 1 | F88: 2#1805 | G88: 2#2124 | H88: 14 | I88: 0 | J88: 0 | K88: 515010 | L88: 0 | M88: 0
A89: 55100 | B89: 道衍宝录 | C89: 5 | D89: 5 | E89: 1 | F89: 2#1836 | G89: 2#2160 | H89: 14 | I89: 0 | J89: 0 | K89: 515011 | L89: 0 | M89: 0
A90: 55101 | B90: 虬龙仙甲 | C90: 5 | D90: 0 | E90: 2 | F90: 3#1326 | G90: 3#1560 | H90: 15 | I90: 2 | J90: 4 | K90: 0 | L90: 0 | M90: 0
A91: 55102 | B91: 神凰羽衣 | C91: 5 | D91: 0 | E91: 2 | F91: 3#1436 | G91: 3#1690 | H91: 15 | I91: 0 | J91: 0 | K91: 520001 | L91: 0 | M91: 0
A92: 55103 | B92: 饕餮战衣 | C92: 5 | D92: 0 | E92: 2 | F92: 3#1547 | G92: 3#1820 | H92: 15 | I92: 0 | J92: 0 | K92: 520002 | L92: 0 | M92: 0
A93: 55107 | B93: 黑狱战甲 | C93: 5 | D93: 0 | E93: 2 | F93: 3#1989 | G93: 3#2340 | H93: 15 | I93: 2 | J93: 4 | K93: 0 | L93: 0 | M93: 0
A94: 55108 | B94: 诸天神甲 | C94: 5 | D94: 0 | E94: 2 | F94: 4#1326 | G94: 4#1560 | H94: 15 | I94: 2 | J94: 4 | K94: 0 | L94: 0 | M94: 0
A95: 55109 | B95: 轮回羽衣 | C95: 5 | D95: 0 | E95: 2 | F95: 4#1436 | G95: 4#1690 | H95: 15 | I95: 0 | J95: 0 | K95: 520003 | L95: 0 | M95: 0
A96: 55110 | B96: 盘龙战甲 | C96: 5 | D96: 0 | E96: 2 | F96: 4#1547 | G96: 4#1820 | H96: 15 | I96: 0 | J96: 0 | K96: 520004 | L96: 0 | M96: 0
A97: 55114 | B97: 应龙战甲 | C97: 5 | D97: 0 | E97: 2 | F97: 4#1989 | G97: 4#2340 | H97: 15 | I97: 2 | J97: 4 | K97: 0 | L97: 0 | M97: 0
A98: 55116 | B98: 灵犀头巾 | C98: 5 | D98: 0 | E98: 3 | F98: 1#12240 | G98: 1#14400 | H98: 17 | I98: 2 | J98: 4 | K98: 0 | L98: 0 | M98: 0
A99: 55117 | B99: 霞凤羽冠 | C99: 5 | D99: 0 | E99: 3 | F99: 1#12676 | G99: 1#14914 | H99: 17 | I99: 2 | J99: 4 | K99: 0 | L99: 0 | M99: 0
A100: 55128 | B100: 麒麟战盔 | C100: 5 | D100: 0 | E100: 3 | F100: 1#17482 | G100: 1#20568 | H100: 17 | I100: 0 | J100: 0 | K100: 530004 | L100: 0 | M100: 0
A101: 55129 | B101: 应龙战盔 | C101: 5 | D101: 0 | E101: 3 | F101: 1#17919 | G101: 1#21082 | H101: 17 | I101: 0 | J101: 0 | K101: 530005 | L101: 0 | M101: 0
A102: 55130 | B102: 九霄华冠 | C102: 5 | D102: 0 | E102: 3 | F102: 1#18360 | G102: 1#21600 | H102: 17 | I102: 0 | J102: 0 | K102: 530006 | L102: 0 | M102: 0
A103: 55131 | B103: 青麟羽鞋 | C103: 5 | D103: 0 | E103: 4 | F103: 5#2154 | G103: 5#2534 | H103: 18 | I103: 2 | J103: 4 | K103: 0 | L103: 0 | M103: 0
A104: 55132 | B104: 鸿鹄羽靴 | C104: 5 | D104: 0 | E104: 4 | F104: 5#2230 | G104: 5#2624 | H104: 18 | I104: 2 | J104: 4 | K104: 0 | L104: 0 | M104: 0
A105: 55143 | B105: 麒麟战靴 | C105: 5 | D105: 0 | E105: 4 | F105: 5#3071 | G105: 5#3614 | H105: 18 | I105: 0 | J105: 0 | K105: 540007 | L105: 0 | M105: 0
A106: 55144 | B106: 应龙战靴 | C106: 5 | D106: 0 | E106: 4 | F106: 5#3148 | G106: 5#3704 | H106: 18 | I106: 0 | J106: 0 | K106: 540008 | L106: 0 | M106: 0
A107: 55145 | B107: 九霄华履 | C107: 5 | D107: 0 | E107: 4 | F107: 5#3230 | G107: 5#3801 | H107: 18 | I107: 0 | J107: 0 | K107: 540009 | L107: 0 | M107: 0
A108: 55158 | B108: 麒麟戒指 | C108: 5 | D108: 0 | E108: 5 | F108: 2#581 | G108: 2#684 | H108: 23 | I108: 0 | J108: 0 | K108: 0 | L108: 0 | M108: 0
A109: 55159 | B109: 应龙戒指 | C109: 5 | D109: 0 | E109: 5 | F109: 2#595 | G109: 2#701 | H109: 23 | I109: 0 | J109: 0 | K109: 0 | L109: 0 | M109: 0
A110: 55160 | B110: 九霄神戒 | C110: 5 | D110: 0 | E110: 5 | F110: 2#612 | G110: 2#720 | H110: 23 | I110: 0 | J110: 0 | K110: 0 | L110: 0 | M110: 0
A111: 55173 | B111: 麒麟束带 | C111: 5 | D111: 0 | E111: 6 | F111: 1#4661 | G111: 1#5484 | H111: 24 | I111: 0 | J111: 0 | K111: 0 | L111: 0 | M111: 0
A112: 55174 | B112: 应龙束带 | C112: 5 | D112: 0 | E112: 6 | F112: 1#4777 | G112: 1#5621 | H112: 24 | I112: 0 | J112: 0 | K112: 0 | L112: 0 | M112: 0
A113: 55175 | B113: 九霄玉扣 | C113: 5 | D113: 0 | E113: 6 | F113: 1#4896 | G113: 1#5760 | H113: 24 | I113: 0 | J113: 0 | K113: 0 | L113: 0 | M113: 0

Sheet 装备分类辅助表
B1: Id | C1: Name | D1: Quality | E1: ProfessionLimit | F1: Position | G1: PropertyMin | H1: PropertyMax | I1: Pool | J1: SecondNumMin | K1: SecondNumMax | L1: SkillId | M1: InitialLevel | N1: IfClear | O1: Score | P1: NoUse1 | Q1: NoUse3 | R1: NoUse4
B2: int | C2: string | D2: int | E2: int | F2: int | G2: mut,int#int,1 | H2: mut,int#int,1 | I2: int | J2: int | K2: int | L2: int | M2: int | N2: int | O2: int | P2: string | Q2: string | R2: string
B3: 2 | C3: 3 | D3: 2 | E3: 2 | F3: 2 | G3: 2 | H3: 2 | I3: 2 | J3: 2 | K3: 2 | L3: 2 | M3: 2 | N3: 2 | O3: 2 | P3: 0 | Q3: 0 | R3: 0
B4: 道具id | C4: 道具名 | D4: 装备品质 2绿色 3蓝色 4紫色 5橙色 | E4: 职业限定 0 不限定 1、秘法；2、天罚；3、武卫；4，玄策；5，生花 | F4: 位置 (1武器 2全身铠甲 3头饰 4鞋子 5戒指 6腰带） | G4: 属性区间min 属性id#num （属性id找propertyconfig表） | H4: 属性区间max 属性id#num | I4: 附属性库 | J4: 副属性随机最少个数，不重复 | K4: 副属性最多随机个数，不重复 | L4: 附带技能id | M4: 初始自带重置等级 | N4: 是否可重铸 0不可重铸 1可重铸 | O4: 特性评分 | P4: 没啥用、 | Q4: 没啥用、 | R4: 没啥用、
A5: 默认值 | B5: 0 | C5: ="" ->  | E5: 0 | F5: 0 | G5: null | H5: null | I5: 0 | J5: 0 | K5: 0 | M5: 0 | N5: 0 | O5: 0 | P5: ="" -> 
A6: 正确性校对
A7: 校对值
B8: 52001 | C8: 猎户大锤 | D8: 2 | E8: 3 | F8: 1 | G8: 2#204 | H8: 2#240 | I8: 1 | J8: 0 | K8: 0 | M8: 0 | N8: 0 | P8: =_xlfn.IFNA(VLOOKUP(L8,[2]汇总!A:C,3,0),"") ->  | S8: 2 | T8: 204 | V8: 2 | W8: 240
B9: 52002 | C9: 兽骨匕首 | D9: 2 | E9: 3 | F9: 1 | G9: 2#208 | H9: 2#245 | I9: 1 | J9: 0 | K9: 0 | M9: 0 | N9: 0 | P9: =_xlfn.IFNA(VLOOKUP(L9,[2]汇总!A:C,3,0),"") ->  | S9: 2 | T9: 208 | V9: 2 | W9: 245
B10: 52003 | C10: 坚固宝剑 | D10: 2 | E10: 3 | F10: 1 | G10: 2#212 | H10: 2#250 | I10: 1 | J10: 0 | K10: 0 | M10: 0 | N10: 0 | P10: =_xlfn.IFNA(VLOOKUP(L10,[2]汇总!A:C,3,0),"") ->  | S10: 2 | T10: 212 | V10: 2 | W10: 250
B11: 52004 | C11: 家传短匕 | D11: 2 | E11: 3 | F11: 1 | G11: 2#216 | H11: 2#255 | I11: 1 | J11: 0 | K11: 0 | M11: 0 | N11: 0 | P11: =_xlfn.IFNA(VLOOKUP(L11,[2]汇总!A:C,3,0),"") ->  | S11: 2 | T11: 216 | V11: 2 | W11: 255
B12: 52005 | C12: 游侠战刀 | D12: 2 | E12: 3 | F12: 1 | G12: 2#221 | H12: 2#260 | I12: 1 | J12: 0 | K12: 0 | M12: 0 | N12: 0 | P12: =_xlfn.IFNA(VLOOKUP(L12,[2]汇总!A:C,3,0),"") ->  | S12: 2 | T12: 221 | V12: 2 | W12: 260
B13: 52006 | C13: 戍卫法杖 | D13: 2 | E13: 3 | F13: 1 | G13: 2#225 | H13: 2#265 | I13: 1 | J13: 0 | K13: 0 | M13: 0 | N13: 0 | P13: =_xlfn.IFNA(VLOOKUP(L13,[2]汇总!A:C,3,0),"") ->  | S13: 2 | T13: 225 | V13: 2 | W13: 265
B14: 52007 | C14: 硬木法杖 | D14: 2 | E14: 3 | F14: 1 | G14: 2#229 | H14: 2#270 | I14: 1 | J14: 0 | K14: 0 | M14: 0 | N14: 0 | P14: =_xlfn.IFNA(VLOOKUP(L14,[2]汇总!A:C,3,0),"") ->  | S14: 2 | T14: 229 | V14: 2 | W14: 270
B15: 52008 | C15: 黑铁法杖 | D15: 2 | E15: 3 | F15: 1 | G15: 2#236 | H15: 2#278 | I15: 1 | J15: 0 | K15: 0 | M15: 0 | N15: 0 | P15: =_xlfn.IFNA(VLOOKUP(L15,[2]汇总!A:C,3,0),"") ->  | S15: 2 | T15: 236 | V15: 2 | W15: 278
B16: 52009 | C16: 黄铜法杖 | D16: 2 | E16: 3 | F16: 1 | G16: 2#249 | H16: 2#294 | I16: 1 | J16: 1 | K16: 1 | M16: 0 | N16: 0 | P16: =_xlfn.IFNA(VLOOKUP(L16,[2]汇总!A:C,3,0),"") ->  | S16: 2 | T16: 249 | V16: 2 | W16: 294
B17: 52010 | C17: 锻钢法杖 | D17: 2 | E17: 3 | F17: 1 | G17: 2#265 | H17: 2#312 | I17: 1 | J17: 1 | K17: 1 | M17: 0 | N17: 0 | P17: =_xlfn.IFNA(VLOOKUP(L17,[2]汇总!A:C,3,0),"") ->  | S17: 2 | T17: 265 | V17: 2 | W17: 312
B18: 52011 | C18: 赤金法杖 | D18: 2 | E18: 3 | F18: 1 | G18: 2#281 | H18: 2#331 | I18: 1 | J18: 1 | K18: 1 | M18: 0 | N18: 0 | P18: =_xlfn.IFNA(VLOOKUP(L18,[2]汇总!A:C,3,0),"") ->  | S18: 2 | T18: 281 | V18: 2 | W18: 331
B19: 52012 | C19: 灵玉法杖 | D19: 2 | E19: 3 | F19: 1 | G19: 2#289 | H19: 2#340 | I19: 2 | J19: 1 | K19: 1 | M19: 0 | N19: 0 | P19: =_xlfn.IFNA(VLOOKUP(L19,[2]汇总!A:C,3,0),"") ->  | S19: 2 | T19: 289 | V19: 2 | W19: 340
B20: 52013 | C20: 地龙法杖 | D20: 2 | E20: 3 | F20: 1 | G20: 2#304 | H20: 2#358 | I20: 2 | J20: 1 | K20: 1 | M20: 0 | N20: 0 | P20: =_xlfn.IFNA(VLOOKUP(L20,[2]汇总!A:C,3,0),"") ->  | S20: 2 | T20: 304 | V20: 2 | W20: 358
B21: 52014 | C21: 妖麟法杖 | D21: 2 | E21: 3 | F21: 1 | G21: 2#335 | H21: 2#395 | I21: 1 | J21: 0 | K21: 0 | M21: 50 | N21: 0 | P21: =_xlfn.IFNA(VLOOKUP(L21,[2]汇总!A:C,3,0),"") ->  | S21: 2 | T21: 335 | V21: 2 | W21: 395
B22: 52015 | C22: 飞羽法杖 | D22: 2 | E22: 3 | F22: 1 | G22: 2#343 | H22: 2#404 | I22: 1 | J22: 0 | K22: 0 | M22: 60 | N22: 0 | P22: =_xlfn.IFNA(VLOOKUP(L22,[2]汇总!A:C,3,0),"") ->  | S22: 2 | T22: 343 | V22: 2 | W22: 404
B23: 52016 | C23: 青烟法杖 | D23: 2 | E23: 3 | F23: 1 | G23: 2#351 | H23: 2#413 | I23: 1 | J23: 0 | K23: 0 | M23: 70 | N23: 0 | P23: =_xlfn.IFNA(VLOOKUP(L23,[2]汇总!A:C,3,0),"") ->  | S23: 2 | T23: 351 | V23: 2 | W23: 413
B24: 52017 | C24: 追光法杖 | D24: 2 | E24: 3 | F24: 1 | G24: 2#358 | H24: 2#422 | I24: 1 | J24: 0 | K24: 0 | M24: 80 | N24: 0 | P24: =_xlfn.IFNA(VLOOKUP(L24,[2]汇总!A:C,3,0),"") ->  | S24: 2 | T24: 358 | V24: 2 | W24: 422
B25: 52018 | C25: 轻灵法杖 | D25: 2 | E25: 3 | F25: 1 | G25: 2#343 | H25: 2#404 | I25: 1 | J25: 0 | K25: 0 | L25: 210001 | M25: 0 | N25: 0 | O25: 300 | P25: =_xlfn.IFNA(VLOOKUP(L25,[2]汇总!A:C,3,0),"") -> 造成伤害时，额外增加100点伤害。 | S25: 2 | T25: 343 | V25: 2 | W25: 404
B26: 52019 | C26: 先知法杖 | D26: 2 | E26: 3 | F26: 1 | G26: 2#351 | H26: 2#413 | I26: 1 | J26: 0 | K26: 0 | L26: 210002 | M26: 0 | N26: 0 | O26: 300 | P26: =_xlfn.IFNA(VLOOKUP(L26,[2]汇总!A:C,3,0),"") -> 进入战斗后，每1秒回复20生命。 | S26: 2 | T26: 351 | V26: 2 | W26: 413
B27: 52020 | C27: 杀戮法杖 | D27: 2 | E27: 3 | F27: 1 | G27: 2#358 | H27: 2#422 | I27: 1 | J27: 0 | K27: 0 | L27: 210003 | M27: 0 | N27: 0 | O27: 300 | P27: =_xlfn.IFNA(VLOOKUP(L27,[2]汇总!A:C,3,0),"") -> 造成伤害时，将伤害的2%转化为自身生命。 | S27: 2 | T27: 358 | V27: 2 | W27: 422
B28: 52021 | C28: 猎户叉 | D28: 2 | E28: 2 | F28: 1 | G28: 2#204 | H28: 2#240 | I28: 1 | J28: 0 | K28: 0 | M28: 0 | N28: 0 | P28: =_xlfn.IFNA(VLOOKUP(L28,[2]汇总!A:C,3,0),"") ->  | S28: 2 | T28: 204 | V28: 2 | W28: 240
B29: 52022 | C29: 兽骨大锤 | D29: 2 | E29: 2 | F29: 1 | G29: 2#208 | H29: 2#245 | I29: 1 | J29: 0 | K29: 0 | M29: 0 | N29: 0 | P29: =_xlfn.IFNA(VLOOKUP(L29,[2]汇总!A:C,3,0),"") ->  | S29: 2 | T29: 208 | V29: 2 | W29: 245
B30: 52023 | C30: 坚固匕首 | D30: 2 | E30: 2 | F30: 1 | G30: 2#212 | H30: 2#250 | I30: 1 | J30: 0 | K30: 0 | M30: 0 | N30: 0 | P30: =_xlfn.IFNA(VLOOKUP(L30,[2]汇总!A:C,3,0),"") ->  | S30: 2 | T30: 212 | V30: 2 | W30: 250
B31: 52024 | C31: 家传宝剑 | D31: 2 | E31: 2 | F31: 1 | G31: 2#216 | H31: 2#255 | I31: 1 | J31: 0 | K31: 0 | M31: 0 | N31: 0 | P31: =_xlfn.IFNA(VLOOKUP(L31,[2]汇总!A:C,3,0),"") ->  | S31: 2 | T31: 216 | V31: 2 | W31: 255
B32: 52025 | C32: 游侠短匕 | D32: 2 | E32: 2 | F32: 1 | G32: 2#221 | H32: 2#260 | I32: 1 | J32: 0 | K32: 0 | M32: 0 | N32: 0 | P32: =_xlfn.IFNA(VLOOKUP(L32,[2]汇总!A:C,3,0),"") ->  | S32: 2 | T32: 221 | V32: 2 | W32: 260
B33: 52026 | C33: 戍卫战刀 | D33: 2 | E33: 2 | F33: 1 | G33: 2#225 | H33: 2#265 | I33: 1 | J33: 0 | K33: 0 | M33: 0 | N33: 0 | P33: =_xlfn.IFNA(VLOOKUP(L33,[2]汇总!A:C,3,0),"") ->  | S33: 2 | T33: 225 | V33: 2 | W33: 265
B34: 52027 | C34: 硬木短剑 | D34: 2 | E34: 2 | F34: 1 | G34: 2#229 | H34: 2#270 | I34: 1 | J34: 0 | K34: 0 | M34: 0 | N34: 0 | P34: =_xlfn.IFNA(VLOOKUP(L34,[2]汇总!A:C,3,0),"") ->  | S34: 2 | T34: 229 | V34: 2 | W34: 270
B35: 52028 | C35: 黑铁短剑 | D35: 2 | E35: 2 | F35: 1 | G35: 2#236 | H35: 2#278 | I35: 1 | J35: 0 | K35: 0 | M35: 0 | N35: 0 | P35: =_xlfn.IFNA(VLOOKUP(L35,[2]汇总!A:C,3,0),"") ->  | S35: 2 | T35: 236 | V35: 2 | W35: 278
B36: 52029 | C36: 黄铜短剑 | D36: 2 | E36: 2 | F36: 1 | G36: 2#249 | H36: 2#294 | I36: 1 | J36: 1 | K36: 1 | M36: 0 | N36: 0 | P36: =_xlfn.IFNA(VLOOKUP(L36,[2]汇总!A:C,3,0),"") ->  | S36: 2 | T36: 249 | V36: 2 | W36: 294
B37: 52030 | C37: 锻钢短剑 | D37: 2 | E37: 2 | F37: 1 | G37: 2#265 | H37: 2#312 | I37: 1 | J37: 1 | K37: 1 | M37: 0 | N37: 0 | P37: =_xlfn.IFNA(VLOOKUP(L37,[2]汇总!A:C,3,0),"") ->  | S37: 2 | T37: 265 | V37: 2 | W37: 312
B38: 52031 | C38: 赤金长剑 | D38: 2 | E38: 2 | F38: 1 | G38: 2#281 | H38: 2#331 | I38: 1 | J38: 1 | K38: 1 | M38: 0 | N38: 0 | P38: =_xlfn.IFNA(VLOOKUP(L38,[2]汇总!A:C,3,0),"") ->  | S38: 2 | T38: 281 | V38: 2 | W38: 331
B39: 52032 | C39: 灵玉长剑 | D39: 2 | E39: 2 | F39: 1 | G39: 2#289 | H39: 2#340 | I39: 2 | J39: 1 | K39: 1 | M39: 0 | N39: 0 | P39: =_xlfn.IFNA(VLOOKUP(L39,[2]汇总!A:C,3,0),"") ->  | S39: 2 | T39: 289 | V39: 2 | W39: 340
B40: 52033 | C40: 地龙长剑 | D40: 2 | E40: 2 | F40: 1 | G40: 2#304 | H40: 2#358 | I40: 2 | J40: 1 | K40: 1 | M40: 0 | N40: 0 | P40: =_xlfn.IFNA(VLOOKUP(L40,[2]汇总!A:C,3,0),"") ->  | S40: 2 | T40: 304 | V40: 2 | W40: 358
B41: 52034 | C41: 妖麟长剑 | D41: 2 | E41: 2 | F41: 1 | G41: 2#335 | H41: 2#395 | I41: 1 | J41: 0 | K41: 0 | M41: 50 | N41: 0 | P41: =_xlfn.IFNA(VLOOKUP(L41,[2]汇总!A:C,3,0),"") ->  | S41: 2 | T41: 335 | V41: 2 | W41: 395
B42: 52035 | C42: 飞羽之刺 | D42: 2 | E42: 2 | F42: 1 | G42: 2#343 | H42: 2#404 | I42: 1 | J42: 0 | K42: 0 | M42: 60 | N42: 0 | P42: =_xlfn.IFNA(VLOOKUP(L42,[2]汇总!A:C,3,0),"") ->  | S42: 2 | T42: 343 | V42: 2 | W42: 404
B43: 52036 | C43: 青烟之刺 | D43: 2 | E43: 2 | F43: 1 | G43: 2#351 | H43: 2#413 | I43: 1 | J43: 0 | K43: 0 | M43: 70 | N43: 0 | P43: =_xlfn.IFNA(VLOOKUP(L43,[2]汇总!A:C,3,0),"") ->  | S43: 2 | T43: 351 | V43: 2 | W43: 413
B44: 52037 | C44: 追光之刺 | D44: 2 | E44: 2 | F44: 1 | G44: 2#358 | H44: 2#422 | I44: 1 | J44: 0 | K44: 0 | M44: 80 | N44: 0 | P44: =_xlfn.IFNA(VLOOKUP(L44,[2]汇总!A:C,3,0),"") ->  | S44: 2 | T44: 358 | V44: 2 | W44: 422
B45: 52038 | C45: 轻灵之刺 | D45: 2 | E45: 2 | F45: 1 | G45: 2#343 | H45: 2#404 | I45: 1 | J45: 0 | K45: 0 | L45: 210001 | M45: 0 | N45: 0 | O45: 300 | P45: =_xlfn.IFNA(VLOOKUP(L45,[2]汇总!A:C,3,0),"") -> 造成伤害时，额外增加100点伤害。 | S45: 2 | T45: 343 | V45: 2 | W45: 404
B46: 52039 | C46: 先知之刺 | D46: 2 | E46: 2 | F46: 1 | G46: 2#351 | H46: 2#413 | I46: 1 | J46: 0 | K46: 0 | L46: 210002 | M46: 0 | N46: 0 | O46: 300 | P46: =_xlfn.IFNA(VLOOKUP(L46,[2]汇总!A:C,3,0),"") -> 进入战斗后，每1秒回复20生命。 | S46: 2 | T46: 351 | V46: 2 | W46: 413
B47: 52040 | C47: 杀戮之刺 | D47: 2 | E47: 2 | F47: 1 | G47: 2#358 | H47: 2#422 | I47: 1 | J47: 0 | K47: 0 | L47: 210003 | M47: 0 | N47: 0 | O47: 300 | P47: =_xlfn.IFNA(VLOOKUP(L47,[2]汇总!A:C,3,0),"") -> 造成伤害时，将伤害的2%转化为自身生命。 | S47: 2 | T47: 358 | V47: 2 | W47: 422
B48: 52041 | C48: 猎户叉 | D48: 2 | E48: 1 | F48: 1 | G48: 2#204 | H48: 2#240 | I48: 1 | J48: 0 | K48: 0 | M48: 0 | N48: 0 | P48: =_xlfn.IFNA(VLOOKUP(L48,[2]汇总!A:C,3,0),"") ->  | S48: 2 | T48: 204 | V48: 2 | W48: 240
B49: 52042 | C49: 兽骨大锤 | D49: 2 | E49: 1 | F49: 1 | G49: 2#208 | H49: 2#245 | I49: 1 | J49: 0 | K49: 0 | M49: 0 | N49: 0 | P49: =_xlfn.IFNA(VLOOKUP(L49,[2]汇总!A:C,3,0),"") ->  | S49: 2 | T49: 208 | V49: 2 | W49: 245
B50: 52043 | C50: 坚固匕首 | D50: 2 | E50: 1 | F50: 1 | G50: 2#212 | H50: 2#250 | I50: 1 | J50: 0 | K50: 0 | M50: 0 | N50: 0 | P50: =_xlfn.IFNA(VLOOKUP(L50,[2]汇总!A:C,3,0),"") ->  | S50: 2 | T50: 212 | V50: 2 | W50: 250
B51: 52044 | C51: 家传宝剑 | D51: 2 | E51: 1 | F51: 1 | G51: 2#216 | H51: 2#255 | I51: 1 | J51: 0 | K51: 0 | M51: 0 | N51: 0 | P51: =_xlfn.IFNA(VLOOKUP(L51,[2]汇总!A:C,3,0),"") ->  | S51: 2 | T51: 216 | V51: 2 | W51: 255
B52: 52045 | C52: 游侠短匕 | D52: 2 | E52: 1 | F52: 1 | G52: 2#221 | H52: 2#260 | I52: 1 | J52: 0 | K52: 0 | M52: 0 | N52: 0 | P52: =_xlfn.IFNA(VLOOKUP(L52,[2]汇总!A:C,3,0),"") ->  | S52: 2 | T52: 221 | V52: 2 | W52: 260
B53: 52046 | C53: 戍卫战刀 | D53: 2 | E53: 1 | F53: 1 | G53: 2#225 | H53: 2#265 | I53: 1 | J53: 0 | K53: 0 | M53: 0 | N53: 0 | P53: =_xlfn.IFNA(VLOOKUP(L53,[2]汇总!A:C,3,0),"") ->  | S53: 2 | T53: 225 | V53: 2 | W53: 265
B54: 52047 | C54: 硬木斧 | D54: 2 | E54: 1 | F54: 1 | G54: 2#229 | H54: 2#270 | I54: 1 | J54: 0 | K54: 0 | M54: 0 | N54: 0 | P54: =_xlfn.IFNA(VLOOKUP(L54,[2]汇总!A:C,3,0),"") ->  | S54: 2 | T54: 229 | V54: 2 | W54: 270
B55: 52048 | C55: 黑铁斧 | D55: 2 | E55: 1 | F55: 1 | G55: 2#236 | H55: 2#278 | I55: 1 | J55: 0 | K55: 0 | M55: 0 | N55: 0 | P55: =_xlfn.IFNA(VLOOKUP(L55,[2]汇总!A:C,3,0),"") ->  | S55: 2 | T55: 236 | V55: 2 | W55: 278
B56: 52049 | C56: 黄铜斧 | D56: 2 | E56: 1 | F56: 1 | G56: 2#249 | H56: 2#294 | I56: 1 | J56: 1 | K56: 1 | M56: 0 | N56: 0 | P56: =_xlfn.IFNA(VLOOKUP(L56,[2]汇总!A:C,3,0),"") ->  | S56: 2 | T56: 249 | V56: 2 | W56: 294
B57: 52050 | C57: 锻钢斧 | D57: 2 | E57: 1 | F57: 1 | G57: 2#265 | H57: 2#312 | I57: 1 | J57: 1 | K57: 1 | M57: 0 | N57: 0 | P57: =_xlfn.IFNA(VLOOKUP(L57,[2]汇总!A:C,3,0),"") ->  | S57: 2 | T57: 265 | V57: 2 | W57: 312
B58: 52051 | C58: 赤金斧 | D58: 2 | E58: 1 | F58: 1 | G58: 2#281 | H58: 2#331 | I58: 1 | J58: 1 | K58: 1 | M58: 0 | N58: 0 | P58: =_xlfn.IFNA(VLOOKUP(L58,[2]汇总!A:C,3,0),"") ->  | S58: 2 | T58: 281 | V58: 2 | W58: 331
B59: 52052 | C59: 灵玉斧 | D59: 2 | E59: 1 | F59: 1 | G59: 2#289 | H59: 2#340 | I59: 2 | J59: 1 | K59: 1 | M59: 0 | N59: 0 | P59: =_xlfn.IFNA(VLOOKUP(L59,[2]汇总!A:C,3,0),"") ->  | S59: 2 | T59: 289 | V59: 2 | W59: 340
B60: 52053 | C60: 地龙戟 | D60: 2 | E60: 1 | F60: 1 | G60: 2#304 | H60: 2#358 | I60: 2 | J60: 1 | K60: 1 | M60: 0 | N60: 0 | P60: =_xlfn.IFNA(VLOOKUP(L60,[2]汇总!A:C,3,0),"") ->  | S60: 2 | T60: 304 | V60: 2 | W60: 358
B61: 52054 | C61: 妖麟戟 | D61: 2 | E61: 1 | F61: 1 | G61: 2#335 | H61: 2#395 | I61: 1 | J61: 0 | K61: 0 | M61: 50 | N61: 0 | P61: =_xlfn.IFNA(VLOOKUP(L61,[2]汇总!A:C,3,0),"") ->  | S61: 2 | T61: 335 | V61: 2 | W61: 395
B62: 52055 | C62: 飞羽戟 | D62: 2 | E62: 1 | F62: 1 | G62: 2#343 | H62: 2#404 | I62: 1 | J62: 0 | K62: 0 | M62: 60 | N62: 0 | P62: =_xlfn.IFNA(VLOOKUP(L62,[2]汇总!A:C,3,0),"") ->  | S62: 2 | T62: 343 | V62: 2 | W62: 404
B63: 52056 | C63: 青烟戟 | D63: 2 | E63: 1 | F63: 1 | G63: 2#351 | H63: 2#413 | I63: 1 | J63: 0 | K63: 0 | M63: 70 | N63: 0 | P63: =_xlfn.IFNA(VLOOKUP(L63,[2]汇总!A:C,3,0),"") ->  | S63: 2 | T63: 351 | V63: 2 | W63: 413
B64: 52057 | C64: 追光矛 | D64: 2 | E64: 1 | F64: 1 | G64: 2#358 | H64: 2#422 | I64: 1 | J64: 0 | K64: 0 | M64: 80 | N64: 0 | P64: =_xlfn.IFNA(VLOOKUP(L64,[2]汇总!A:C,3,0),"") ->  | S64: 2 | T64: 358 | V64: 2 | W64: 422
B65: 52058 | C65: 轻灵矛 | D65: 2 | E65: 1 | F65: 1 | G65: 2#343 | H65: 2#404 | I65: 1 | J65: 0 | K65: 0 | L65: 210001 | M65: 0 | N65: 0 | O65: 300 | P65: =_xlfn.IFNA(VLOOKUP(L65,[2]汇总!A:C,3,0),"") -> 造成伤害时，额外增加100点伤害。 | S65: 2 | T65: 343 | V65: 2 | W65: 404
B66: 52059 | C66: 先知矛 | D66: 2 | E66: 1 | F66: 1 | G66: 2#351 | H66: 2#413 | I66: 1 | J66: 0 | K66: 0 | L66: 210002 | M66: 0 | N66: 0 | O66: 300 | P66: =_xlfn.IFNA(VLOOKUP(L66,[2]汇总!A:C,3,0),"") -> 进入战斗后，每1秒回复20生命。 | S66: 2 | T66: 351 | V66: 2 | W66: 413
B67: 52060 | C67: 杀戮矛 | D67: 2 | E67: 1 | F67: 1 | G67: 2#358 | H67: 2#422 | I67: 1 | J67: 0 | K67: 0 | L67: 210003 | M67: 0 | N67: 0 | O67: 300 | P67: =_xlfn.IFNA(VLOOKUP(L67,[2]汇总!A:C,3,0),"") -> 造成伤害时，将伤害的2%转化为自身生命。 | S67: 2 | T67: 358 | V67: 2 | W67: 422
B68: 52061 | C68: 猎户叉 | D68: 2 | E68: 4 | F68: 1 | G68: 2#204 | H68: 2#240 | I68: 1 | J68: 0 | K68: 0 | M68: 0 | N68: 0 | P68: =_xlfn.IFNA(VLOOKUP(L68,[2]汇总!A:C,3,0),"") ->  | S68: 2 | T68: 204 | V68: 2 | W68: 240
B69: 52062 | C69: 兽骨大锤 | D69: 2 | E69: 4 | F69: 1 | G69: 2#208 | H69: 2#245 | I69: 1 | J69: 0 | K69: 0 | M69: 0 | N69: 0 | P69: =_xlfn.IFNA(VLOOKUP(L69,[2]汇总!A:C,3,0),"") ->  | S69: 2 | T69: 208 | V69: 2 | W69: 245
B70: 52063 | C70: 坚固匕首 | D70: 2 | E70: 4 | F70: 1 | G70: 2#212 | H70: 2#250 | I70: 1 | J70: 0 | K70: 0 | M70: 0 | N70: 0 | P70: =_xlfn.IFNA(VLOOKUP(L70,[2]汇总!A:C,3,0),"") ->  | S70: 2 | T70: 212 | V70: 2 | W70: 250
B71: 52064 | C71: 家传宝剑 | D71: 2 | E71: 4 | F71: 1 | G71: 2#216 | H71: 2#255 | I71: 1 | J71: 0 | K71: 0 | M71: 0 | N71: 0 | P71: =_xlfn.IFNA(VLOOKUP(L71,[2]汇总!A:C,3,0),"") ->  | S71: 2 | T71: 216 | V71: 2 | W71: 255
B72: 52065 | C72: 游侠短匕 | D72: 2 | E72: 4 | F72: 1 | G72: 2#221 | H72: 2#260 | I72: 1 | J72: 0 | K72: 0 | M72: 0 | N72: 0 | P72: =_xlfn.IFNA(VLOOKUP(L72,[2]汇总!A:C,3,0),"") ->  | S72: 2 | T72: 221 | V72: 2 | W72: 260
B73: 52066 | C73: 戍卫战刀 | D73: 2 | E73: 4 | F73: 1 | G73: 2#225 | H73: 2#265 | I73: 1 | J73: 0 | K73: 0 | M73: 0 | N73: 0 | P73: =_xlfn.IFNA(VLOOKUP(L73,[2]汇总!A:C,3,0),"") ->  | S73: 2 | T73: 225 | V73: 2 | W73: 265
B74: 52067 | C74: 硬木短刀 | D74: 2 | E74: 4 | F74: 1 | G74: 2#229 | H74: 2#270 | I74: 1 | J74: 0 | K74: 0 | M74: 0 | N74: 0 | P74: =_xlfn.IFNA(VLOOKUP(L74,[2]汇总!A:C,3,0),"") ->  | S74: 2 | T74: 229 | V74: 2 | W74: 270
B75: 52068 | C75: 黑铁短刀 | D75: 2 | E75: 4 | F75: 1 | G75: 2#236 | H75: 2#278 | I75: 1 | J75: 0 | K75: 0 | M75: 0 | N75: 0 | P75: =_xlfn.IFNA(VLOOKUP(L75,[2]汇总!A:C,3,0),"") ->  | S75: 2 | T75: 236 | V75: 2 | W75: 278
B76: 52069 | C76: 黄铜短刀 | D76: 2 | E76: 4 | F76: 1 | G76: 2#249 | H76: 2#294 | I76: 1 | J76: 1 | K76: 1 | M76: 0 | N76: 0 | P76: =_xlfn.IFNA(VLOOKUP(L76,[2]汇总!A:C,3,0),"") ->  | S76: 2 | T76: 249 | V76: 2 | W76: 294
B77: 52070 | C77: 锻钢短刀 | D77: 2 | E77: 4 | F77: 1 | G77: 2#265 | H77: 2#312 | I77: 1 | J77: 1 | K77: 1 | M77: 0 | N77: 0 | P77: =_xlfn.IFNA(VLOOKUP(L77,[2]汇总!A:C,3,0),"") ->  | S77: 2 | T77: 265 | V77: 2 | W77: 312
B78: 52071 | C78: 赤金短刀 | D78: 2 | E78: 4 | F78: 1 | G78: 2#281 | H78: 2#331 | I78: 1 | J78: 1 | K78: 1 | M78: 0 | N78: 0 | P78: =_xlfn.IFNA(VLOOKUP(L78,[2]汇总!A:C,3,0),"") ->  | S78: 2 | T78: 281 | V78: 2 | W78: 331
B79: 52072 | C79: 灵玉短刀 | D79: 2 | E79: 4 | F79: 1 | G79: 2#289 | H79: 2#340 | I79: 2 | J79: 1 | K79: 1 | M79: 0 | N79: 0 | P79: =_xlfn.IFNA(VLOOKUP(L79,[2]汇总!A:C,3,0),"") ->  | S79: 2 | T79: 289 | V79: 2 | W79: 340
B80: 52073 | C80: 地龙短刀 | D80: 2 | E80: 4 | F80: 1 | G80: 2#304 | H80: 2#358 | I80: 2 | J80: 1 | K80: 1 | M80: 0 | N80: 0 | P80: =_xlfn.IFNA(VLOOKUP(L80,[2]汇总!A:C,3,0),"") ->  | S80: 2 | T80: 304 | V80: 2 | W80: 358
B81: 52074 | C81: 妖麟短刀 | D81: 2 | E81: 4 | F81: 1 | G81: 2#335 | H81: 2#395 | I81: 1 | J81: 0 | K81: 0 | M81: 50 | N81: 0 | P81: =_xlfn.IFNA(VLOOKUP(L81,[2]汇总!A:C,3,0),"") ->  | S81: 2 | T81: 335 | V81: 2 | W81: 395
B82: 52075 | C82: 飞羽长刀 | D82: 2 | E82: 4 | F82: 1 | G82: 2#343 | H82: 2#404 | I82: 1 | J82: 0 | K82: 0 | M82: 60 | N82: 0 | P82: =_xlfn.IFNA(VLOOKUP(L82,[2]汇总!A:C,3,0),"") ->  | S82: 2 | T82: 343 | V82: 2 | W82: 404
B83: 52076 | C83: 青烟长刀 | D83: 2 | E83: 4 | F83: 1 | G83: 2#351 | H83: 2#413 | I83: 1 | J83: 0 | K83: 0 | M83: 70 | N83: 0 | P83: =_xlfn.IFNA(VLOOKUP(L83,[2]汇总!A:C,3,0),"") ->  | S83: 2 | T83: 351 | V83: 2 | W83: 413
B84: 52077 | C84: 追光长刀 | D84: 2 | E84: 4 | F84: 1 | G84: 2#358 | H84: 2#422 | I84: 1 | J84: 0 | K84: 0 | M84: 80 | N84: 0 | P84: =_xlfn.IFNA(VLOOKUP(L84,[2]汇总!A:C,3,0),"") ->  | S84: 2 | T84: 358 | V84: 2 | W84: 422
B85: 52078 | C85: 轻灵长刀 | D85: 2 | E85: 4 | F85: 1 | G85: 2#343 | H85: 2#404 | I85: 1 | J85: 0 | K85: 0 | L85: 210001 | M85: 0 | N85: 0 | O85: 300 | P85: =_xlfn.IFNA(VLOOKUP(L85,[2]汇总!A:C,3,0),"") -> 造成伤害时，额外增加100点伤害。 | S85: 2 | T85: 343 | V85: 2 | W85: 404
B86: 52079 | C86: 先知长刀 | D86: 2 | E86: 4 | F86: 1 | G86: 2#351 | H86: 2#413 | I86: 1 | J86: 0 | K86: 0 | L86: 210002 | M86: 0 | N86: 0 | O86: 300 | P86: =_xlfn.IFNA(VLOOKUP(L86,[2]汇总!A:C,3,0),"") -> 进入战斗后，每1秒回复20生命。 | S86: 2 | T86: 351 | V86: 2 | W86: 413
B87: 52080 | C87: 杀戮长刀 | D87: 2 | E87: 4 | F87: 1 | G87: 2#358 | H87: 2#422 | I87: 1 | J87: 0 | K87: 0 | L87: 210003 | M87: 0 | N87: 0 | O87: 300 | P87: =_xlfn.IFNA(VLOOKUP(L87,[2]汇总!A:C,3,0),"") -> 造成伤害时，将伤害的2%转化为自身生命。 | S87: 2 | T87: 358 | V87: 2 | W87: 422
B88: 52081 | C88: 猎户大锤 | D88: 2 | E88: 5 | F88: 1 | G88: 2#204 | H88: 2#240 | I88: 1 | J88: 0 | K88: 0 | M88: 0 | N88: 0 | P88: =_xlfn.IFNA(VLOOKUP(L88,[2]汇总!A:C,3,0),"") ->  | S88: 2 | T88: 204 | V88: 2 | W88: 240
B89: 52082 | C89: 兽骨匕首 | D89: 2 | E89: 5 | F89: 1 | G89: 2#208 | H89: 2#245 | I89: 1 | J89: 0 | K89: 0 | M89: 0 | N89: 0 | P89: =_xlfn.IFNA(VLOOKUP(L89,[2]汇总!A:C,3,0),"") ->  | S89: 2 | T89: 208 | V89: 2 | W89: 245
B90: 52083 | C90: 坚固宝剑 | D90: 2 | E90: 5 | F90: 1 | G90: 2#212 | H90: 2#250 | I90: 1 | J90: 0 | K90: 0 | M90: 0 | N90: 0 | P90: =_xlfn.IFNA(VLOOKUP(L90,[2]汇总!A:C,3,0),"") ->  | S90: 2 | T90: 212 | V90: 2 | W90: 250
B91: 52084 | C91: 家传短匕 | D91: 2 | E91: 5 | F91: 1 | G91: 2#216 | H91: 2#255 | I91: 1 | J91: 0 | K91: 0 | M91: 0 | N91: 0 | P91: =_xlfn.IFNA(VLOOKUP(L91,[2]汇总!A:C,3,0),"") ->  | S91: 2 | T91: 216 | V91: 2 | W91: 255
B92: 52085 | C92: 游侠战刀 | D92: 2 | E92: 5 | F92: 1 | G92: 2#221 | H92: 2#260 | I92: 1 | J92: 0 | K92: 0 | M92: 0 | N92: 0 | P92: =_xlfn.IFNA(VLOOKUP(L92,[2]汇总!A:C,3,0),"") ->  | S92: 2 | T92: 221 | V92: 2 | W92: 260
B93: 52086 | C93: 戍卫法杖 | D93: 2 | E93: 5 | F93: 1 | G93: 2#225 | H93: 2#265 | I93: 1 | J93: 0 | K93: 0 | M93: 0 | N93: 0 | P93: =_xlfn.IFNA(VLOOKUP(L93,[2]汇总!A:C,3,0),"") ->  | S93: 2 | T93: 225 | V93: 2 | W93: 265
B94: 52087 | C94: 硬木法杖 | D94: 2 | E94: 5 | F94: 1 | G94: 2#229 | H94: 2#270 | I94: 1 | J94: 0 | K94: 0 | M94: 0 | N94: 0 | P94: =_xlfn.IFNA(VLOOKUP(L94,[2]汇总!A:C,3,0),"") ->  | S94: 2 | T94: 229 | V94: 2 | W94: 270
B95: 52088 | C95: 黑铁法杖 | D95: 2 | E95: 5 | F95: 1 | G95: 2#236 | H95: 2#278 | I95: 1 | J95: 0 | K95: 0 | M95: 0 | N95: 0 | P95: =_xlfn.IFNA(VLOOKUP(L95,[2]汇总!A:C,3,0),"") ->  | S95: 2 | T95: 236 | V95: 2 | W95: 278
B96: 52089 | C96: 黄铜法杖 | D96: 2 | E96: 5 | F96: 1 | G96: 2#249 | H96: 2#294 | I96: 1 | J96: 1 | K96: 1 | M96: 0 | N96: 0 | P96: =_xlfn.IFNA(VLOOKUP(L96,[2]汇总!A:C,3,0),"") ->  | S96: 2 | T96: 249 | V96: 2 | W96: 294
B97: 52090 | C97: 锻钢法杖 | D97: 2 | E97: 5 | F97: 1 | G97: 2#265 | H97: 2#312 | I97: 1 | J97: 1 | K97: 1 | M97: 0 | N97: 0 | P97: =_xlfn.IFNA(VLOOKUP(L97,[2]汇总!A:C,3,0),"") ->  | S97: 2 | T97: 265 | V97: 2 | W97: 312
B98: 52091 | C98: 赤金法杖 | D98: 2 | E98: 5 | F98: 1 | G98: 2#281 | H98: 2#331 | I98: 1 | J98: 1 | K98: 1 | M98: 0 | N98: 0 | P98: =_xlfn.IFNA(VLOOKUP(L98,[2]汇总!A:C,3,0),"") ->  | S98: 2 | T98: 281 | V98: 2 | W98: 331
B99: 52092 | C99: 灵玉法杖 | D99: 2 | E99: 5 | F99: 1 | G99: 2#289 | H99: 2#340 | I99: 2 | J99: 1 | K99: 1 | M99: 0 | N99: 0 | P99: =_xlfn.IFNA(VLOOKUP(L99,[2]汇总!A:C,3,0),"") ->  | S99: 2 | T99: 289 | V99: 2 | W99: 340
B100: 52093 | C100: 地龙法杖 | D100: 2 | E100: 5 | F100: 1 | G100: 2#304 | H100: 2#358 | I100: 2 | J100: 1 | K100: 1 | M100: 0 | N100: 0 | P100: =_xlfn.IFNA(VLOOKUP(L100,[2]汇总!A:C,3,0),"") ->  | S100: 2 | T100: 304 | V100: 2 | W100: 358
B101: 52094 | C101: 妖麟法杖 | D101: 2 | E101: 5 | F101: 1 | G101: 2#335 | H101: 2#395 | I101: 1 | J101: 0 | K101: 0 | M101: 50 | N101: 0 | P101: =_xlfn.IFNA(VLOOKUP(L101,[2]汇总!A:C,3,0),"") ->  | S101: 2 | T101: 335 | V101: 2 | W101: 395
B102: 52095 | C102: 飞羽法杖 | D102: 2 | E102: 5 | F102: 1 | G102: 2#343 | H102: 2#404 | I102: 1 | J102: 0 | K102: 0 | M102: 60 | N102: 0 | P102: =_xlfn.IFNA(VLOOKUP(L102,[2]汇总!A:C,3,0),"") ->  | S102: 2 | T102: 343 | V102: 2 | W102: 404
B103: 52096 | C103: 青烟法杖 | D103: 2 | E103: 5 | F103: 1 | G103: 2#351 | H103: 2#413 | I103: 1 | J103: 0 | K103: 0 | M103: 70 | N103: 0 | P103: =_xlfn.IFNA(VLOOKUP(L103,[2]汇总!A:C,3,0),"") ->  | S103: 2 | T103: 351 | V103: 2 | W103: 413
B104: 52097 | C104: 追光法杖 | D104: 2 | E104: 5 | F104: 1 | G104: 2#358 | H104: 2#422 | I104: 1 | J104: 0 | K104: 0 | M104: 80 | N104: 0 | P104: =_xlfn.IFNA(VLOOKUP(L104,[2]汇总!A:C,3,0),"") ->  | S104: 2 | T104: 358 | V104: 2 | W104: 422
B105: 52098 | C105: 轻灵法杖 | D105: 2 | E105: 5 | F105: 1 | G105: 2#343 | H105: 2#404 | I105: 1 | J105: 0 | K105: 0 | L105: 210001 | M105: 0 | N105: 0 | O105: 300 | P105: =_xlfn.IFNA(VLOOKUP(L105,[2]汇总!A:C,3,0),"") -> 造成伤害时，额外增加100点伤害。 | S105: 2 | T105: 343 | V105: 2 | W105: 404
B106: 52099 | C106: 先知法杖 | D106: 2 | E106: 5 | F106: 1 | G106: 2#351 | H106: 2#413 | I106: 1 | J106: 0 | K106: 0 | L106: 210002 | M106: 0 | N106: 0 | O106: 300 | P106: =_xlfn.IFNA(VLOOKUP(L106,[2]汇总!A:C,3,0),"") -> 进入战斗后，每1秒回复20生命。 | S106: 2 | T106: 351 | V106: 2 | W106: 413
B107: 52100 | C107: 杀戮法杖 | D107: 2 | E107: 5 | F107: 1 | G107: 2#358 | H107: 2#422 | I107: 1 | J107: 0 | K107: 0 | L107: 210003 | M107: 0 | N107: 0 | O107: 300 | P107: =_xlfn.IFNA(VLOOKUP(L107,[2]汇总!A:C,3,0),"") -> 造成伤害时，将伤害的2%转化为自身生命。 | S107: 2 | T107: 358 | V107: 2 | W107: 422
B108: 52101 | C108: 猎户蓑衣 | D108: 2 | E108: 0 | F108: 2 | G108: 4#221 | H108: 4#260 | I108: 1 | J108: 0 | K108: 0 | M108: 0 | N108: 0 | P108: =_xlfn.IFNA(VLOOKUP(L108,[2]汇总!A:C,3,0),"") ->  | S108: 4 | T108: 221 | V108: 4 | W108: 260
B109: 52102 | C109: 兽皮软甲 | D109: 2 | E109: 0 | F109: 2 | G109: 4#248 | H109: 4#292 | I109: 1 | J109: 0 | K109: 0 | M109: 0 | N109: 0 | P109: =_xlfn.IFNA(VLOOKUP(L109,[2]汇总!A:C,3,0),"") ->  | S109: 4 | T109: 248 | V109: 4 | W109: 292
B110: 52103 | C110: 坚固皮甲 | D110: 2 | E110: 0 | F110: 2 | G110: 4#275 | H110: 4#324 | I110: 1 | J110: 0 | K110: 0 | M110: 0 | N110: 0 | P110: =_xlfn.IFNA(VLOOKUP(L110,[2]汇总!A:C,3,0),"") ->  | S110: 4 | T110: 275 | V110: 4 | W110: 324
B111: 52104 | C111: 家传锁甲 | D111: 2 | E111: 0 | F111: 2 | G111: 4#302 | H111: 4#356 | I111: 1 | J111: 0 | K111: 1 | M111: 0 | N111: 0 | P111: =_xlfn.IFNA(VLOOKUP(L111,[2]汇总!A:C,3,0),"") ->  | S111: 4 | T111: 302 | V111: 4 | W111: 356
B112: 52105 | C112: 游侠软甲 | D112: 2 | E112: 0 | F112: 2 | G112: 4#329 | H112: 4#388 | I112: 1 | J112: 0 | K112: 1 | M112: 0 | N112: 0 | P112: =_xlfn.IFNA(VLOOKUP(L112,[2]汇总!A:C,3,0),"") ->  | S112: 4 | T112: 329 | V112: 4 | W112: 388
B113: 52106 | C113: 戍卫战甲 | D113: 2 | E113: 0 | F113: 2 | G113: 3#221 | H113: 3#260 | I113: 1 | J113: 0 | K113: 0 | M113: 0 | N113: 0 | P113: =_xlfn.IFNA(VLOOKUP(L113,[2]汇总!A:C,3,0),"") ->  | S113: 3 | T113: 221 | V113: 3 | W113: 260
B114: 52107 | C114: 硬木战甲 | D114: 2 | E114: 0 | F114: 2 | G114: 3#248 | H114: 3#292 | I114: 1 | J114: 0 | K114: 0 | M114: 0 | N114: 0 | P114: =_xlfn.IFNA(VLOOKUP(L114,[2]汇总!A:C,3,0),"") ->  | S114: 3 | T114: 248 | V114: 3 | W114: 292
B115: 52108 | C115: 黑铁战甲 | D115: 2 | E115: 0 | F115: 2 | G115: 3#275 | H115: 3#324 | I115: 1 | J115: 0 | K115: 0 | M115: 0 | N115: 0 | P115: =_xlfn.IFNA(VLOOKUP(L115,[2]汇总!A:C,3,0),"") ->  | S115: 3 | T115: 275 | V115: 3 | W115: 324
B116: 52109 | C116: 黄铜战甲 | D116: 2 | E116: 0 | F116: 2 | G116: 3#302 | H116: 3#356 | I116: 1 | J116: 0 | K116: 1 | M116: 0 | N116: 0 | P116: =_xlfn.IFNA(VLOOKUP(L116,[2]汇总!A:C,3,0),"") ->  | S116: 3 | T116: 302 | V116: 3 | W116: 356
B117: 52110 | C117: 锻钢战甲 | D117: 2 | E117: 0 | F117: 2 | G117: 3#329 | H117: 3#388 | I117: 1 | J117: 0 | K117: 1 | M117: 0 | N117: 0 | P117: =_xlfn.IFNA(VLOOKUP(L117,[2]汇总!A:C,3,0),"") ->  | S117: 3 | T117: 329 | V117: 3 | W117: 388
B118: 52111 | C118: 赤金战甲 | D118: 2 | E118: 0 | F118: 2 | G118: 3#357 | H118: 3#420 | I118: 1 | J118: 1 | K118: 1 | M118: 0 | N118: 0 | P118: =_xlfn.IFNA(VLOOKUP(L118,[2]汇总!A:C,3,0),"") ->  | S118: 3 | T118: 357 | V118: 3 | W118: 420
B119: 52112 | C119: 灵玉战甲 | D119: 2 | E119: 0 | F119: 2 | G119: 3#388 | H119: 3#457 | I119: 1 | J119: 1 | K119: 1 | M119: 0 | N119: 0 | P119: =_xlfn.IFNA(VLOOKUP(L119,[2]汇总!A:C,3,0),"") ->  | S119: 3 | T119: 388 | V119: 3 | W119: 457
B120: 52113 | C120: 地龙皮甲 | D120: 2 | E120: 0 | F120: 2 | G120: 4#357 | H120: 4#420 | I120: 1 | J120: 1 | K120: 1 | M120: 0 | N120: 0 | P120: =_xlfn.IFNA(VLOOKUP(L120,[2]汇总!A:C,3,0),"") ->  | S120: 4 | T120: 357 | V120: 4 | W120: 420
B121: 52114 | C121: 妖麟皮甲 | D121: 2 | E121: 0 | F121: 2 | G121: 4#388 | H121: 4#457 | I121: 1 | J121: 1 | K121: 1 | M121: 0 | N121: 0 | P121: =_xlfn.IFNA(VLOOKUP(L121,[2]汇总!A:C,3,0),"") ->  | S121: 4 | T121: 388 | V121: 4 | W121: 457
B122: 52115 | C122: 猎户草帽 | D122: 2 | E122: 0 | F122: 3 | G122: 1#2244 | H122: 1#2640 | I122: 1 | J122: 0 | K122: 0 | M122: 0 | N122: 0 | P122: =_xlfn.IFNA(VLOOKUP(L122,[2]汇总!A:C,3,0),"") ->  | S122: 1 | T122: 2244 | V122: 1 | W122: 2640
B123: 52116 | C123: 兽皮兜帽 | D123: 2 | E123: 0 | F123: 3 | G123: 1#2374 | H123: 1#2794 | I123: 1 | J123: 0 | K123: 0 | M123: 0 | N123: 0 | P123: =_xlfn.IFNA(VLOOKUP(L123,[2]汇总!A:C,3,0),"") ->  | S123: 1 | T123: 2374 | V123: 1 | W123: 2794
B124: 52117 | C124: 坚固头盔 | D124: 2 | E124: 0 | F124: 3 | G124: 1#2505 | H124: 1#2948 | I124: 1 | J124: 0 | K124: 0 | M124: 0 | N124: 0 | P124: =_xlfn.IFNA(VLOOKUP(L124,[2]汇总!A:C,3,0),"") ->  | S124: 1 | T124: 2505 | V124: 1 | W124: 2948
B125: 52118 | C125: 家传头盔 | D125: 2 | E125: 0 | F125: 3 | G125: 1#2636 | H125: 1#3102 | I125: 1 | J125: 0 | K125: 0 | M125: 0 | N125: 0 | P125: =_xlfn.IFNA(VLOOKUP(L125,[2]汇总!A:C,3,0),"") ->  | S125: 1 | T125: 2636 | V125: 1 | W125: 3102
B126: 52119 | C126: 游侠兜帽 | D126: 2 | E126: 0 | F126: 3 | G126: 1#2767 | H126: 1#3256 | I126: 1 | J126: 0 | K126: 0 | M126: 0 | N126: 0 | P126: =_xlfn.IFNA(VLOOKUP(L126,[2]汇总!A:C,3,0),"") ->  | S126: 1 | T126: 2767 | V126: 1 | W126: 3256
B127: 52120 | C127: 戍卫战盔 | D127: 2 | E127: 0 | F127: 3 | G127: 1#2898 | H127: 1#3410 | I127: 1 | J127: 0 | K127: 0 | M127: 0 | N127: 0 | P127: =_xlfn.IFNA(VLOOKUP(L127,[2]汇总!A:C,3,0),"") ->  | S127: 1 | T127: 2898 | V127: 1 | W127: 3410
B128: 52121 | C128: 硬木战盔 | D128: 2 | E128: 0 | F128: 3 | G128: 1#3029 | H128: 1#3564 | I128: 1 | J128: 0 | K128: 0 | M128: 0 | N128: 0 | P128: =_xlfn.IFNA(VLOOKUP(L128,[2]汇总!A:C,3,0),"") ->  | S128: 1 | T128: 3029 | V128: 1 | W128: 3564
B129: 52122 | C129: 黑铁战盔 | D129: 2 | E129: 0 | F129: 3 | G129: 1#3160 | H129: 1#3718 | I129: 1 | J129: 0 | K129: 0 | M129: 0 | N129: 0 | P129: =_xlfn.IFNA(VLOOKUP(L129,[2]汇总!A:C,3,0),"") ->  | S129: 1 | T129: 3160 | V129: 1 | W129: 3718
B130: 52123 | C130: 黄铜战盔 | D130: 2 | E130: 0 | F130: 3 | G130: 1#3291 | H130: 1#3872 | I130: 1 | J130: 0 | K130: 1 | M130: 0 | N130: 0 | P130: =_xlfn.IFNA(VLOOKUP(L130,[2]汇总!A:C,3,0),"") ->  | S130: 1 | T130: 3291 | V130: 1 | W130: 3872
B131: 52124 | C131: 锻钢战盔 | D131: 2 | E131: 0 | F131: 3 | G131: 1#3422 | H131: 1#4026 | I131: 1 | J131: 0 | K131: 1 | M131: 0 | N131: 0 | P131: =_xlfn.IFNA(VLOOKUP(L131,[2]汇总!A:C,3,0),"") ->  | S131: 1 | T131: 3422 | V131: 1 | W131: 4026
B132: 52125 | C132: 赤金战盔 | D132: 2 | E132: 0 | F132: 3 | G132: 1#3553 | H132: 1#4180 | I132: 1 | J132: 0 | K132: 1 | M132: 0 | N132: 0 | P132: =_xlfn.IFNA(VLOOKUP(L132,[2]汇总!A:C,3,0),"") ->  | S132: 1 | T132: 3553 | V132: 1 | W132: 4180
B133: 52126 | C133: 灵玉战盔 | D133: 2 | E133: 0 | F133: 3 | G133: 1#3683 | H133: 1#4334 | I133: 2 | J133: 0 | K133: 1 | M133: 0 | N133: 0 | P133: =_xlfn.IFNA(VLOOKUP(L133,[2]汇总!A:C,3,0),"") ->  | S133: 1 | T133: 3683 | V133: 1 | W133: 4334
B134: 52127 | C134: 地龙皮帽 | D134: 2 | E134: 0 | F134: 3 | G134: 1#3814 | H134: 1#4488 | I134: 2 | J134: 0 | K134: 1 | M134: 0 | N134: 0 | P134: =_xlfn.IFNA(VLOOKUP(L134,[2]汇总!A:C,3,0),"") ->  | S134: 1 | T134: 3814 | V134: 1 | W134: 4488
B135: 52128 | C135: 妖麟皮帽 | D135: 2 | E135: 0 | F135: 3 | G135: 1#3949 | H135: 1#4646 | I135: 2 | J135: 0 | K135: 1 | M135: 0 | N135: 0 | P135: =_xlfn.IFNA(VLOOKUP(L135,[2]汇总!A:C,3,0),"") ->  | S135: 1 | T135: 3949 | V135: 1 | W135: 4646
B136: 52129 | C136: 猎户草鞋 | D136: 2 | E136: 0 | F136: 4 | G136: 5#359 | H136: 5#422 | I136: 1 | J136: 0 | K136: 0 | M136: 0 | N136: 0 | P136: =_xlfn.IFNA(VLOOKUP(L136,[2]汇总!A:C,3,0),"") ->  | S136: 5 | T136: 359 | V136: 5 | W136: 422
B137: 52130 | C137: 兽皮皮靴 | D137: 2 | E137: 0 | F137: 4 | G137: 5#379 | H137: 5#447 | I137: 1 | J137: 0 | K137: 0 | M137: 0 | N137: 0 | P137: =_xlfn.IFNA(VLOOKUP(L137,[2]汇总!A:C,3,0),"") ->  | S137: 5 | T137: 379 | V137: 5 | W137: 447
B138: 52131 | C138: 坚固布鞋 | D138: 2 | E138: 0 | F138: 4 | G138: 5#400 | H138: 5#471 | I138: 1 | J138: 0 | K138: 0 | M138: 0 | N138: 0 | P138: =_xlfn.IFNA(VLOOKUP(L138,[2]汇总!A:C,3,0),"") ->  | S138: 5 | T138: 400 | V138: 5 | W138: 471
B139: 52132 | C139: 家传皮靴 | D139: 2 | E139: 0 | F139: 4 | G139: 5#420 | H139: 5#495 | I139: 1 | J139: 0 | K139: 0 | M139: 0 | N139: 0 | P139: =_xlfn.IFNA(VLOOKUP(L139,[2]汇总!A:C,3,0),"") ->  | S139: 5 | T139: 420 | V139: 5 | W139: 495
B140: 52133 | C140: 游侠皮靴 | D140: 2 | E140: 0 | F140: 4 | G140: 5#441 | H140: 5#519 | I140: 1 | J140: 0 | K140: 0 | M140: 0 | N140: 0 | P140: =_xlfn.IFNA(VLOOKUP(L140,[2]汇总!A:C,3,0),"") ->  | S140: 5 | T140: 441 | V140: 5 | W140: 519
B141: 52134 | C141: 戍卫战靴 | D141: 2 | E141: 0 | F141: 4 | G141: 5#461 | H141: 5#543 | I141: 1 | J141: 0 | K141: 0 | M141: 0 | N141: 0 | P141: =_xlfn.IFNA(VLOOKUP(L141,[2]汇总!A:C,3,0),"") ->  | S141: 5 | T141: 461 | V141: 5 | W141: 543
B142: 52135 | C142: 硬木战靴 | D142: 2 | E142: 0 | F142: 4 | G142: 5#481 | H142: 5#567 | I142: 1 | J142: 0 | K142: 0 | M142: 0 | N142: 0 | P142: =_xlfn.IFNA(VLOOKUP(L142,[2]汇总!A:C,3,0),"") ->  | S142: 5 | T142: 481 | V142: 5 | W142: 567
B143: 52136 | C143: 黑铁战靴 | D143: 2 | E143: 0 | F143: 4 | G143: 5#502 | H143: 5#591 | I143: 1 | J143: 0 | K143: 0 | M143: 0 | N143: 0 | P143: =_xlfn.IFNA(VLOOKUP(L143,[2]汇总!A:C,3,0),"") ->  | S143: 5 | T143: 502 | V143: 5 | W143: 591
B144: 52137 | C144: 黄铜战靴 | D144: 2 | E144: 0 | F144: 4 | G144: 5#522 | H144: 5#615 | I144: 1 | J144: 0 | K144: 1 | M144: 0 | N144: 0 | P144: =_xlfn.IFNA(VLOOKUP(L144,[2]汇总!A:C,3,0),"") ->  | S144: 5 | T144: 522 | V144: 5 | W144: 615
B145: 52138 | C145: 锻钢战靴 | D145: 2 | E145: 0 | F145: 4 | G145: 5#543 | H145: 5#639 | I145: 1 | J145: 0 | K145: 1 | M145: 0 | N145: 0 | P145: =_xlfn.IFNA(VLOOKUP(L145,[2]汇总!A:C,3,0),"") ->  | S145: 5 | T145: 543 | V145: 5 | W145: 639
B146: 52139 | C146: 赤金战靴 | D146: 2 | E146: 0 | F146: 4 | G146: 5#563 | H146: 5#663 | I146: 1 | J146: 0 | K146: 1 | M146: 0 | N146: 0 | P146: =_xlfn.IFNA(VLOOKUP(L146,[2]汇总!A:C,3,0),"") ->  | S146: 5 | T146: 563 | V146: 5 | W146: 663
B147: 52140 | C147: 灵玉战靴 | D147: 2 | E147: 0 | F147: 4 | G147: 5#583 | H147: 5#687 | I147: 2 | J147: 0 | K147: 1 | M147: 0 | N147: 0 | P147: =_xlfn.IFNA(VLOOKUP(L147,[2]汇总!A:C,3,0),"") ->  | S147: 5 | T147: 583 | V147: 5 | W147: 687
B148: 52141 | C148: 地龙皮靴 | D148: 2 | E148: 0 | F148: 4 | G148: 5#604 | H148: 5#711 | I148: 2 | J148: 0 | K148: 1 | M148: 0 | N148: 0 | P148: =_xlfn.IFNA(VLOOKUP(L148,[2]汇总!A:C,3,0),"") ->  | S148: 5 | T148: 604 | V148: 5 | W148: 711
B149: 52142 | C149: 妖麟皮靴 | D149: 2 | E149: 0 | F149: 4 | G149: 5#631 | H149: 5#743 | I149: 2 | J149: 0 | K149: 1 | M149: 0 | N149: 0 | P149: =_xlfn.IFNA(VLOOKUP(L149,[2]汇总!A:C,3,0),"") ->  | S149: 5 | T149: 631 | V149: 5 | W149: 743
B150: 52143 | C150: 猎户指环 | D150: 2 | E150: 0 | F150: 5 | G150: 2#68 | H150: 2#80 | I150: 1 | J150: 0 | K150: 0 | M150: 0 | N150: 0 | P150: =_xlfn.IFNA(VLOOKUP(L150,[2]汇总!A:C,3,0),"") ->  | S150: 2 | T150: 68 | V150: 2 | W150: 80
B151: 52144 | C151: 兽皮指环 | D151: 2 | E151: 0 | F151: 5 | G151: 2#71 | H151: 2#84 | I151: 1 | J151: 0 | K151: 0 | M151: 0 | N151: 0 | P151: =_xlfn.IFNA(VLOOKUP(L151,[2]汇总!A:C,3,0),"") ->  | S151: 2 | T151: 71 | V151: 2 | W151: 84
B152: 52145 | C152: 坚固手套 | D152: 2 | E152: 0 | F152: 5 | G152: 2#74 | H152: 2#88 | I152: 1 | J152: 0 | K152: 0 | M152: 0 | N152: 0 | P152: =_xlfn.IFNA(VLOOKUP(L152,[2]汇总!A:C,3,0),"") ->  | S152: 2 | T152: 74 | V152: 2 | W152: 88
B153: 52146 | C153: 家传指环 | D153: 2 | E153: 0 | F153: 5 | G153: 2#78 | H153: 2#92 | I153: 1 | J153: 0 | K153: 0 | M153: 0 | N153: 0 | P153: =_xlfn.IFNA(VLOOKUP(L153,[2]汇总!A:C,3,0),"") ->  | S153: 2 | T153: 78 | V153: 2 | W153: 92
B154: 52147 | C154: 游侠戒指 | D154: 2 | E154: 0 | F154: 5 | G154: 2#81 | H154: 2#96 | I154: 1 | J154: 0 | K154: 0 | M154: 0 | N154: 0 | P154: =_xlfn.IFNA(VLOOKUP(L154,[2]汇总!A:C,3,0),"") ->  | S154: 2 | T154: 81 | V154: 2 | W154: 96
B155: 52148 | C155: 戍卫戒指 | D155: 2 | E155: 0 | F155: 5 | G155: 2#85 | H155: 2#100 | I155: 1 | J155: 0 | K155: 0 | M155: 0 | N155: 0 | P155: =_xlfn.IFNA(VLOOKUP(L155,[2]汇总!A:C,3,0),"") ->  | S155: 2 | T155: 85 | V155: 2 | W155: 100
B156: 52149 | C156: 硬木戒指 | D156: 2 | E156: 0 | F156: 5 | G156: 2#88 | H156: 2#104 | I156: 1 | J156: 0 | K156: 0 | M156: 0 | N156: 0 | P156: =_xlfn.IFNA(VLOOKUP(L156,[2]汇总!A:C,3,0),"") ->  | S156: 2 | T156: 88 | V156: 2 | W156: 104
B157: 52150 | C157: 黑铁戒指 | D157: 2 | E157: 0 | F157: 5 | G157: 2#91 | H157: 2#108 | I157: 1 | J157: 0 | K157: 0 | M157: 0 | N157: 0 | P157: =_xlfn.IFNA(VLOOKUP(L157,[2]汇总!A:C,3,0),"") ->  | S157: 2 | T157: 91 | V157: 2 | W157: 108
B158: 52151 | C158: 黄铜戒指 | D158: 2 | E158: 0 | F158: 5 | G158: 2#95 | H158: 2#112 | I158: 1 | J158: 0 | K158: 1 | M158: 0 | N158: 0 | P158: =_xlfn.IFNA(VLOOKUP(L158,[2]汇总!A:C,3,0),"") ->  | S158: 2 | T158: 95 | V158: 2 | W158: 112
B159: 52152 | C159: 锻钢戒指 | D159: 2 | E159: 0 | F159: 5 | G159: 2#98 | H159: 2#116 | I159: 1 | J159: 0 | K159: 1 | M159: 0 | N159: 0 | P159: =_xlfn.IFNA(VLOOKUP(L159,[2]汇总!A:C,3,0),"") ->  | S159: 2 | T159: 98 | V159: 2 | W159: 116
B160: 52153 | C160: 赤金戒指 | D160: 2 | E160: 0 | F160: 5 | G160: 2#102 | H160: 2#120 | I160: 1 | J160: 0 | K160: 1 | M160: 0 | N160: 0 | P160: =_xlfn.IFNA(VLOOKUP(L160,[2]汇总!A:C,3,0),"") ->  | S160: 2 | T160: 102 | V160: 2 | W160: 120
B161: 52154 | C161: 灵玉戒指 | D161: 2 | E161: 0 | F161: 5 | G161: 2#105 | H161: 2#124 | I161: 2 | J161: 0 | K161: 1 | M161: 0 | N161: 0 | P161: =_xlfn.IFNA(VLOOKUP(L161,[2]汇总!A:C,3,0),"") ->  | S161: 2 | T161: 105 | V161: 2 | W161: 124
B162: 52155 | C162: 地龙戒指 | D162: 2 | E162: 0 | F162: 5 | G162: 2#108 | H162: 2#128 | I162: 2 | J162: 0 | K162: 1 | M162: 0 | N162: 0 | P162: =_xlfn.IFNA(VLOOKUP(L162,[2]汇总!A:C,3,0),"") ->  | S162: 2 | T162: 108 | V162: 2 | W162: 128
B163: 52156 | C163: 妖麟戒指 | D163: 2 | E163: 0 | F163: 5 | G163: 2#119 | H163: 2#140 | I163: 2 | J163: 0 | K163: 1 | M163: 0 | N163: 0 | P163: =_xlfn.IFNA(VLOOKUP(L163,[2]汇总!A:C,3,0),"") ->  | S163: 2 | T163: 119 | V163: 2 | W163: 140
B164: 52157 | C164: 猎户皮带 | D164: 2 | E164: 0 | F164: 6 | G164: 1#544 | H164: 1#640 | I164: 1 | J164: 0 | K164: 0 | M164: 0 | N164: 0 | P164: =_xlfn.IFNA(VLOOKUP(L164,[2]汇总!A:C,3,0),"") ->  | S164: 1 | T164: 544 | V164: 1 | W164: 640
B165: 52158 | C165: 兽皮束带 | D165: 2 | E165: 0 | F165: 6 | G165: 1#575 | H165: 1#677 | I165: 1 | J165: 0 | K165: 0 | M165: 0 | N165: 0 | P165: =_xlfn.IFNA(VLOOKUP(L165,[2]汇总!A:C,3,0),"") ->  | S165: 1 | T165: 575 | V165: 1 | W165: 677
B166: 52159 | C166: 坚固腰带 | D166: 2 | E166: 0 | F166: 6 | G166: 1#606 | H166: 1#714 | I166: 1 | J166: 0 | K166: 0 | M166: 0 | N166: 0 | P166: =_xlfn.IFNA(VLOOKUP(L166,[2]汇总!A:C,3,0),"") ->  | S166: 1 | T166: 606 | V166: 1 | W166: 714
B167: 52160 | C167: 家传腰带 | D167: 2 | E167: 0 | F167: 6 | G167: 1#638 | H167: 1#751 | I167: 1 | J167: 0 | K167: 0 | M167: 0 | N167: 0 | P167: =_xlfn.IFNA(VLOOKUP(L167,[2]汇总!A:C,3,0),"") ->  | S167: 1 | T167: 638 | V167: 1 | W167: 751
B168: 52161 | C168: 游侠束带 | D168: 2 | E168: 0 | F168: 6 | G168: 1#669 | H168: 1#788 | I168: 1 | J168: 0 | K168: 0 | M168: 0 | N168: 0 | P168: =_xlfn.IFNA(VLOOKUP(L168,[2]汇总!A:C,3,0),"") ->  | S168: 1 | T168: 669 | V168: 1 | W168: 788
B169: 52162 | C169: 戍卫腰带 | D169: 2 | E169: 0 | F169: 6 | G169: 1#701 | H169: 1#825 | I169: 1 | J169: 0 | K169: 0 | M169: 0 | N169: 0 | P169: =_xlfn.IFNA(VLOOKUP(L169,[2]汇总!A:C,3,0),"") ->  | S169: 1 | T169: 701 | V169: 1 | W169: 825
B170: 52163 | C170: 硬木腰带 | D170: 2 | E170: 0 | F170: 6 | G170: 1#732 | H170: 1#862 | I170: 1 | J170: 0 | K170: 0 | M170: 0 | N170: 0 | P170: =_xlfn.IFNA(VLOOKUP(L170,[2]汇总!A:C,3,0),"") ->  | S170: 1 | T170: 732 | V170: 1 | W170: 862
B171: 52164 | C171: 黑铁腰带 | D171: 2 | E171: 0 | F171: 6 | G171: 1#764 | H171: 1#899 | I171: 1 | J171: 0 | K171: 0 | M171: 0 | N171: 0 | P171: =_xlfn.IFNA(VLOOKUP(L171,[2]汇总!A:C,3,0),"") ->  | S171: 1 | T171: 764 | V171: 1 | W171: 899
B172: 52165 | C172: 黄铜腰带 | D172: 2 | E172: 0 | F172: 6 | G172: 1#795 | H172: 1#936 | I172: 1 | J172: 0 | K172: 1 | M172: 0 | N172: 0 | P172: =_xlfn.IFNA(VLOOKUP(L172,[2]汇总!A:C,3,0),"") ->  | S172: 1 | T172: 795 | V172: 1 | W172: 936
B173: 52166 | C173: 锻钢腰带 | D173: 2 | E173: 0 | F173: 6 | G173: 1#827 | H173: 1#973 | I173: 1 | J173: 0 | K173: 1 | M173: 0 | N173: 0 | P173: =_xlfn.IFNA(VLOOKUP(L173,[2]汇总!A:C,3,0),"") ->  | S173: 1 | T173: 827 | V173: 1 | W173: 973
B174: 52167 | C174: 赤金腰带 | D174: 2 | E174: 0 | F174: 6 | G174: 1#858 | H174: 1#1010 | I174: 1 | J174: 0 | K174: 1 | M174: 0 | N174: 0 | P174: =_xlfn.IFNA(VLOOKUP(L174,[2]汇总!A:C,3,0),"") ->  | S174: 1 | T174: 858 | V174: 1 | W174: 1010
B175: 52168 | C175: 灵玉腰带 | D175: 2 | E175: 0 | F175: 6 | G175: 1#889 | H175: 1#1047 | I175: 2 | J175: 0 | K175: 1 | M175: 0 | N175: 0 | P175: =_xlfn.IFNA(VLOOKUP(L175,[2]汇总!A:C,3,0),"") ->  | S175: 1 | T175: 889 | V175: 1 | W175: 1047
B176: 52169 | C176: 地龙皮带 | D176: 2 | E176: 0 | F176: 6 | G176: 1#921 | H176: 1#1084 | I176: 2 | J176: 0 | K176: 1 | M176: 0 | N176: 0 | P176: =_xlfn.IFNA(VLOOKUP(L176,[2]汇总!A:C,3,0),"") ->  | S176: 1 | T176: 921 | V176: 1 | W176: 1084
B177: 52170 | C177: 妖麟皮带 | D177: 2 | E177: 0 | F177: 6 | G177: 1#957 | H177: 1#1126 | I177: 2 | J177: 0 | K177: 1 | M177: 0 | N177: 0 | P177: =_xlfn.IFNA(VLOOKUP(L177,[2]汇总!A:C,3,0),"") ->  | S177: 1 | T177: 957 | V177: 1 | W177: 1126
B178: 53001 | C178: 乌木法杖 | D178: 3 | E178: 3 | F178: 1 | G178: 2#408 | H178: 2#480 | I178: 3 | J178: 0 | K178: 1 | M178: 0 | N178: 0 | P178: =_xlfn.IFNA(VLOOKUP(L178,[2]汇总!A:C,3,0),"") ->  | S178: 2 | T178: 408 | V178: 2 | W178: 480
B179: 53002 | C179: 陨铁法杖 | D179: 3 | E179: 3 | F179: 1 | G179: 2#438 | H179: 2#516 | I179: 4 | J179: 0 | K179: 1 | M179: 0 | N179: 0 | P179: =_xlfn.IFNA(VLOOKUP(L179,[2]汇总!A:C,3,0),"") ->  | S179: 2 | T179: 438 | V179: 2 | W179: 516
B180: 53003 | C180: 寒铜法杖 | D180: 3 | E180: 3 | F180: 1 | G180: 2#459 | H180: 2#540 | I180: 3 | J180: 0 | K180: 1 | M180: 30 | N180: 0 | P180: =_xlfn.IFNA(VLOOKUP(L180,[2]汇总!A:C,3,0),"") ->  | S180: 2 | T180: 459 | V180: 2 | W180: 540
B181: 53004 | C181: 秘钢法杖 | D181: 3 | E181: 3 | F181: 1 | G181: 2#489 | H181: 2#576 | I181: 3 | J181: 0 | K181: 1 | M181: 40 | N181: 0 | P181: =_xlfn.IFNA(VLOOKUP(L181,[2]汇总!A:C,3,0),"") ->  | S181: 2 | T181: 489 | V181: 2 | W181: 576
B182: 53005 | C182: 玄金法杖 | D182: 3 | E182: 3 | F182: 1 | G182: 2#479 | H182: 2#564 | I182: 3 | J182: 1 | K182: 2 | M182: 0 | N182: 0 | P182: =_xlfn.IFNA(VLOOKUP(L182,[2]汇总!A:C,3,0),"") ->  | S182: 2 | T182: 479 | V182: 2 | W182: 564
B183: 53006 | C183: 墨玉法杖 | D183: 3 | E183: 3 | F183: 1 | G183: 2#499 | H183: 2#588 | I183: 4 | J183: 1 | K183: 2 | M183: 0 | N183: 0 | P183: =_xlfn.IFNA(VLOOKUP(L183,[2]汇总!A:C,3,0),"") ->  | S183: 2 | T183: 499 | V183: 2 | W183: 588
B184: 53007 | C184: 神行法杖 | D184: 3 | E184: 3 | F184: 1 | G184: 2#520 | H184: 2#612 | I184: 3 | J184: 1 | K184: 2 | M184: 0 | N184: 0 | P184: =_xlfn.IFNA(VLOOKUP(L184,[2]汇总!A:C,3,0),"") ->  | S184: 2 | T184: 520 | V184: 2 | W184: 612
B185: 53008 | C185: 乘风法杖 | D185: 3 | E185: 3 | F185: 1 | G185: 2#530 | H185: 2#624 | I185: 3 | J185: 1 | K185: 2 | M185: 50 | N185: 0 | P185: =_xlfn.IFNA(VLOOKUP(L185,[2]汇总!A:C,3,0),"") ->  | S185: 2 | T185: 530 | V185: 2 | W185: 624
B186: 53009 | C186: 光羽法杖 | D186: 3 | E186: 3 | F186: 1 | G186: 2#550 | H186: 2#648 | I186: 3 | J186: 1 | K186: 2 | M186: 60 | N186: 0 | P186: =_xlfn.IFNA(VLOOKUP(L186,[2]汇总!A:C,3,0),"") ->  | S186: 2 | T186: 550 | V186: 2 | W186: 648
B187: 53010 | C187: 破空法杖 | D187: 3 | E187: 3 | F187: 1 | G187: 2#571 | H187: 2#672 | I187: 3 | J187: 1 | K187: 2 | M187: 70 | N187: 0 | P187: =_xlfn.IFNA(VLOOKUP(L187,[2]汇总!A:C,3,0),"") ->  | S187: 2 | T187: 571 | V187: 2 | W187: 672
B188: 53011 | C188: 逐光法杖 | D188: 3 | E188: 3 | F188: 1 | G188: 2#550 | H188: 2#648 | I188: 3 | J188: 0 | K188: 0 | L188: 310001 | M188: 0 | N188: 0 | O188: 500 | P188: =_xlfn.IFNA(VLOOKUP(L188,[2]汇总!A:C,3,0),"") -> 发动技能后，减少目标50点护甲，持续整场战斗，最多可减少400点。 | S188: 2 | T188: 550 | V188: 2 | W188: 648
B189: 53012 | C189: 轻尘法杖 | D189: 3 | E189: 3 | F189: 1 | G189: 2#571 | H189: 2#672 | I189: 3 | J189: 0 | K189: 0 | L189: 310002 | M189: 0 | N189: 0 | O189: 500 | P189: =_xlfn.IFNA(VLOOKUP(L189,[2]汇总!A:C,3,0),"") -> 造成的伤害暴击时，有10%的概率造成200%的暴击伤害。 | S189: 2 | T189: 571 | V189: 2 | W189: 672
B190: 53013 | C190: 洞察法杖 | D190: 3 | E190: 3 | F190: 1 | G190: 2#591 | H190: 2#696 | I190: 3 | J190: 0 | K190: 0 | L190: 310003 | M190: 0 | N190: 0 | O190: 500 | P190: =_xlfn.IFNA(VLOOKUP(L190,[2]汇总!A:C,3,0),"") -> 造成伤害时，额外增加200点伤害。 | S190: 2 | T190: 591 | V190: 2 | W190: 696
B191: 53014 | C191: 屠戮法杖 | D191: 3 | E191: 3 | F191: 1 | G191: 2#612 | H191: 2#720 | I191: 3 | J191: 0 | K191: 0 | L191: 310004 | M191: 0 | N191: 0 | O191: 500 | P191: =_xlfn.IFNA(VLOOKUP(L191,[2]汇总!A:C,3,0),"") -> 进入战斗后，每1秒回复35生命。 | S191: 2 | T191: 612 | V191: 2 | W191: 720
B192: 53015 | C192: 乌木短剑 | D192: 3 | E192: 2 | F192: 1 | G192: 2#408 | H192: 2#480 | I192: 3 | J192: 0 | K192: 1 | M192: 0 | N192: 0 | P192: =_xlfn.IFNA(VLOOKUP(L192,[2]汇总!A:C,3,0),"") ->  | S192: 2 | T192: 408 | V192: 2 | W192: 480
B193: 53016 | C193: 陨铁短剑 | D193: 3 | E193: 2 | F193: 1 | G193: 2#438 | H193: 2#516 | I193: 4 | J193: 0 | K193: 1 | M193: 0 | N193: 0 | P193: =_xlfn.IFNA(VLOOKUP(L193,[2]汇总!A:C,3,0),"") ->  | S193: 2 | T193: 438 | V193: 2 | W193: 516
B194: 53017 | C194: 寒铜短剑 | D194: 3 | E194: 2 | F194: 1 | G194: 2#459 | H194: 2#540 | I194: 3 | J194: 0 | K194: 1 | M194: 30 | N194: 0 | P194: =_xlfn.IFNA(VLOOKUP(L194,[2]汇总!A:C,3,0),"") ->  | S194: 2 | T194: 459 | V194: 2 | W194: 540
B195: 53018 | C195: 秘钢短剑 | D195: 3 | E195: 2 | F195: 1 | G195: 2#489 | H195: 2#576 | I195: 3 | J195: 0 | K195: 1 | M195: 40 | N195: 0 | P195: =_xlfn.IFNA(VLOOKUP(L195,[2]汇总!A:C,3,0),"") ->  | S195: 2 | T195: 489 | V195: 2 | W195: 576
B196: 53019 | C196: 玄金长剑 | D196: 3 | E196: 2 | F196: 1 | G196: 2#479 | H196: 2#564 | I196: 3 | J196: 1 | K196: 2 | M196: 0 | N196: 0 | P196: =_xlfn.IFNA(VLOOKUP(L196,[2]汇总!A:C,3,0),"") ->  | S196: 2 | T196: 479 | V196: 2 | W196: 564
B197: 53020 | C197: 墨玉长剑 | D197: 3 | E197: 2 | F197: 1 | G197: 2#499 | H197: 2#588 | I197: 4 | J197: 1 | K197: 2 | M197: 0 | N197: 0 | P197: =_xlfn.IFNA(VLOOKUP(L197,[2]汇总!A:C,3,0),"") ->  | S197: 2 | T197: 499 | V197: 2 | W197: 588
B198: 53021 | C198: 神行长剑 | D198: 3 | E198: 2 | F198: 1 | G198: 2#520 | H198: 2#612 | I198: 3 | J198: 1 | K198: 2 | M198: 0 | N198: 0 | P198: =_xlfn.IFNA(VLOOKUP(L198,[2]汇总!A:C,3,0),"") ->  | S198: 2 | T198: 520 | V198: 2 | W198: 612
B199: 53022 | C199: 乘风长剑 | D199: 3 | E199: 2 | F199: 1 | G199: 2#530 | H199: 2#624 | I199: 3 | J199: 1 | K199: 2 | M199: 50 | N199: 0 | P199: =_xlfn.IFNA(VLOOKUP(L199,[2]汇总!A:C,3,0),"") ->  | S199: 2 | T199: 530 | V199: 2 | W199: 624
B200: 53023 | C200: 光羽之刺 | D200: 3 | E200: 2 | F200: 1 | G200: 2#550 | H200: 2#648 | I200: 3 | J200: 1 | K200: 2 | M200: 60 | N200: 0 | P200: =_xlfn.IFNA(VLOOKUP(L200,[2]汇总!A:C,3,0),"") ->  | S200: 2 | T200: 550 | V200: 2 | W200: 648
... 434 more rows

Sheet 装备属性重制版辅助表
A1: 大区间装备 | D1: 改动后 | K1: 主属性重新分段 | R1: 装备数量 | Z1: 副属性重新分段 | AC1: 绿2 | AD1: 蓝3 | AE1: 紫4 | AF1: 橙5 | AG1: 合计 | CI1: 5 | CJ1: 57 | CK1: =VLOOKUP(CI1,$CO$15:$CS$42,5,FALSE) -> 66
B2: 2#780 | C2: 2#1275 | E2: =B2 -> 2#780 | F2: =RIGHT(C2,LEN(C2)-FIND("#",C2,1)) -> 1275 | G2: =INT(F2*0.85) -> 1083 | H2: =LEFT(C2,2)&G2 -> 2#1083 | K2: 紫 | O2: 橙 | R2: 4 | S2: 低级 | T2: 25% | U2: 30% | AB2: 效果命中 | AD2: 20 | AE2: 30 | AF2: 50 | AG2: 100 | CI2: 53 | CJ2: 1800 | CK2: =VLOOKUP(CI2,$CO$15:$CS$42,5,FALSE) -> 1800
B3: =B2 -> 2#780 | C3: =C2 -> 2#1275 | E3: 2#780 | F3: 1275 | G3: 1083 | H3: 2#1083 | K3: 2#780 | L3: 2#1275 | O3: 2#1440 | P3: 2#2160 | R3: 1 | S3: 重铸50级基础 | T3: 35% | U3: 40% | V3: 重铸后 | W3: 55% | X3: 65% | AB3: 效果抵抗 | AD3: 20 | AE3: 30 | AF3: 50 | AG3: 100 | CI3: 54 | CJ3: 900 | CK3: 900
B4: 2#780 | C4: 2#1275 | E4: 2#780 | F4: 1275 | G4: 1083 | H4: 2#1083 | K4: 3#845 | L4: 3#1382 | O4: 3#1560 | P4: 3#2340 | R4: 1 | S4: 中级 | T4: 65% | U4: 70% | AB4: 暴击率 | AE4: 10 | AF4: 20 | AG4: 30 | CI4: 55 | CJ4: 450 | CK4: 600
B5: 2#780 | C5: 2#1275 | E5: 2#780 | F5: 1275 | G5: 1083 | H5: 2#1083 | K5: 4#845 | L5: 4#1382 | O5: 4#1560 | P5: 4#2340 | R5: 3 | S5: 高级 | T5: 90% | U5: 95% | AB5: 暴伤 | AE5: 30 | AF5: 60 | AG5: 90 | CI5: 56 | CJ5: 1200 | CK5: 1600
B6: 2#780 | C6: 2#1275 | E6: 2#780 | F6: 1275 | G6: 1083 | H6: 2#1083 | K6: 1#7800 | L6: 1#12756 | O6: 1#14400 | P6: 1#21600 | AB6: 属性攻击 | AF6: 1600 | AG6: 1600 | CI6: 1 | CJ6: 765 | CK6: 780
B7: 2#780 | C7: 2#1275 | E7: 2#780 | F7: 1275 | G7: 1083 | H7: 2#1083 | K7: 5#293 | L7: 5#480 | O7: 5#560 | P7: 5#840 | AB7: 属性抗性 | AF7: 1600 | AG7: 1600 | CI7: 2 | CJ7: 95 | CK7: 144
B8: 2#780 | C8: 2#1275 | E8: 2#780 | F8: 1275 | G8: 1083 | H8: 2#1083 | K8: 2#260 | L8: 2#425 | O8: 2#480 | P8: 2#720 | R8: 4 | S8: 低级 | T8: 10% | U8: 15% | AB8: 抗暴率 | AF8: 20 | AG8: 20 | CI8: 3 | CJ8: 166 | CK8: 189
B9: 2#780 | C9: 2#1275 | E9: 2#780 | F9: 1275 | G9: 1083 | H9: 2#1083 | K9: 1#2080 | L9: 1#3401 | O9: 1#3840 | P9: 1#5760 | R9: 4 | S9: 中级 | T9: 35% | U9: 40% | V9: 重铸后 | W9: 60% | X9: 70% | AU9: 紫高 | BI9: 紫低 | BV9: 紫中 | CI9: 4 | CJ9: 166 | CK9: 189
CI10: 61 | CJ10: 150 | CK10: 300
CI11: 60 | CJ11: 75 | CK11: 600
B14: =B9 -> 2#780 | C14: =C9 -> 2#1275 | E14: =B14 -> 2#780 | F14: =RIGHT(C14,LEN(C14)-FIND("#",C14,1)) -> 1275 | G14: =INT(F14*0.85) -> 1083 | H14: =LEFT(C14,2)&G14 -> 2#1083 | R14: 1 | S14: 重铸50级基础 | T14: 40% | U14: 45% | AC14: 绿2 | AD14: 蓝3 | AE14: 紫4 | AF14: 橙5 | AG14: 合计 | AU14: 属性 | BG14: 最终 | BI14: 属性 | BT14: 最终 | BV14: 属性 | CG14: 最终 | CI14: 橙下 | CS14: 最终 | CU14: 橙中 | DE14: 最终 | DH14: 橙高 | DR14: 最终
B15: =B14 -> 2#780 | C15: =C14 -> 2#1275 | E15: 2#780 | F15: 1275 | G15: 1083 | H15: 2#1083 | I15: 4 | J15: 低级 | K15: 25% | L15: 30% | M15: 4 | N15: 低级 | O15: 10% | P15: 15% | R15: 1 | S15: 中上 | T15: 75% | U15: 80% | AB15: 效果命中 | AD15: 5 | AE15: 10 | AF15: 10 | AG15: 25 | AU15: 5 | AV15: 86 | AW15: =AM50 -> 67 | AX15: =AU15 -> 5 | AY15: =AV15+AV26+AV37 -> 172 | AZ15: =AW15+AW26+AW37 -> 133 | BB15: 5 | BC15: =AY15 -> 172 | BD15: 133 | BE15: =VLOOKUP(BB15,$W$24:$X$42,2,FALSE) -> 速度 | BF15: 3 | BG15: =INT(BC15/$BF15) -> 57 | BH15: =INT(BD15/$BF15) -> 44 | BI15: 5 | BJ15: =AJ50 -> 48 | BK15: =AI50 -> 28 | BL15: =BI15 -> 5 | BM15: =BJ15+BJ26+BJ37 -> 96 | BN15: =BK15+BK26+BK37 -> 56 | BP15: 5 | BQ15: 96 | BR15: 56 | BS15: 3 | BT15: =INT(BQ15/$BF15) -> 32 | BU15: =INT(BR15/$BF15) -> 18 | BV15: 5 | BW15: 67 | BX15: 48 | BY15: =BV15 -> 5 | BZ15: =BW15+BW26+BW37 -> 133 | CA15: =BX15+BX26+BX37 -> 96 | CC15: 5 | CD15: 133 | CE15: 96 | CF15: 3 | CG15: =INT(CD15/$BF15) -> 44 | CH15: =INT(CE15/$BF15) -> 32 | CI15: 5 | CJ15: =AI82 -> 100 | CK15: =AJ82 -> 117 | CL15: =CI15 -> 5 | CM15: =CJ15+CJ39+CJ50 -> 200 | CN15: =CK15+CK39+CK50 -> 233 | CO15: =CL15 -> 5 | CP15: =CM15 -> 200 | CQ15: =CN15 -> 233 | CR15: 3 | CS15: =INT(CP15/CR15) -> 66 | CT15: =INT(CQ15/CR15) -> 77 | CU15: 5 | CV15: =AK82 -> 117 | CW15: =AL82 -> 134 | CX15: =CU15 -> 5 | CY15: =CV15+CV39+CV50 -> 233 | CZ15: =CW15+CW39+CW50 -> 268 | DA15: =CX15 -> 5 | DB15: 233 | DC15: 268 | DD15: 3 | DE15: =INT(DB15/$CR15) -> 77 | DF15: =INT(DC15/$CR15) -> 89 | DG15: =VLOOKUP(DA15,$W$24:$X$42,2,FALSE) -> 速度 | DH15: 5 | DI15: 134 | DJ15: 168 | DK15: =DH15 -> 5 | DL15: =DI15+DI39+DI50 -> 268 | DM15: =DJ15+DJ39+DJ50 -> 336 | DN15: 5 | DO15: 268 | DP15: 336 | DQ15: 3 | DR15: =INT(DO15/$CR15) -> 89 | DS15: =INT(DP15/$CR15) -> 112
B16: 2#780 | C16: 2#1275 | E16: 2#780 | F16: 1275 | G16: 1083 | H16: 2#1083 | J16: 属性 | K16: 紫下 | L16: 紫上 | O16: 橙下 | P16: 橙上 | R16: 3 | S16: 高级 | T16: 90% | U16: 95% | Y16: 基础模板 | AB16: 效果抵抗 | AD16: 5 | AE16: 10 | AF16: 10 | AG16: 25 | AH16: 紫 | AU16: 53 | AV16: 675 | AW16: =AM51 -> 525 | AX16: =AU16 -> 53 | AY16: =AV16+AV22+AV27+AV38 -> 3600 | AZ16: =AW16+AW22+AW27+AW38 -> 2800 | BB16: 53 | BC16: =AY16 -> 3600 | BD16: 2800 | BE16: =VLOOKUP(BB16,$W$24:$X$42,2,FALSE) -> 效果命中 | BF16: 2 | BG16: =INT(BC16/$BF16) -> 1800 | BH16: 1400 | BI16: 53 | BJ16: =AJ51 -> 375 | BK16: =AI51 -> 225 | BL16: 53 | BM16: =BJ16+BJ22+BJ27+BJ38 -> 2000 | BN16: =BK16+BK22+BK27+BK38 -> 1200 | BP16: 53 | BQ16: 2000 | BR16: 1200 | BS16: 2 | BT16: =INT(BQ16/$BF16) -> 1000 | BU16: =INT(BR16/$BF16) -> 600 | BV16: 53 | BW16: 525 | BX16: 375 | BY16: 53 | BZ16: =BW16+BW22+BW27+BW38 -> 2800 | CA16: =BX16+BX22+BX27+BX38 -> 2000 | CC16: 53 | CD16: 2800 | CE16: 2000 | CF16: 2 | CG16: =INT(CD16/$BF16) -> 1400 | CH16: 1000 | CI16: 53 | CJ16: =AI83 -> 750 | CK16: =AJ83 -> 875 | CL16: =CI16 -> 53 | CM16: =CJ16+CJ28+CJ40+CJ51 -> 3600 | CN16: =CK16+CK28+CK40+CK51 -> 4200 | CO16: =CL16 -> 53 | CP16: =CM16 -> 3600 | CQ16: 4200 | CR16: 2 | CS16: =INT(CP16/CR16) -> 1800 | CT16: =INT(CQ16/CR16) -> 2100 | CU16: 53 | CV16: =AK83 -> 875 | CW16: =AL83 -> 1000 | CX16: =CU16 -> 53 | CY16: =CV16+CV28+CV40+CV51 -> 4200 | CZ16: =CW16+CW28+CW40+CW51 -> 4800 | DA16: 53 | DB16: 4200 | DC16: 4800 | DD16: 2 | DE16: =INT(DB16/$CR16) -> 2100 | DF16: 2400 | DG16: =VLOOKUP(DA16,$W$24:$X$42,2,FALSE) -> 效果命中 | DH16: 53 | DI16: 1000 | DJ16: 1250 | DK16: =DH16 -> 53 | DL16: =DI16+DI28+DI40+DI51 -> 4800 | DM16: =DJ16+DJ28+DJ40+DJ51 -> 6000 | DN16: 53 | DO16: 4800 | DP16: 6000 | DQ16: 2 | DR16: 2400 | DS16: 3000
B17: 2#780 | C17: 2#1275 | E17: 2#780 | F17: 1275 | G17: 1083 | H17: 2#1083 | I17: 武器 | J17: 2 | K17: =RIGHT(K3,LEN(K3)-FIND("#",K3,1)) -> 780 | L17: =RIGHT(L3,LEN(L3)-FIND("#",L3,1)) -> 1275 | O17: =RIGHT(O3,LEN(O3)-FIND("#",O3,1)) -> 1440 | P17: =RIGHT(P3,LEN(P3)-FIND("#",P3,1)) -> 2160 | Y17: 生命 | Z17: 2000 | AB17: 速度 | AD17: 211.2 | AE17: 374.176 | AF17: 633.6 | AG17: 1218.976 | AU17: 54 | AV17: 675 | AW17: 525 | AX17: 54 | AY17: =AV17+AV23+AV28+AV42 -> 3600 | AZ17: =AW17+AW23+AW28+AW42 -> 2800 | BB17: 54 | BC17: 3600 | BD17: 2800 | BE17: 效果抵抗 | BF17: 4 | BG17: =INT(BC17/$BF17) -> 900 | BH17: 700 | BI17: 54 | BJ17: 375 | BK17: =AI52 -> 225 | BL17: 54 | BM17: =BJ17+BJ23+BJ28+BJ42 -> 2000 | BN17: =BK17+BK23+BK28+BK42 -> 1200 | BP17: 54 | BQ17: 2000 | BR17: 1200 | BS17: 4 | BT17: =INT(BQ17/$BF17) -> 500 | BU17: 300 | BV17: 54 | BW17: 525 | BX17: 375 | BY17: 54 | BZ17: =BW17+BW23+BW28+BW42 -> 2800 | CA17: =BX17+BX23+BX28+BX42 -> 2000 | CC17: 54 | CD17: 2800 | CE17: 2000 | CF17: 4 | CG17: 700 | CH17: 500 | CI17: 54 | CJ17: 750 | CK17: 875 | CL17: 54 | CM17: =CJ17+CJ29+CJ41+CJ56 -> 3600 | CN17: =CK17+CK29+CK41+CK56 -> 4200 | CO17: 54 | CP17: 3600 | CQ17: 4200 | CR17: 4 | CS17: 900 | CT17: 1050 | CU17: 54 | CV17: 875 | CW17: 1000 | CX17: =CU17 -> 54 | CY17: =CV17+CV29+CV41+CV56 -> 4200 | CZ17: =CW17+CW29+CW41+CW56 -> 4800 | DA17: 54 | DB17: 4200 | DC17: 4800 | DD17: 4 | DE17: 1050 | DF17: 1200 | DG17: 效果抵抗 | DH17: 54 | DI17: 1000 | DJ17: 1250 | DK17: =DH17 -> 54 | DL17: =DI17+DI29+DI41+DI56 -> 4800 | DM17: =DJ17+DJ29+DJ41+DJ56 -> 6000 | DN17: 54 | DO17: 4800 | DP17: 6000 | DQ17: 4 | DR17: 1200 | DS17: 1500
B18: 2#780 | C18: 2#1275 | E18: 2#780 | F18: 1275 | G18: 1083 | H18: 2#1083 | I18: 甲 | J18: 3 | K18: =RIGHT(K4,LEN(K4)-FIND("#",K4,1)) -> 845 | L18: =RIGHT(L4,LEN(L4)-FIND("#",L4,1)) -> 1382 | O18: =RIGHT(O4,LEN(O4)-FIND("#",O4,1)) -> 1560 | P18: =RIGHT(P4,LEN(P4)-FIND("#",P4,1)) -> 2340 | Y18: 攻击 | Z18: 200 | AB18: 生命百分比 | AD18: 5 | AE18: 10 | AF18: 10 | AG18: 25 | AU18: 55 | AV18: 540 | AW18: 420 | AX18: 55 | AY18: =AV18+AV29+AV35+AV39 -> 1350 | AZ18: =AW18+AW29+AW35+AW39 -> 1050 | BB18: 55 | BC18: 1350 | BD18: 1050 | BE18: 暴击率 | BF18: 3 | BG18: 450 | BH18: 350 | BI18: 55 | BJ18: 300 | BK18: =AI53 -> 180 | BL18: 55 | BM18: =BJ18+BJ29+BJ35+BJ39 -> 750 | BN18: =BK18+BK29+BK35+BK39 -> 450 | BP18: 55 | BQ18: 750 | BR18: 450 | BS18: 3 | BT18: 250 | BU18: 150 | BV18: 55 | BW18: 420 | BX18: 300 | BY18: 55 | BZ18: =BW18+BW29+BW35+BW39 -> 1050 | CA18: =BX18+BX29+BX35+BX39 -> 750 | CC18: 55 | CD18: 1050 | CE18: 750 | CF18: 3 | CG18: 350 | CH18: 250 | CI18: 55 | CJ18: 720 | CK18: 840 | CL18: 55 | CM18: =CJ18+CJ42+CJ48+CJ52 -> 1800 | CN18: =CK18+CK42+CK48+CK52 -> 2100 | CO18: 55 | CP18: 1800 | CQ18: 2100 | CR18: 3 | CS18: 600 | CT18: 700 | CU18: 55 | CV18: 840 | CW18: 960 | CX18: =CU18 -> 55 | CY18: =CV18+CV42+CV48+CV52 -> 2100 | CZ18: =CW18+CW42+CW48+CW52 -> 2400 | DA18: 55 | DB18: 2100 | DC18: 2400 | DD18: 3 | DE18: 700 | DF18: 800 | DG18: 暴击率 | DH18: 55 | DI18: 960 | DJ18: 1200 | DK18: =DH18 -> 55 | DL18: =DI18+DI42+DI48+DI52 -> 2400 | DM18: =DJ18+DJ42+DJ48+DJ52 -> 3000 | DN18: 55 | DO18: 2400 | DP18: 3000 | DQ18: 3 | DR18: 800 | DS18: 1000
B19: 2#780 | C19: 2#1275 | E19: 2#780 | F19: 1275 | G19: 1083 | H19: 2#1083 | I19: 甲 | J19: 4 | K19: 845 | L19: 1382 | O19: 1560 | P19: 2340 | Y19: 护甲 | Z19: 200 | AB19: 暴击率 | AE19: 5 | AF19: 10 | AG19: 15 | AU19: 56 | AV19: 1890 | AW19: 1470 | AX19: 56 | AY19: =AV19+AV30+AV36+AV40 -> 3600 | AZ19: =AW19+AW30+AW36+AW40 -> 2800 | BB19: 56 | BC19: 3600 | BD19: 2800 | BE19: 暴伤 | BF19: 3 | BG19: 1200 | BH19: 933 | BI19: 56 | BJ19: 1050 | BK19: 630 | BL19: 56 | BM19: =BJ19+BJ30+BJ36+BJ40 -> 2000 | BN19: =BK19+BK30+BK36+BK40 -> 1200 | BP19: 56 | BQ19: 2000 | BR19: 1200 | BS19: 3 | BT19: 666 | BU19: 400 | BV19: 56 | BW19: 1470 | BX19: 1050 | BY19: 56 | BZ19: =BW19+BW30+BW36+BW40 -> 2800 | CA19: =BX19+BX30+BX36+BX40 -> 2000 | CC19: 56 | CD19: 2800 | CE19: 2000 | CF19: 3 | CG19: 933 | CH19: 666 | CI19: 56 | CJ19: 2520 | CK19: 2940 | CL19: 56 | CM19: =CJ19+CJ43+CJ49+CJ53 -> 4800 | CN19: =CK19+CK43+CK49+CK53 -> 5600 | CO19: 56 | CP19: 4800 | CQ19: 5600 | CR19: 3 | CS19: 1600 | CT19: 1866 | CU19: 56 | CV19: 2940 | CW19: 3360 | CX19: =CU19 -> 56 | CY19: =CV19+CV43+CV49+CV53 -> 5600 | CZ19: =CW19+CW43+CW49+CW53 -> 6400 | DA19: 56 | DB19: 5600 | DC19: 6400 | DD19: 3 | DE19: 1866 | DF19: 2133 | DG19: 暴伤 | DH19: 56 | DI19: 3360 | DJ19: 4200 | DK19: =DH19 -> 56 | DL19: =DI19+DI43+DI49+DI53 -> 6400 | DM19: =DJ19+DJ43+DJ49+DJ53 -> 8000 | DN19: 56 | DO19: 6400 | DP19: 8000 | DQ19: 3 | DR19: 2133 | DS19: 2666
B20: 2#780 | C20: 2#1275 | E20: 2#780 | F20: 1275 | G20: 1083 | H20: 2#1083 | I20: 盔 | J20: 1 | K20: 7800 | L20: 12756 | O20: 14400 | P20: 21600 | Y20: 魔抗 | Z20: 200 | AB20: 暴伤 | AE20: 10 | AF20: 20 | AG20: 30 | AU20: 1 | AV20: 2870 | AW20: 2232 | AX20: 1 | AY20: =AV20+AV31 -> 3826 | AZ20: =AW20+AW31 -> 2976 | BB20: 1 | BC20: 3826 | BD20: 2976 | BE20: 生命 | BF20: 5 | BG20: 765 | BH20: 595 | BI20: 1 | BJ20: 1594 | BK20: 956 | BL20: 1 | BM20: =BJ20+BJ31 -> 2125 | BN20: =BK20+BK31 -> 1274 | BP20: 1 | BQ20: 2125 | BR20: 1274 | BS20: 5 | BT20: 425 | BU20: 254 | BV20: 1 | BW20: 2232 | BX20: 1594 | BY20: 1 | BZ20: =BW20+BW31 -> 2976 | CA20: =BX20+BX31 -> 2125 | CC20: 1 | CD20: 2976 | CE20: 2125 | CF20: 5 | CG20: 595 | CH20: 425 | CI20: 101 | CJ20: 960 | CK20: 1120 | CL20: 101 | CM20: =CJ20 -> 960 | CN20: =CK20 -> 1120 | CO20: 101 | CP20: 960 | CQ20: 1120 | CR20: 2 | CS20: 480 | CT20: 560 | CU20: 101 | CV20: 1120 | CW20: 1280 | CX20: =CU20 -> 101 | CY20: 1120 | CZ20: 1280 | DA20: 101 | DB20: 1120 | DC20: 1280 | DD20: 2 | DE20: 560 | DF20: 640 | DG20: 火焰伤害 | DH20: 101 | DI20: 1280 | DJ20: 1600 | DK20: =DH20 -> 101 | DL20: 1280 | DM20: 1600 | DN20: 101 | DO20: 1280 | DP20: 1600 | DQ20: 2 | DR20: 640 | DS20: 800
B21: 3#845 | C21: 3#1382 | E21: 3#845 | F21: 1382 | G21: 1174 | H21: 3#1174 | I21: 鞋 | J21: 5 | K21: 293 | L21: 480 | O21: 560 | P21: 840 | Y21: 速度 | Z21: 352 | AB21: 抗暴率 | AE21: 5 | AF21: 10 | AG21: 15 | AU21: 2 | AV21: 190 | AW21: 148 | AX21: 2 | AY21: =AV21+AV32 -> 380 | AZ21: =AW21+AW32 -> 296 | BB21: 2 | BC21: 380 | BD21: 296 | BE21: 攻击 | BF21: 4 | BG21: 95 | BH21: 74 | BI21: 2 | BJ21: 106 | BK21: 63 | BL21: 2 | BM21: =BJ21+BJ32 -> 212 | BN21: =BK21+BK32 -> 126 | BP21: 2 | BQ21: 212 | BR21: 126 | BS21: 4 | BT21: 53 | BU21: 31 | BV21: 2 | BW21: 148 | BX21: 106 | BY21: 2 | BZ21: =BW21+BW32 -> 296 | CA21: =BX21+BX32 -> 212 | CC21: 2 | CD21: 296 | CE21: 212 | CF21: 4 | CG21: 74 | CH21: 53 | CI21: 102 | CJ21: 960 | CK21: 1120 | CL21: 102 | CM21: 960 | CN21: 1120 | CO21: 102 | CP21: 960 | CQ21: 1120 | CR21: 2 | CS21: 480 | CT21: 560 | CU21: 102 | CV21: 1120 | CW21: 1280 | CX21: =CU21 -> 102 | CY21: 1120 | CZ21: 1280 | DA21: 102 | DB21: 1120 | DC21: 1280 | DD21: 2 | DE21: 560 | DF21: 640 | DG21: 狂风伤害 | DH21: 102 | DI21: 1280 | DJ21: 1600 | DK21: =DH21 -> 102 | DL21: 1280 | DM21: 1600 | DN21: 102 | DO21: 1280 | DP21: 1600 | DQ21: 2 | DR21: 640 | DS21: 800
B22: 3#845 | C22: 3#1382 | E22: 3#845 | F22: 1382 | G22: 1174 | H22: 3#1174 | I22: 戒 | J22: 2 | K22: 260 | L22: 425 | O22: 480 | P22: 720 | AB22: 攻击百分比 | AF22: 10 | AG22: 10 | AU22: 53 | AV22: 405 | AW22: 315 | BB22: 3 | BC22: =AY24 -> 667 | BD22: 519 | BE22: 护甲 | BF22: 4 | BG22: 166 | BH22: 129 | BI22: 53 | BJ22: 225 | BK22: 135 | BP22: 3 | BQ22: 371 | BR22: 222 | BS22: 4 | BT22: 92 | BU22: 55 | BV22: 53 | BW22: 315 | BX22: 225 | CC22: 3 | CD22: 519 | CE22: 371 | CF22: 4 | CG22: 129 | CH22: 92 | CI22: 103 | CJ22: 960 | CK22: 1120 | CL22: 103 | CM22: 960 | CN22: 1120 | CO22: 103 | CP22: 960 | CQ22: 1120 | CR22: 2 | CS22: 480 | CT22: 560 | CU22: 103 | CV22: 1120 | CW22: 1280 | CX22: =CU22 -> 103 | CY22: 1120 | CZ22: 1280 | DA22: 103 | DB22: 1120 | DC22: 1280 | DD22: 2 | DE22: 560 | DF22: 640 | DG22: 碧水伤害 | DH22: 103 | DI22: 1280 | DJ22: 1600 | DK22: =DH22 -> 103 | DL22: 1280 | DM22: 1600 | DN22: 103 | DO22: 1280 | DP22: 1600 | DQ22: 2 | DR22: 640 | DS22: 800
B23: 3#845 | C23: 3#1382 | E23: 3#845 | F23: 1382 | G23: 1174 | H23: 3#1174 | I23: 带 | J23: 1 | K23: 2080 | L23: 3401 | O23: 3840 | P23: 5760 | AB23: 伤害加成 | AF23: 10 | AG23: 10 | AU23: 54 | AV23: 405 | AW23: 315 | BB23: 4 | BC23: =AY25 -> 667 | BD23: 519 | BE23: 魔抗 | BF23: 4 | BG23: 166 | BH23: 129 | BI23: 54 | BJ23: 225 | BK23: 135 | BP23: 4 | BQ23: 371 | BR23: 222 | BS23: 4 | BT23: 92 | BU23: 55 | BV23: 54 | BW23: 315 | BX23: 225 | CC23: 4 | CD23: 519 | CE23: 371 | CF23: 4 | CG23: 129 | CH23: 92 | CI23: 104 | CJ23: 960 | CK23: 1120 | CL23: 104 | CM23: 960 | CN23: 1120 | CO23: 104 | CP23: 960 | CQ23: 1120 | CR23: 2 | CS23: 480 | CT23: 560 | CU23: 104 | CV23: 1120 | CW23: 1280 | CX23: =CU23 -> 104 | CY23: 1120 | CZ23: 1280 | DA23: 104 | DB23: 1120 | DC23: 1280 | DD23: 2 | DE23: 560 | DF23: 640 | DG23: 大地伤害 | DH23: 104 | DI23: 1280 | DJ23: 1600 | DK23: =DH23 -> 104 | DL23: 1280 | DM23: 1600 | DN23: 104 | DO23: 1280 | DP23: 1600 | DQ23: 2 | DR23: 640 | DS23: 800
B24: 4#845 | C24: 4#1382 | E24: 4#845 | F24: 1382 | G24: 1174 | H24: 4#1174 | I24: 4 | J24: 低级 | K24: 25% | L24: 30% | M24: 4 | N24: 低级 | O24: 10% | P24: 15% | V24: 生命 | W24: 1 | X24: 生命 | AB24: 治疗 | AF24: 20 | AG24: 20 | AU24: 3 | AV24: 477 | AW24: 371 | AX24: =AU24 -> 3 | AY24: =AV24+AV33 -> 667 | AZ24: =AW24+AW33 -> 519 | BB24: 61 | BC24: =AY41 -> 900 | BD24: 700 | BE24: 生命百分比 | BG24: =INT(BC24/6) -> 150 | BH24: =INT(BD24/6) -> 116 | BI24: 3 | BJ24: 265 | BK24: 159 | BL24: =BI24 -> 3 | BM24: =BJ24+BJ33 -> 371 | BN24: =BK24+BK33 -> 222 | BP24: 61 | BQ24: 500 | BR24: 300 | BT24: =INT(BQ24/6) -> 83 | BU24: =INT(BR24/6) -> 50 | BV24: 3 | BW24: 371 | BX24: 265 | BY24: =BV24 -> 3 | BZ24: =BW24+BW33 -> 519 | CA24: =BX24+BX33 -> 371 | CC24: 61 | CD24: 700 | CE24: 500 | CG24: =INT(CD24/6) -> 116 | CH24: =INT(CE24/6) -> 83 | CI24: 105 | CJ24: 960 | CK24: 1120 | CL24: 105 | CM24: 960 | CN24: 1120 | CO24: 105 | CP24: 960 | CQ24: 1120 | CR24: 2 | CS24: 480 | CT24: 560 | CU24: 105 | CV24: 1120 | CW24: 1280 | CX24: =CU24 -> 105 | CY24: 1120 | CZ24: 1280 | DA24: 105 | DB24: 1120 | DC24: 1280 | DD24: 2 | DE24: 560 | DF24: 640 | DG24: 神圣伤害 | DH24: 105 | DI24: 1280 | DJ24: 1600 | DK24: =DH24 -> 105 | DL24: 1280 | DM24: 1600 | DN24: 105 | DO24: 1280 | DP24: 1600 | DQ24: 2 | DR24: 640 | DS24: 800
B25: 4#845 | C25: 4#1382 | E25: 4#845 | F25: 1382 | G25: 1174 | H25: 4#1174 | M25: 紫下 | N25: 紫上 | Q25: 橙下 | R25: 橙上 | V25: 攻击 | W25: 2 | X25: 攻击 | AB25: 受治疗 | AF25: 20 | AG25: 20 | AU25: 4 | AV25: 477 | AW25: 371 | AX25: =AU25 -> 4 | AY25: =AV25+AV34 -> 667 | AZ25: =AW25+AW34 -> 519 | BB25: 60 | BC25: =AY43 -> 450 | BD25: 350 | BE25: 抗暴率 | BG25: =INT(BC25/6) -> 75 | BH25: =INT(BD25/6) -> 58 | BI25: 4 | BJ25: 265 | BK25: 159 | BL25: =BI25 -> 4 | BM25: =BJ25+BJ34 -> 371 | BN25: =BK25+BK34 -> 222 | BP25: 60 | BQ25: 250 | BR25: 150 | BT25: =INT(BQ25/6) -> 41 | BU25: =INT(BR25/6) -> 25 | BV25: 4 | BW25: 371 | BX25: 265 | BY25: =BV25 -> 4 | BZ25: =BW25+BW34 -> 519 | CA25: =BX25+BX34 -> 371 | CC25: 60 | CD25: 350 | CE25: 250 | CG25: =INT(CD25/6) -> 58 | CH25: =INT(CE25/6) -> 41 | CI25: 106 | CJ25: 960 | CK25: 1120 | CL25: 106 | CM25: 960 | CN25: 1120 | CO25: 106 | CP25: 960 | CQ25: 1120 | CR25: 2 | CS25: 480 | CT25: 560 | CU25: 106 | CV25: 1120 | CW25: 1280 | CX25: =CU25 -> 106 | CY25: 1120 | CZ25: 1280 | DA25: 106 | DB25: 1120 | DC25: 1280 | DD25: 2 | DE25: 560 | DF25: 640 | DG25: 黑暗伤害 | DH25: 106 | DI25: 1280 | DJ25: 1600 | DK25: =DH25 -> 106 | DL25: 1280 | DM25: 1600 | DN25: 106 | DO25: 1280 | DP25: 1600 | DQ25: 2 | DR25: 640 | DS25: 800
B26: 4#845 | C26: 4#1382 | E26: 4#845 | F26: 1382 | G26: 1174 | H26: 4#1174 | I26: 武器 | J26: 2 | K26: =INT((L17-K17)*$K$15+K17) -> 903 | L26: =INT((L17-K17)*$L$15+K17) -> 928 | M26: =$J26&"#"&K26 -> 2#903 | N26: =$J26&"#"&L26 -> 2#928 | O26: =INT((P17-O17)*$O$15+O17) -> 1512 | P26: =INT((P17-O17)*$P$15+O17) -> 1548 | Q26: =$J26&"#"&O26 -> 2#1512 | R26: =$J26&"#"&P26 -> 2#1548 | V26: 护甲 | W26: 3 | X26: 护甲 | AB26: 伤害减免 | AF26: 10 | AG26: 10 | AU26: 5 | AV26: 43 | AW26: 33 | BI26: 5 | BJ26: 24 | BK26: 14 | BV26: 5 | BW26: 33 | BX26: 24 | CI26: 1 | CJ26: 3600 | CK26: 4200 | CL26: 1 | CM26: =CJ26+CJ44 -> 4680 | CN26: =CK26+CK44 -> 5460 | CO26: 1 | CP26: 4680 | CQ26: 5460 | CR26: 6 | CS26: 780 | CT26: 910 | CU26: 1 | CV26: 4200 | CW26: 4800 | CX26: =CU26 -> 1 | CY26: =CV26+CV44 -> 5460 | CZ26: =CW26+CW44 -> 6240 | DA26: 1 | DB26: 5460 | DC26: 6240 | DD26: 6 | DE26: 910 | DF26: 1040 | DG26: 生命 | DH26: 1 | DI26: 4800 | DJ26: 6000 | DK26: =DH26 -> 1 | DL26: =DI26+DI44 -> 6240 | DM26: =DJ26+DJ44 -> 7800 | DN26: 1 | DO26: 6240 | DP26: 7800 | DQ26: 6 | DR26: 1040 | DS26: 1300
B27: 1#7800 | C27: 1#12756 | E27: 1#7800 | F27: 12756 | G27: 10842 | H27: 1#10842 | I27: 甲 | J27: 3 | K27: =INT((L18-K18)*$K$15+K18) -> 979 | L27: =INT((L18-K18)*$L$15+K18) -> 1006 | M27: =$J27&"#"&K27 -> 3#979 | N27: 3#1006 | O27: =INT((P18-O18)*$O$15+O18) -> 1638 | P27: =INT((P18-O18)*$P$15+O18) -> 1677 | Q27: =$J27&"#"&O27 -> 3#1638 | R27: =$J27&"#"&P27 -> 3#1677 | V27: 魔抗 | W27: 4 | X27: 魔抗 | AU27: 53 | AV27: 1620 | AW27: 1260 | BI27: 53 | BJ27: 900 | BK27: 540 | BV27: 53 | BW27: 1260 | BX27: 900 | CI27: 2 | CJ27: 216 | CK27: 252 | CL27: 2 | CM27: =CJ27+CJ45 -> 432 | CN27: =CK27+CK45 -> 504 | CO27: 2 | CP27: 432 | CQ27: 504 | CR27: 3 | CS27: 144 | CT27: 168 | CU27: 2 | CV27: 252 | CW27: 288 | CX27: =CU27 -> 2 | CY27: =CV27+CV45 -> 504 | CZ27: =CW27+CW45 -> 576 | DA27: 2 | DB27: 504 | DC27: 576 | DD27: 3 | DE27: 168 | DF27: 192 | DG27: 攻击 | DH27: 2 | DI27: 288 | DJ27: 360 | DK27: =DH27 -> 2 | DL27: =DI27+DI45 -> 576 | DM27: =DJ27+DJ45 -> 720 | DN27: 2 | DO27: 576 | DP27: 720 | DQ27: 3 | DR27: 192 | DS27: 240
B28: 1#7800 | C28: 1#12756 | E28: 1#7800 | F28: 12756 | G28: 10842 | H28: 1#10842 | I28: 甲 | J28: 4 | K28: 979 | L28: 1006 | M28: 4#979 | N28: 4#1006 | O28: 1638 | P28: 1677 | Q28: 4#1638 | R28: 4#1677 | V28: 速度 | W28: 5 | X28: 速度 | AU28: 54 | AV28: 1620 | AW28: 1260 | BI28: 54 | BJ28: 900 | BK28: 540 | BV28: 54 | BW28: 1260 | BX28: 900 | CI28: 53 | CJ28: 450 | CK28: 525 | CO28: =CL30 -> 60 | CP28: =CM30 -> 1800 | CQ28: =CN30 -> 2100 | CR28: 3 | CS28: 600 | CT28: 700 | CU28: 53 | CV28: 525 | CW28: 600 | DA28: =CX30 -> 60 | DB28: =CY30 -> 2100 | DC28: =CZ30 -> 2400 | DD28: 3 | DE28: 700 | DF28: 800 | DG28: 抗暴率 | DH28: 53 | DI28: 600 | DJ28: 750 | DN28: =DK30 -> 60 | DO28: =DL30 -> 2400 | DP28: =DM30 -> 3000 | DQ28: 3 | DR28: 800 | DS28: 1000
B29: 1#7800 | C29: 1#12756 | E29: 1#7800 | F29: 12756 | G29: 10842 | H29: 1#10842 | I29: 盔 | J29: 1 | K29: 9039 | L29: 9286 | M29: 1#9039 | N29: 1#9286 | O29: 15120 | P29: 15480 | Q29: 1#15120 | R29: 1#15480 | V29: 伤害加成 | W29: 51 | X29: 伤害加成 | Y29: 属性分配 | Z29: 武器 | AB29: 铠甲 | AD29: 头饰 | AF29: 鞋子 | AI29: 戒指 | AK29: 腰带 | AU29: 55 | AV29: 135 | AW29: 105 | BI29: 55 | BJ29: 75 | BK29: 45 | BV29: 55 | BW29: 105 | BX29: 75 | CI29: 54 | CJ29: 450 | CK29: 525 | CO29: =CL31 -> 107 | CP29: =CM31 -> 107 | CQ29: 960 | CR29: 2 | CS29: 53 | CT29: 480 | CU29: 54 | CV29: 525 | CW29: 600 | DA29: 107 | DB29: 107 | DC29: 1120 | DD29: 2 | DE29: 53 | DF29: 560 | DG29: 火焰抗性 | DH29: 54 | DI29: 600 | DJ29: 750 | DN29: 107 | DO29: =DL31 -> 107 | DP29: 1280 | DQ29: 2 | DR29: 53 | DS29: 640
B30: 5#293 | C30: 5#480 | E30: 5#293 | F30: 480 | G30: 408 | H30: 5#408 | I30: 鞋 | J30: 5 | K30: 339 | L30: 349 | M30: 5#339 | N30: 5#349 | O30: 588 | P30: 602 | Q30: 5#588 | R30: 5#602 | V30: 伤害减免 | W30: 52 | X30: 伤害减免 | Z30: 攻击 | AA30: 60 | AB30: 护甲 | AC30: 65 | AD30: 生命 | AE30: 60 | AF30: 速度 | AG30: 60 | AI30: 攻击 | AJ30: 20 | AK30: 生命 | AU30: 56 | AV30: 540 | AW30: 420 | BI30: 56 | BJ30: 300 | BK30: 180 | BV30: 56 | BW30: 420 | BX30: 300 | CI30: 60 | CJ30: 1200 | CK30: 1400 | CL30: =CI30 -> 60 | CM30: =CJ30+CJ57 -> 1800 | CN30: =CK30+CK57 -> 2100 | CO30: 108 | CP30: 108 | CQ30: 960 | CR30: 2 | CS30: 54 | CT30: 480 | CU30: 60 | CV30: 1400 | CW30: 1600 | CX30: =CU30 -> 60 | CY30: =CV30+CV57 -> 2100 | CZ30: =CW30+CW57 -> 2400 | DA30: 108 | DB30: 108 | DC30: 1120 | DD30: 2 | DE30: 54 | DF30: 560 | DG30: 狂风抗性 | DH30: 60 | DI30: 1600 | DJ30: 2000 | DK30: =DH30 -> 60 | DL30: =DI30+DI57 -> 2400 | DM30: =DJ30+DJ57 -> 3000 | DN30: 108 | DO30: 108 | DP30: 1280 | DQ30: 2 | DR30: 54 | DS30: 640
B31: 5#293 | C31: 5#480 | E31: 5#293 | F31: 480 | G31: 408 | H31: 5#408 | I31: 戒 | J31: 2 | K31: 301 | L31: 309 | M31: 2#301 | N31: 2#309 | O31: 504 | P31: 516 | Q31: 2#504 | R31: 2#516 | V31: 效果命中 | W31: 53 | X31: 效果命中 | Z31: 速度 | AA31: 20 | AB31: 魔抗 | AC31: 65 | AD31: 护甲 | AE31: 25 | AF31: 生命 | AG31: 5 | AI31: 暴击率 | AJ31: 10 | AK31: 效果抵抗 | AU31: 1 | AV31: 956 | AW31: 744 | BI31: 1 | BJ31: 531 | BK31: 318 | BV31: 1 | BW31: 744 | BX31: 531 | CI31: 107 | CJ31: 960 | CK31: 1120 | CL31: =CI31 -> 107 | CM31: =CI31 -> 107 | CN31: =CJ31 -> 960 | CO31: 109 | CP31: 109 | CQ31: 960 | CR31: 2 | CS31: 54 | CT31: 480 | CU31: 107 | CV31: 1120 | CW31: 1280 | CX31: 107 | CY31: =CU31 -> 107 | CZ31: =CV31 -> 1120 | DA31: 109 | DB31: 109 | DC31: 1120 | DD31: 2 | DE31: 54 | DF31: 560 | DG31: 碧水抗性 | DH31: 107 | DI31: 1280 | DJ31: 1600 | DK31: 107 | DL31: =DH31 -> 107 | DM31: =DI31 -> 1280 | DN31: 109 | DO31: 109 | DP31: 1280 | DQ31: 2 | DR31: 54 | DS31: 640
B32: 5#293 | C32: 5#480 | E32: 5#293 | F32: 480 | G32: 408 | H32: 5#408 | I32: 带 | J32: 1 | K32: 2410 | L32: 2476 | M32: 1#2410 | N32: 1#2476 | O32: 4032 | P32: 4128 | Q32: 1#4032 | R32: 1#4128 | V32: 效果抵抗 | W32: 54 | X32: 效果抵抗 | Z32: 暴击率 | AA32: 60 | AB32: 生命 | AC32: 15 | AD32: 魔抗 | AE32: 25 | AF32: 攻击 | AG32: 10 | AI32: 暴伤 | AJ32: 20 | AK32: 生命百分比 | AU32: 2 | AV32: 190 | AW32: 148 | BI32: 2 | BJ32: 106 | BK32: 63 | BV32: 2 | BW32: 148 | BX32: 106 | CI32: 108 | CJ32: 960 | CK32: 1120 | CL32: 108 | CM32: 108 | CN32: 960 | CO32: 110 | CP32: 110 | CQ32: 960 | CR32: 2 | CS32: 55 | CT32: 480 | CU32: 108 | CV32: 1120 | CW32: 1280 | CX32: 108 | CY32: 108 | CZ32: 1120 | DA32: 110 | DB32: 110 | DC32: 1120 | DD32: 2 | DE32: 55 | DF32: 560 | DG32: 大地抗性 | DH32: 108 | DI32: 1280 | DJ32: 1600 | DK32: 108 | DL32: 108 | DM32: 1280 | DN32: 110 | DO32: 110 | DP32: 1280 | DQ32: 2 | DR32: 55 | DS32: 640
B33: 2#260 | C33: 2#425 | E33: 2#260 | F33: 425 | G33: 361 | H33: 2#361 | V33: 暴击率 | W33: 55 | X33: 暴击率 | Z33: 效果命中 | AA33: 25 | AB33: 攻击 | AC33: 10 | AD33: 速度 | AE33: 10 | AF33: 护甲 | AG33: 10 | AI33: 效果命中 | AJ33: 20 | AK33: 治疗 | AU33: 3 | AV33: 190 | AW33: 148 | BI33: 3 | BJ33: 106 | BK33: 63 | BV33: 3 | BW33: 148 | BX33: 106 | CI33: 109 | CJ33: 960 | CK33: 1120 | CL33: 109 | CM33: 109 | CN33: 960 | CO33: 111 | CP33: 111 | CQ33: 960 | CR33: 2 | CS33: 55 | CT33: 480 | CU33: 109 | CV33: 1120 | CW33: 1280 | CX33: 109 | CY33: 109 | CZ33: 1120 | DA33: 111 | DB33: 111 | DC33: 1120 | DD33: 2 | DE33: 55 | DF33: 560 | DG33: 神圣抗性 | DH33: 109 | DI33: 1280 | DJ33: 1600 | DK33: 109 | DL33: 109 | DM33: 1280 | DN33: 111 | DO33: 111 | DP33: 1280 | DQ33: 2 | DR33: 55 | DS33: 640
B34: 2#260 | C34: 2#425 | E34: 2#260 | F34: 425 | G34: 361 | H34: 2#361 | I34: 1 | J34: 重铸50级基础 | K34: 35% | L34: 40% | M34: 4 | N34: 中级 | O34: 35% | P34: 40% | V34: 暴伤 | W34: 56 | X34: 暴伤 | Z34: 效果抵抗 | AA34: 25 | AB34: 效果命中 | AC34: 15 | AD34: 暴击率 | AE34: 15 | AF34: 魔抗 | AG34: 10 | AI34: 攻击百分比 | AJ34: 10 | AK34: 受治疗 | AU34: 4 | AV34: 190 | AW34: 148 | BI34: 4 | BJ34: 106 | BK34: 63 | BV34: 4 | BW34: 148 | BX34: 106 | CI34: 110 | CJ34: 960 | CK34: 1120 | CL34: 110 | CM34: 110 | CN34: 960 | CO34: 112 | CP34: 112 | CQ34: 960 | CR34: 2 | CS34: 56 | CT34: 480 | CU34: 110 | CV34: 1120 | CW34: 1280 | CX34: 110 | CY34: 110 | CZ34: 1120 | DA34: 112 | DB34: 112 | DC34: 1120 | DD34: 2 | DE34: 56 | DF34: 560 | DG34: 黑暗抗性 | DH34: 110 | DI34: 1280 | DJ34: 1600 | DK34: 110 | DL34: 110 | DM34: 1280 | DN34: 112 | DO34: 112 | DP34: 1280 | DQ34: 2 | DR34: 56 | DS34: 640
B35: 2#260 | C35: 2#425 | E35: 2#260 | F35: 425 | G35: 361 | H35: 2#361 | V35: 受治疗 | W35: 57 | X35: 受治疗 | Z35: 属性攻击 | AA35: 100 | AB35: 效果抵抗 | AC35: 15 | AD35: 效果命中 | AE35: 60 | AF35: 暴击率 | AG35: 25 | AI35: 伤害加成 | AJ35: 10 | AK35: 伤害减免 | AU35: 55 | AV35: 225 | AW35: 175 | BI35: 55 | BJ35: 125 | BK35: 75 | BV35: 55 | BW35: 175 | BX35: 125 | CI35: 111 | CJ35: 960 | CK35: 1120 | CL35: 111 | CM35: 111 | CN35: 960 | CO35: 3 | CP35: 756 | CQ35: 882 | CR35: 4 | CS35: 189 | CT35: 220 | CU35: 111 | CV35: 1120 | CW35: 1280 | CX35: 111 | CY35: 111 | CZ35: 1120 | DA35: 3 | DB35: 882 | DC35: 1008 | DD35: 4 | DE35: 220 | DF35: 252 | DG35: 护甲 | DH35: 111 | DI35: 1280 | DJ35: 1600 | DK35: 111 | DL35: 111 | DM35: 1280 | DN35: 3 | DO35: 1008 | DP35: 1260 | DQ35: 4 | DR35: 252 | DS35: 315
B36: 1#2080 | C36: 1#3401 | E36: 1#2080 | F36: 3401 | G36: 2890 | H36: 1#2890 | M36: 紫下 | N36: 紫上 | Q36: 橙下 | R36: 橙上 | V36: 治疗 | W36: 58 | X36: 治疗 | Z36: 暴伤 | AA36: 70 | AB36: 属性抗性 | AC36: 100 | AD36: 效果抵抗 | AE36: 60 | AF36: 暴伤 | AG36: 10 | AI36: 速度 | AJ36: 10 | AK36: 抗暴率 | AU36: 56 | AV36: 270 | AW36: 210 | BI36: 56 | BJ36: 150 | BK36: 90 | BV36: 56 | BW36: 210 | BX36: 150 | CI36: 112 | CJ36: 960 | CK36: 1120 | CL36: 112 | CM36: 112 | CN36: 960 | CO36: 4 | CP36: 756 | CQ36: 882 | CR36: 4 | CS36: 189 | CT36: 220 | CU36: 112 | CV36: 1120 | CW36: 1280 | CX36: 112 | CY36: 112 | CZ36: 1120 | DA36: 4 | DB36: 882 | DC36: 1008 | DD36: 4 | DE36: 220 | DF36: 252 | DG36: 魔抗 | DH36: 112 | DI36: 1280 | DJ36: 1600 | DK36: 112 | DL36: 112 | DM36: 1280 | DN36: 4 | DO36: 1008 | DP36: 1260 | DQ36: 4 | DR36: 252 | DS36: 315
B37: 1#2080 | C37: 1#3401 | E37: 1#2080 | F37: 3401 | G37: 2890 | H37: 1#2890 | I37: 武器 | J37: 2 | K37: =INT((L17-K17)*$K$34+K17) -> 953 | L37: =INT((L17-K17)*$L$34+K17) -> 978 | M37: =$J37&"#"&K37 -> 2#953 | N37: =$J37&"#"&L37 -> 2#978 | O37: =INT((P17-O17)*$O$34+O17) -> 1692 | P37: =INT((P17-O17)*$P$34+O17) -> 1728 | Q37: =$J37&"#"&O37 -> 2#1692 | R37: =$J37&"#"&P37 -> 2#1728 | V37: 抗暴率 | W37: 60 | X37: 抗暴率 | AB37: 抗暴率 | AC37: 100 | AD37: 暴伤 | AE37: 20 | AU37: 5 | AV37: 43 | AW37: 33 | BI37: 5 | BJ37: 24 | BK37: 14 | BV37: 5 | BW37: 33 | BX37: 24 | CI37: 3 | CJ37: 540 | CK37: 630 | CL37: 3 | CM37: =CJ37+CJ46 -> 756 | CN37: =CK37+CK46 -> 882 | CO37: =CL55 -> 62 | CP37: =CM55 -> 600 | CQ37: =CN55 -> 700 | CR37: 1 | CS37: 600 | CT37: 700 | CU37: 3 | CV37: 630 | CW37: 720 | CX37: 3 | CY37: =CV37+CV46 -> 882 | CZ37: =CW37+CW46 -> 1008 | DA37: =CX55 -> 62 | DB37: =CY55 -> 700 | DC37: =CZ55 -> 800 | DD37: 1 | DE37: 700 | DF37: 800 | DG37: 攻击百分比 | DH37: 3 | DI37: 720 | DJ37: 900 | DK37: 3 | DL37: =DI37+DI46 -> 1008 | DM37: =DJ37+DJ46 -> 1260 | DN37: =DK55 -> 62 | DO37: =DL55 -> 800 | DP37: =DM55 -> 1000 | DQ37: 1 | DR37: 800 | DS37: 1000
B38: 1#2080 | C38: 1#3401 | E38: 1#2080 | F38: 3401 | G38: 2890 | H38: 1#2890 | I38: 甲 | J38: 3 | K38: =INT((L18-K18)*$K$34+K18) -> 1032 | L38: =INT((L18-K18)*$L$34+K18) -> 1059 | M38: 3#1032 | N38: 3#1059 | O38: =INT((P18-O18)*$O$34+O18) -> 1833 | P38: =INT((P18-O18)*$P$34+O18) -> 1872 | Q38: =$J38&"#"&O38 -> 3#1833 | R38: =$J38&"#"&P38 -> 3#1872 | V38: 生命百分比 | W38: 61 | X38: 生命百分比 | AU38: 53 | AV38: 900 | AW38: 700 | BI38: 53 | BJ38: 500 | BK38: 300 | BV38: 53 | BW38: 700 | BX38: 500 | CI38: 4 | CJ38: 540 | CK38: 630 | CL38: 4 | CM38: =CJ38+CJ47 -> 756 | CN38: =CK38+CK47 -> 882 | CO38: =CL58 -> 57 | CP38: 1200 | CQ38: 1400 | CR38: 3 | CS38: 400 | CT38: 466 | CU38: 4 | CV38: 630 | CW38: 720 | CX38: 4 | CY38: =CV38+CV47 -> 882 | CZ38: =CW38+CW47 -> 1008 | DA38: =CX58 -> 57 | DB38: 1400 | DC38: 1600 | DD38: 3 | DE38: 466 | DF38: 533 | DG38: 受治疗 | DH38: 4 | DI38: 720 | DJ38: 900 | DK38: 4 | DL38: =DI38+DI47 -> 1008 | DM38: =DJ38+DJ47 -> 1260 | DN38: =DK58 -> 57 | DO38: 1600 | DP38: 2000 | DQ38: 3 | DR38: 533 | DS38: 666
B39: 2#1440 | C39: 2#2160 | E39: =B39 -> 2#1440 | F39: =RIGHT(C39,LEN(C39)-FIND("#",C39,1)) -> 2160 | G39: =INT(F39*0.85) -> 1836 | H39: =LEFT(C39,2)&G39 -> 2#1836 | I39: 甲 | J39: 4 | K39: 1032 | L39: 1059 | M39: 4#1032 | N39: 4#1059 | O39: 1833 | P39: 1872 | Q39: 4#1833 | R39: 4#1872 | V39: 攻击百分比 | W39: 62 | X39: 攻击百分比 | Z39: =VLOOKUP(Z30,$V$24:$W$42,2,FALSE) -> 2 | AA39: =AA30*VLOOKUP(Z30,$AB$2:$AF$8,4,FALSE) ->  | AB39: =VLOOKUP(AB30,$V$24:$W$42,2,FALSE) -> 3 | AD39: =VLOOKUP(AD30,$V$24:$W$42,2,FALSE) -> 1 | AF39: =VLOOKUP(AF30,$V$24:$W$42,2,FALSE) -> 5 | AG39: =AG30*VLOOKUP(AF30,$AB$2:$AF$8,4,FALSE) ->  | AI39: =VLOOKUP(AI30,$V$24:$W$42,2,FALSE) -> 2 | AK39: =VLOOKUP(AK30,$V$24:$W$42,2,FALSE) -> 1 | AM39: 紫 | AN39: 低 | AO39: 0.3 | AP39: 0.5 | AU39: 55 | AV39: 450 | AW39: 350 | BI39: 55 | BJ39: 250 | BK39: 150 | BV39: 55 | BW39: 350 | BX39: 250 | CI39: 5 | CJ39: 50 | CK39: 58 | CO39: 58 | CP39: 1200 | CQ39: 1400 | CR39: 2 | CS39: 600 | CT39: 700 | CU39: 5 | CV39: 58 | CW39: 67 | DA39: 58 | DB39: 1400 | DC39: 1600 | DD39: 2 | DE39: 700 | DF39: 800 | DG39: 治疗 | DH39: 5 | DI39: 67 | DJ39: 84 | DN39: 58 | DO39: 1600 | DP39: 2000 | DQ39: 2 | DR39: 800 | DS39: 1000
B40: =B39 -> 2#1440 | C40: =C39 -> 2#2160 | E40: 2#1440 | F40: 2160 | G40: 1836 | H40: 2#1836 | I40: 盔 | J40: 1 | K40: 9534 | L40: 9782 | M40: 1#9534 | N40: 1#9782 | O40: 16920 | P40: 17280 | Q40: 1#16920 | R40: 1#17280 | V40: 护甲百分比 | W40: 63 | X40: 护甲百分比 | Z40: =VLOOKUP(Z31,$V$24:$W$42,2,FALSE) -> 5 | AA40: =AA31*VLOOKUP(Z31,$AB$2:$AF$8,4,FALSE) ->  | AB40: 4 | AC40: =AC31*VLOOKUP(AB31,$AB$2:$AF$8,4,FALSE) ->  | AD40: 3 | AF40: 1 | AI40: 55 | AK40: 54 | AN40: 中 | AO40: 0.5 | AP40: 0.7 | AU40: 56 | AV40: 900 | AW40: 700 | BI40: 56 | BJ40: 500 | BK40: 300 | BV40: 56 | BW40: 700 | BX40: 500 | CI40: 53 | CJ40: 1800 | CK40: 2100 | CO40: =CL61 -> 61 | CP40: =CM61 -> 600 | CQ40: =CN61 -> 700 | CR40: 2 | CS40: 300 | CT40: 350 | CU40: 53 | CV40: 2100 | CW40: 2400 | DA40: =CX61 -> 61 | DB40: =CY61 -> 700 | DC40: =CZ61 -> 800 | DD40: 2 | DE40: 350 | DF40: 400 | DG40: 生命百分比 | DH40: 53 | DI40: 2400 | DJ40: 3000 | DN40: =DK61 -> 61 | DO40: =DL61 -> 800 | DP40: =DM61 -> 1000 | DQ40: 2 | DR40: 400 | DS40: 500
B41: 2#1440 | C41: 2#2160 | E41: 2#1440 | F41: 2160 | G41: 1836 | H41: 2#1836 | I41: 鞋 | J41: 5 | K41: 358 | L41: 367 | M41: 5#358 | N41: 5#367 | O41: 658 | P41: 672 | Q41: 5#658 | R41: 5#672 | V41: 魔抗百分比 | W41: 64 | X41: 魔抗百分比 | Z41: 55 | AA41: 600 | AB41: 1 | AC41: =AC32*VLOOKUP(AB32,$AB$2:$AF$8,4,FALSE) ->  | AD41: 4 | AF41: 2 | AI41: 56 | AK41: 61 | AN41: 高 | AO41: 0.7 | AP41: 0.9 | AU41: 61 | AV41: 900 | AW41: 700 | AX41: =AU41 -> 61 | AY41: =AV41 -> 900 | AZ41: =AW41 -> 700 | BI41: 61 | BJ41: 500 | BK41: 300 | BL41: =BI41 -> 61 | BM41: 500 | BN41: 300 | BV41: 61 | BW41: 700 | BX41: 500 | BY41: =BV41 -> 61 | BZ41: 700 | CA41: 500 | CI41: 54 | CJ41: 1800 | CK41: 2100 | CO41: =CL54 -> 51 | CP41: 600 | CQ41: 700 | CR41: 1 | CS41: 600 | CT41: 700 | CU41: 54 | CV41: 2100 | CW41: 2400 | DA41: =CX54 -> 51 | DB41: 700 | DC41: 800 | DD41: 1 | DE41: 700 | DF41: 800 | DG41: 伤害加成 | DH41: 54 | DI41: 2400 | DJ41: 3000 | DN41: =DK54 -> 51 | DO41: =DL54 -> 800 | DP41: =DM54 -> 1000 | DQ41: 1 | DR41: 800 | DS41: 1000
B42: 2#1440 | C42: 2#2160 | E42: 2#1440 | F42: 2160 | G42: 1836 | H42: 2#1836 | I42: 戒 | J42: 2 | K42: 317 | L42: 326 | M42: 2#317 | N42: 2#326 | O42: 564 | P42: 576 | Q42: 2#564 | R42: 2#576 | V42: 速度百分比 | W42: 65 | X42: 速度百分比 | Z42: 53 | AA42: 750 | AB42: 2 | AC42: =AC33*VLOOKUP(AB33,$AB$2:$AF$8,4,FALSE) ->  | AD42: 5 | AF42: 3 | AI42: 53 | AK42: 58 | AU42: 54 | AV42: 900 | AW42: 700 | BI42: 54 | BJ42: 500 | BK42: 300 | BV42: 54 | BW42: 700 | BX42: 500 | CI42: 55 | CJ42: 180 | CK42: 210 | CO42: =CL60 -> 52 | CP42: 600 | CQ42: 700 | CR42: 3 | CS42: 200 | CT42: 233 | CU42: 55 | CV42: 210 | CW42: 240 | DA42: =CX60 -> 52 | DB42: 700 | DC42: 800 | DD42: 3 | DE42: 233 | DF42: 266 | DG42: 伤害减免 | DH42: 55 | DI42: 240 | DJ42: 300 | DN42: =DK60 -> 52 | DO42: =DL60 -> 800 | DP42: =DM60 -> 1000 | DQ42: 3 | DR42: 266 | DS42: 333
B43: 2#1440 | C43: 2#2160 | E43: 2#1440 | F43: 2160 | G43: 1836 | H43: 2#1836 | I43: 带 | J43: 1 | K43: 2542 | L43: 2608 | M43: 1#2542 | N43: 1#2608 | O43: 4512 | P43: 4608 | Q43: 1#4512 | R43: 1#4608 | Z43: 54 | AA43: 750 | AB43: 53 | AC43: =AC34*VLOOKUP(AB34,$AB$2:$AF$8,4,FALSE) -> 450 | AD43: 55 | AE43: 150 | AF43: 4 | AI43: 62 | AK43: 57 | AM43: 橙 | AN43: 低 | AO43: 0.6 | AP43: 0.7 | AU43: 60 | AV43: 450 | AW43: 350 | AX43: =AU43 -> 60 | AY43: =AV43 -> 450 | AZ43: =AW43 -> 350 | BI43: 60 | BJ43: 250 | BK43: 150 | BL43: =BI43 -> 60 | BM43: 250 | BN43: 150 | BV43: 60 | BW43: 350 | BX43: 250 | BY43: =BV43 -> 60 | BZ43: 350 | CA43: 250 | CI43: 56 | CJ43: 720 | CK43: 840 | CU43: 56 | CV43: 840 | CW43: 960 | DH43: 56 | DI43: 960 | DJ43: 1200
B44: 2#1440 | C44: 2#2160 | E44: 2#1440 | F44: 2160 | G44: 1836 | H44: 2#1836 | AA44: 0 | AB44: 54 | AC44: =AC35*VLOOKUP(AB35,$AB$2:$AF$8,4,FALSE) -> 450 | AD44: 53 | AE44: 1800 | AF44: 55 | AG44: 250 | AI44: 51 | AK44: 52 | AN44: 中 | AO44: 0.7 | AP44: 0.8 | CI44: 1 | CJ44: 1080 | CK44: 1260 | CU44: 1 | CV44: 1260 | CW44: 1440 | DH44: 1 | DI44: 1440 | DJ44: 1800
B45: 2#1440 | C45: 2#2160 | E45: 2#1440 | F45: 2160 | G45: 1836 | H45: 2#1836 | I45: 1 | J45: 中级 | K45: 65% | L45: 70% | M45: 1 | N45: 重铸50级基础 | O45: 40% | P45: 45% | Z45: 56 | AA45: 2100 | AC45: =AC36*VLOOKUP(AB36,$AB$2:$AF$8,4,FALSE) -> 0 | AD45: 54 | AE45: 1800 | AF45: 56 | AG45: 300 | AI45: 5 | AK45: 60 | AN45: 高 | AO45: 0.8 | AP45: 1 | CI45: 2 | CJ45: 216 | CK45: 252 | CU45: 2 | CV45: 252 | CW45: 288 | DH45: 2 | DI45: 288 | DJ45: 360
B46: 2#1440 | C46: 2#2160 | E46: 2#1440 | F46: 2160 | G46: 1836 | H46: 2#1836 | M46: 紫下 | N46: 紫上 | Q46: 橙下 | R46: 橙上 | AB46: 60 | AC46: =AC37*VLOOKUP(AB37,$AB$2:$AF$8,4,FALSE) -> 0 | AD46: 56 | AE46: 600 | CI46: 3 | CJ46: 216 | CK46: 252 | CU46: 3 | CV46: 252 | CW46: 288 | DH46: 3 | DI46: 288 | DJ46: 360
B47: 2#1440 | C47: 2#2160 | E47: 2#1440 | F47: 2160 | G47: 1836 | H47: 2#1836 | I47: 武器 | J47: 2 | K47: =INT((L17-K17)*$K$45+K17) -> 1101 | L47: =INT((L17-K17)*$L$45+K17) -> 1126 | M47: =$J47&"#"&K47 -> 2#1101 | N47: =$J47&"#"&L47 -> 2#1126 | O47: =INT((P17-O17)*$O$45+O17) -> 1728 | P47: =INT((P17-O17)*$P$45+O17) -> 1764 | Q47: =$J47&"#"&O47 -> 2#1728 | R47: =$J47&"#"&P47 -> 2#1764 | CI47: 4 | CJ47: 216 | CK47: 252 | CU47: 4 | CV47: 252 | CW47: 288 | DH47: 4 | DI47: 288 | DJ47: 360
B48: 2#1440 | C48: 2#2160 | E48: 2#1440 | F48: 2160 | G48: 1836 | H48: 2#1836 | I48: 甲 | J48: 3 | K48: =INT((L18-K18)*$K$45+K18) -> 1194 | L48: =INT((L18-K18)*$L$45+K18) -> 1220 | M48: 3#1194 | N48: 3#1220 | O48: =INT((P18-O18)*$O$45+O18) -> 1872 | P48: =INT((P18-O18)*$P$45+O18) -> 1911 | Q48: 3#1872 | R48: 3#1911 | CI48: 55 | CJ48: 300 | CK48: 350 | CU48: 55 | CV48: 350 | CW48: 400 | DH48: 55 | DI48: 400 | DJ48: 500
B49: 2#1440 | C49: 2#2160 | E49: 2#1440 | F49: 2160 | G49: 1836 | H49: 2#1836 | I49: 甲 | J49: 4 | K49: 1194 | L49: 1220 | M49: 4#1194 | N49: 4#1220 | O49: 1872 | P49: 1911 | Q49: 4#1872 | R49: 4#1911 | V49: 紫 | AH49: 上 | AI49: 低下 | AJ49: 低上 | AK49: 中下 | AL49: 中上 | AM49: 高下 | AN49: 高上 | AO49: 低下 | AP49: 低上 | AQ49: 中下 | AR49: 中上 | AS49: 高下 | AT49: 高上 | AV49: 5 | AW49: =AN50 -> 86 | CI49: 56 | CJ49: 360 | CK49: 420 | CU49: 56 | CV49: 420 | CW49: 480 | DH49: 56 | DI49: 480 | DJ49: 600
B50: 2#1440 | C50: 2#2160 | E50: 2#1440 | F50: 2160 | G50: 1836 | H50: 2#1836 | I50: 盔 | J50: 1 | K50: 11021 | L50: 11269 | M50: 1#11021 | N50: 1#11269 | O50: 17280 | P50: 17640 | Q50: 1#17280 | R50: 1#17640 | W50: 5 | X50: 77 | Y50: 58 | AA50: 96 | AB50: 77 | AD50: =Y50 -> 58 | AE50: =AA50 -> 96 | AH50: =AE50 -> 96 | AI50: =INT(AH50*$AO$39) -> 28 | AJ50: =INT(AH50*$AP$39) -> 48 | AK50: =INT(AH50*AO$40) -> 48 | AL50: =INT(AH50*AP$40) -> 67 | AM50: =INT(AH50*$AO$41) -> 67 | AN50: =INT(AH50*$AP$41) -> 86 | AO50: =$W50&"#"&AI50 -> 5#28 | AP50: 5#48 | AQ50: 5#48 | AR50: 5#67 | AS50: 5#67 | AT50: 5#86 | AV50: 53 | AW50: =AN51 -> 675 | CI50: 5 | CJ50: 50 | CK50: 58 | CU50: 5 | CV50: 58 | CW50: 67 | DH50: 5 | DI50: 67 | DJ50: 84
B51: 2#1440 | C51: 2#2160 | E51: 2#1440 | F51: 2160 | G51: 1836 | H51: 2#1836 | I51: 鞋 | J51: 5 | K51: 414 | L51: 423 | M51: 5#414 | N51: 5#423 | O51: 672 | P51: 686 | Q51: 5#672 | R51: 5#686 | W51: 53 | X51: 600 | Y51: 450 | AA51: 750 | AB51: 600 | AD51: 450 | AE51: 750 | AH51: =AE51 -> 750 | AI51: =INT(AH51*$AO$39) -> 225 | AJ51: 375 | AK51: 375 | AL51: 525 | AM51: 525 | AN51: =INT(AH51*$AP$41) -> 675 | AO51: =$W51&"#"&AI51 -> 53#225 | AP51: =$W51&"#"&AJ51 -> 53#375 | AQ51: =$W51&"#"&AK51 -> 53#375 | AR51: =$W51&"#"&AL51 -> 53#525 | AS51: =$W51&"#"&AM51 -> 53#525 | AT51: =$W51&"#"&AN51 -> 53#675 | AV51: 54 | AW51: 675 | CI51: 53 | CJ51: 600 | CK51: 700 | CU51: 53 | CV51: 700 | CW51: 800 | DH51: 53 | DI51: 800 | DJ51: 1000
B52: 2#1440 | C52: 2#2160 | E52: 2#1440 | F52: 2160 | G52: 1836 | H52: 2#1836 | I52: 戒 | J52: 2 | K52: 367 | L52: 375 | M52: 2#367 | N52: 2#375 | O52: 576 | P52: 588 | Q52: 2#576 | R52: 2#588 | W52: 54 | X52: 500 | Y52: 450 | AA52: 750 | AB52: 600 | AD52: 450 | AE52: 750 | AH52: 750 | AI52: 225 | AJ52: 375 | AK52: 375 | AL52: 525 | AM52: 525 | AN52: 675 | AO52: 54#225 | AP52: 54#375 | AQ52: 54#375 | AR52: 54#525 | AS52: 54#525 | AT52: 54#675 | AV52: 55 | AW52: 540 | CI52: 55 | CJ52: 600 | CK52: 700 | CU52: 55 | CV52: 700 | CW52: 800 | DH52: 55 | DI52: 800 | DJ52: 1000
B53: 2#1440 | C53: 2#2160 | E53: 2#1440 | F53: 2160 | G53: 1836 | H53: 2#1836 | I53: 带 | J53: 1 | K53: 2938 | L53: 3004 | M53: 1#2938 | N53: 1#3004 | O53: 4608 | P53: 4704 | Q53: 1#4608 | R53: 1#4704 | W53: 55 | X53: 480 | Y53: 360 | AA53: 600 | AB53: 480 | AD53: 360 | AE53: 600 | AH53: 600 | AI53: 180 | AJ53: 300 | AK53: 300 | AL53: 420 | AM53: 420 | AN53: 540 | AO53: 55#180 | AP53: 55#300 | AQ53: 55#300 | AR53: 55#420 | AS53: 55#420 | AT53: 55#540 | AV53: 56 | AW53: 1890 | CI53: 56 | CJ53: 1200 | CK53: 1400 | CU53: 56 | CV53: 1400 | CW53: 1600 | DH53: 56 | DI53: 1600 | DJ53: 2000
B54: 3#1560 | C54: 3#2340 | E54: 3#1560 | F54: 2340 | G54: 1989 | H54: 3#1989 | W54: 56 | X54: 1680 | Y54: 1260 | AA54: 2100 | AB54: 1680 | AD54: 1260 | AE54: 2100 | AH54: 2100 | AI54: 630 | AJ54: 1050 | AK54: 1050 | AL54: 1470 | AM54: 1470 | AN54: 1890 | AO54: 56#630 | AP54: 56#1050 | AQ54: 56#1050 | AR54: 56#1470 | AS54: 56#1470 | AT54: 56#1890 | AV54: 1 | AW54: 2870 | CI54: 51 | CJ54: 600 | CK54: 700 | CL54: =CI54 -> 51 | CM54: 600 | CN54: 700 | CU54: 51 | CV54: 700 | CW54: 800 | CX54: =CU54 -> 51 | CY54: 700 | CZ54: 800 | DH54: 51 | DI54: 800 | DJ54: 1000 | DK54: =DH54 -> 51 | DL54: =DI54 -> 800 | DM54: =DJ54 -> 1000
B55: 3#1560 | C55: 3#2340 | E55: 3#1560 | F55: 2340 | G55: 1989 | H55: 3#1989 | I55: 3 | J55: 高级 | K55: 90% | L55: 95% | M55: 1 | N55: 中上 | O55: 75% | P55: 80% | W55: 1 | X55: 2570 | Y55: 1950 | AA55: 3189 | AB55: 2570 | AD55: 1950 | AE55: 3189 | AH55: 3189 | AI55: 956 | AJ55: 1594 | AK55: 1594 | AL55: 2232 | AM55: 2232 | AN55: 2870 | AO55: 1#956 | AP55: 1#1594 | AQ55: 1#1594 | AR55: 1#2232 | AS55: 1#2232 | AT55: 1#2870 | AV55: 2 | AW55: 190 | CI55: 62 | CJ55: 600 | CK55: 700 | CL55: =CI55 -> 62 | CM55: 600 | CN55: 700 | CU55: 62 | CV55: 700 | CW55: 800 | CX55: =CU55 -> 62 | CY55: 700 | CZ55: 800 | DH55: 62 | DI55: 800 | DJ55: 1000 | DK55: =DH55 -> 62 | DL55: =DI55 -> 800 | DM55: =DJ55 -> 1000
B56: 3#1560 | C56: 3#2340 | E56: 3#1560 | F56: 2340 | G56: 1989 | H56: 3#1989 | M56: 紫下 | N56: 紫上 | Q56: 橙下 | R56: 橙上 | W56: 2 | X56: 171 | Y56: 130 | AA56: 212 | AB56: 171 | AD56: 130 | AE56: 212 | AH56: 212 | AI56: 63 | AJ56: 106 | AK56: 106 | AL56: 148 | AM56: 148 | AN56: 190 | AO56: 2#63 | AP56: 2#106 | AQ56: 2#106 | AR56: 2#148 | AS56: 2#148 | AT56: 2#190 | AV56: 53 | AW56: 405 | CI56: 54 | CJ56: 600 | CK56: 700 | CU56: 54 | CV56: 700 | CW56: 800 | DH56: 54 | DI56: 800 | DJ56: 1000
B57: 4#1560 | C57: 4#2340 | E57: 4#1560 | F57: 2340 | G57: 1989 | H57: 4#1989 | I57: 武器 | J57: 2 | K57: =INT((L17-K17)*$K$55+K17) -> 1225 | L57: =INT((L17-K17)*$L$55+K17) -> 1250 | M57: =$J57&"#"&K57 -> 2#1225 | N57: =$J57&"#"&L57 -> 2#1250 | O57: =INT((P17-O17)*$O$55+O17) -> 1980 | P57: =INT((P17-O17)*$P$55+O17) -> 2016 | Q57: =$J57&"#"&O57 -> 2#1980 | R57: =$J57&"#"&P57 -> 2#2016 | W57: 53 | X57: 360 | Y57: 270 | AA57: 450 | AB57: 360 | AD57: 270 | AE57: 450 | AH57: 450 | AI57: 135 | AJ57: 225 | AK57: 225 | AL57: 315 | AM57: 315 | AN57: 405 | AO57: 53#135 | AP57: 53#225 | AQ57: 53#225 | AR57: 53#315 | AS57: 53#315 | AT57: 53#405 | AV57: 54 | AW57: 405 | CI57: 60 | CJ57: 600 | CK57: 700 | CU57: 60 | CV57: 700 | CW57: 800 | DH57: 60 | DI57: 800 | DJ57: 1000
B58: 4#1560 | C58: 4#2340 | E58: 4#1560 | F58: 2340 | G58: 1989 | H58: 4#1989 | I58: 甲 | J58: 3 | K58: =INT((L18-K18)*$K$55+K18) -> 1328 | L58: =INT((L18-K18)*$L$55+K18) -> 1355 | M58: 3#1328 | N58: 3#1355 | O58: =INT((P18-O18)*$O$55+O18) -> 2145 | P58: =INT((P18-O18)*$P$55+O18) -> 2184 | Q58: 3#2145 | R58: 3#2184 | W58: 54 | X58: 360 | Y58: 270 | AA58: 450 | AB58: 360 | AD58: 270 | AE58: 450 | AH58: 450 | AI58: 135 | AJ58: 225 | AK58: 225 | AL58: 315 | AM58: 315 | AN58: 405 | AO58: 54#135 | AP58: 54#225 | AQ58: 54#225 | AR58: 54#315 | AS58: 54#315 | AT58: 54#405 | AV58: 3 | AW58: 477 | CI58: 57 | CJ58: 1200 | CK58: 1400 | CL58: =CI58 -> 57 | CM58: 1200 | CN58: 1400 | CU58: 57 | CV58: 1400 | CW58: 1600 | CX58: =CU58 -> 57 | CY58: 1400 | CZ58: 1600 | DH58: 57 | DI58: 1600 | DJ58: 2000 | DK58: 57 | DL58: 1600 | DM58: 2000
B59: 4#1560 | C59: 4#2340 | E59: 4#1560 | F59: 2340 | G59: 1989 | H59: 4#1989 | I59: 甲 | J59: 4 | K59: 1328 | L59: 1355 | M59: 4#1328 | N59: 4#1355 | O59: 2145 | P59: 2184 | Q59: 4#2145 | R59: 4#2184 | W59: 3 | X59: 428 | Y59: 325 | AA59: 531 | AB59: 428 | AD59: 325 | AE59: 531 | AH59: 531 | AI59: 159 | AJ59: 265 | AK59: 265 | AL59: 371 | AM59: 371 | AN59: 477 | AO59: 3#159 | AP59: 3#265 | AQ59: 3#265 | AR59: 3#371 | AS59: 3#371 | AT59: 3#477 | AV59: 4 | AW59: 477 | CI59: 58 | CJ59: 1200 | CK59: 1400 | CL59: =CI59 -> 58 | CM59: 1200 | CN59: 1400 | CU59: 58 | CV59: 1400 | CW59: 1600 | CX59: =CU59 -> 58 | CY59: 1400 | CZ59: 1600 | DH59: 58 | DI59: 1600 | DJ59: 2000 | DK59: 58 | DL59: 1600 | DM59: 2000
B60: 1#14400 | C60: 1#21600 | E60: 1#14400 | F60: 21600 | G60: 18360 | H60: 1#18360 | I60: 盔 | J60: 1 | K60: 12260 | L60: 12508 | M60: 1#12260 | N60: 1#12508 | O60: 19800 | P60: 20160 | Q60: 1#19800 | R60: 1#20160 | W60: 4 | X60: 428 | Y60: 325 | AA60: 531 | AB60: 428 | AD60: 325 | AE60: 531 | AH60: 531 | AI60: 159 | AJ60: 265 | AK60: 265 | AL60: 371 | AM60: 371 | AN60: 477 | AO60: 4#159 | AP60: 4#265 | AQ60: 4#265 | AR60: 4#371 | AS60: 4#371 | AT60: 4#477 | AV60: 5 | AW60: 43 | CI60: 52 | CJ60: 600 | CK60: 700 | CL60: =CI60 -> 52 | CM60: 600 | CN60: 700 | CU60: 52 | CV60: 700 | CW60: 800 | CX60: =CU60 -> 52 | CY60: 700 | CZ60: 800 | DH60: 52 | DI60: 800 | DJ60: 1000 | DK60: 52 | DL60: 800 | DM60: 1000
B61: 1#14400 | C61: 1#21600 | E61: 1#14400 | F61: 21600 | G61: 18360 | H61: 1#18360 | I61: 鞋 | J61: 5 | K61: 461 | L61: 470 | M61: 5#461 | N61: 5#470 | O61: 770 | P61: 784 | Q61: 5#770 | R61: 5#784 | W61: 5 | X61: 38 | Y61: 29 | AA61: 48 | AB61: 38 | AD61: 29 | AE61: 48 | AH61: 48 | AI61: 14 | AJ61: 24 | AK61: 24 | AL61: 33 | AM61: 33 | AN61: 43 | AO61: 5#14 | AP61: 5#24 | AQ61: 5#24 | AR61: 5#33 | AS61: 5#33 | AT61: 5#43 | AV61: 53 | AW61: 1620 | CI61: 61 | CJ61: 600 | CK61: 700 | CL61: =CI61 -> 61 | CM61: 600 | CN61: 700 | CU61: 61 | CV61: 700 | CW61: 800 | CX61: =CU61 -> 61 | CY61: 700 | CZ61: 800 | DH61: 61 | DI61: 800 | DJ61: 1000 | DK61: 61 | DL61: 800 | DM61: 1000
B62: 1#14400 | C62: 1#21600 | E62: 1#14400 | F62: 21600 | G62: 18360 | H62: 1#18360 | I62: 戒 | J62: 2 | K62: 408 | L62: 416 | M62: 2#408 | N62: 2#416 | O62: 660 | P62: 672 | Q62: 2#660 | R62: 2#672 | W62: 53 | X62: 1440 | Y62: 1080 | AA62: 1800 | AB62: 1440 | AD62: 1080 | AE62: 1800 | AH62: 1800 | AI62: 540 | AJ62: 900 | AK62: 900 | AL62: 1260 | AM62: 1260 | AN62: 1620 | AO62: 53#540 | AP62: 53#900 | AQ62: 53#900 | AR62: 53#1260 | AS62: 53#1260 | AT62: 53#1620 | AV62: 54 | AW62: 1620
B63: 5#560 | C63: 5#840 | E63: 5#560 | F63: 840 | G63: 714 | H63: 5#714 | I63: 带 | J63: 1 | K63: 3268 | L63: 3334 | M63: 1#3268 | N63: 1#3334 | O63: 5280 | P63: 5376 | Q63: 1#5280 | R63: 1#5376 | W63: 54 | X63: 1440 | Y63: 1080 | AA63: 1800 | AB63: 1440 | AD63: 1080 | AE63: 1800 | AH63: 1800 | AI63: 540 | AJ63: 900 | AK63: 900 | AL63: 1260 | AM63: 1260 | AN63: 1620 | AO63: 54#540 | AP63: 54#900 | AQ63: 54#900 | AR63: 54#1260 | AS63: 54#1260 | AT63: 54#1620 | AV63: 55 | AW63: 135
B64: 5#560 | C64: 5#840 | E64: 5#560 | F64: 840 | G64: 714 | H64: 5#714 | W64: 55 | X64: 120 | Y64: 90 | AA64: 150 | AB64: 120 | AD64: 90 | AE64: 150 | AH64: 150 | AI64: 45 | AJ64: 75 | AK64: 75 | AL64: 105 | AM64: 105 | AN64: 135 | AO64: 55#45 | AP64: 55#75 | AQ64: 55#75 | AR64: 55#105 | AS64: 55#105 | AT64: 55#135 | AV64: 56 | AW64: 540
B65: 5#560 | C65: 5#840 | E65: 5#560 | F65: 840 | G65: 714 | H65: 5#714 | M65: 3 | N65: 高级 | O65: 90% | P65: 95% | W65: 56 | X65: 480 | Y65: 360 | AA65: 600 | AB65: 480 | AD65: 360 | AE65: 600 | AH65: 600 | AI65: 180 | AJ65: 300 | AK65: 300 | AL65: 420 | AM65: 420 | AN65: 540 | AO65: 56#180 | AP65: 56#300 | AQ65: 56#300 | AR65: 56#420 | AS65: 56#420 | AT65: 56#540 | AV65: 1 | AW65: 956
B66: 2#480 | C66: 2#720 | E66: 2#480 | F66: 720 | G66: 612 | H66: 2#612 | Q66: 橙下 | R66: 橙上 | W66: 1 | X66: 856 | Y66: 650 | AA66: 1063 | AB66: 856 | AD66: 650 | AE66: 1063 | AH66: 1063 | AI66: 318 | AJ66: 531 | AK66: 531 | AL66: 744 | AM66: 744 | AN66: 956 | AO66: 1#318 | AP66: 1#531 | AQ66: 1#531 | AR66: 1#744 | AS66: 1#744 | AT66: 1#956 | AV66: 2 | AW66: 190
B67: 2#480 | C67: 2#720 | E67: 2#480 | F67: 720 | G67: 612 | H67: 2#612 | I67: 武器 | J67: 2 | O67: =INT((P17-O17)*$O$65+O17) -> 2088 | P67: =INT((P17-O17)*$P$65+O17) -> 2124 | Q67: =$J67&"#"&O67 -> 2#2088 | R67: =$J67&"#"&P67 -> 2#2124 | W67: 2 | X67: 171 | Y67: 130 | AA67: 212 | AB67: 171 | AD67: 130 | AE67: 212 | AH67: 212 | AI67: 63 | AJ67: 106 | AK67: 106 | AL67: 148 | AM67: 148 | AN67: 190 | AO67: 2#63 | AP67: 2#106 | AQ67: 2#106 | AR67: 2#148 | AS67: 2#148 | AT67: 2#190 | AV67: 3 | AW67: 190
B68: 2#480 | C68: 2#720 | E68: 2#480 | F68: 720 | G68: 612 | H68: 2#612 | I68: 甲 | J68: 3 | O68: =INT((P18-O18)*$O$65+O18) -> 2262 | P68: =INT((P18-O18)*$P$65+O18) -> 2301 | Q68: =$J68&"#"&O68 -> 3#2262 | R68: =$J68&"#"&P68 -> 3#2301 | W68: 3 | X68: 171 | Y68: 130 | AA68: 212 | AB68: 171 | AD68: 130 | AE68: 212 | AH68: 212 | AI68: 63 | AJ68: 106 | AK68: 106 | AL68: 148 | AM68: 148 | AN68: 190 | AO68: 3#63 | AP68: 3#106 | AQ68: 3#106 | AR68: 3#148 | AS68: 3#148 | AT68: 3#190 | AV68: 4 | AW68: 190
B69: 1#3840 | C69: 1#5760 | E69: 1#3840 | F69: 5760 | G69: 4896 | H69: 1#4896 | I69: 甲 | J69: 4 | O69: 2262 | P69: 2301 | Q69: 4#2262 | R69: 4#2301 | W69: 4 | X69: 171 | Y69: 130 | AA69: 212 | AB69: 171 | AD69: 130 | AE69: 212 | AH69: 212 | AI69: 63 | AJ69: 106 | AK69: 106 | AL69: 148 | AM69: 148 | AN69: 190 | AO69: 4#63 | AP69: 4#106 | AQ69: 4#106 | AR69: 4#148 | AS69: 4#148 | AT69: 4#190 | AV69: 55 | AW69: 225
B70: 1#3840 | C70: 1#5760 | E70: 1#3840 | F70: 5760 | G70: 4896 | H70: 1#4896 | I70: 盔 | J70: 1 | O70: 20880 | P70: 21240 | Q70: 1#20880 | R70: 1#21240 | W70: 55 | X70: 200 | Y70: 150 | AA70: 250 | AB70: 200 | AD70: 150 | AE70: 250 | AH70: 250 | AI70: 75 | AJ70: 125 | AK70: 125 | AL70: 175 | AM70: 175 | AN70: 225 | AO70: 55#75 | AP70: 55#125 | AQ70: 55#125 | AR70: 55#175 | AS70: 55#175 | AT70: 55#225 | AV70: 56 | AW70: 270
B71: 1#3840 | C71: 1#5760 | E71: 1#3840 | F71: 5760 | G71: 4896 | H71: 1#4896 | I71: 鞋 | J71: 5 | O71: 812 | P71: 826 | Q71: 5#812 | R71: 5#826 | W71: 56 | X71: 240 | Y71: 180 | AA71: 300 | AB71: 240 | AD71: 180 | AE71: 300 | AH71: 300 | AI71: 90 | AJ71: 150 | AK71: 150 | AL71: 210 | AM71: 210 | AN71: 270 | AO71: 56#90 | AP71: 56#150 | AQ71: 56#150 | AR71: 56#210 | AS71: 56#210 | AT71: 56#270 | AV71: 5 | AW71: 43
I72: 戒 | J72: 2 | O72: 696 | P72: 708 | Q72: 2#696 | R72: 2#708 | W72: 5 | X72: 38 | Y72: 29 | AA72: 48 | AB72: 38 | AD72: 29 | AE72: 48 | AH72: 48 | AI72: 14 | AJ72: 24 | AK72: 24 | AL72: 33 | AM72: 33 | AN72: 43 | AO72: 5#14 | AP72: 5#24 | AQ72: 5#24 | AR72: 5#33 | AS72: 5#33 | AT72: 5#43 | AV72: 53 | AW72: 900
I73: 带 | J73: 1 | O73: 5568 | P73: 5664 | Q73: 1#5568 | R73: 1#5664 | W73: 53 | X73: 800 | Y73: 600 | AA73: 1000 | AB73: 800 | AD73: 600 | AE73: 1000 | AH73: 1000 | AI73: 300 | AJ73: 500 | AK73: 500 | AL73: 700 | AM73: 700 | AN73: 900 | AO73: 53#300 | AP73: 53#500 | AQ73: 53#500 | AR73: 53#700 | AS73: 53#700 | AT73: 53#900 | AV73: 55 | AW73: 450
W74: 55 | X74: 400 | Y74: 300 | AA74: 500 | AB74: 400 | AD74: 300 | AE74: 500 | AH74: 500 | AI74: 150 | AJ74: 250 | AK74: 250 | AL74: 350 | AM74: 350 | AN74: 450 | AO74: 55#150 | AP74: 55#250 | AQ74: 55#250 | AR74: 55#350 | AS74: 55#350 | AT74: 55#450 | AV74: 56 | AW74: 900
W75: 56 | X75: 800 | Y75: 600 | AA75: 1000 | AB75: 800 | AD75: 600 | AE75: 1000 | AH75: 1000 | AI75: 300 | AJ75: 500 | AK75: 500 | AL75: 700 | AM75: 700 | AN75: 900 | AO75: 56#300 | AP75: 56#500 | AQ75: 56#500 | AR75: 56#700 | AS75: 56#700 | AT75: 56#900 | AV75: 61 | AW75: 900
W76: 61 | X76: 800 | Y76: 600 | AA76: 1000 | AB76: 800 | AD76: 600 | AE76: 1000 | AH76: 1000 | AI76: 300 | AJ76: 500 | AK76: 500 | AL76: 700 | AM76: 700 | AN76: 900 | AO76: 61#300 | AP76: 61#500 | AQ76: 61#500 | AR76: 61#700 | AS76: 61#700 | AT76: 61#900 | AV76: 54 | AW76: 900
W77: 54 | X77: 800 | Y77: 600 | AA77: 1000 | AB77: 800 | AD77: =Y77 -> 600 | AE77: =AA77 -> 1000 | AH77: =AE77 -> 1000 | AI77: 300 | AJ77: 500 | AK77: 500 | AL77: 700 | AM77: 700 | AN77: 900 | AO77: 54#300 | AP77: 54#500 | AQ77: 54#500 | AR77: 54#700 | AS77: 54#700 | AT77: 54#900 | AV77: 60 | AW77: 450
W78: 60 | X78: 400 | Y78: 300 | AA78: 500 | AB78: 400 | AD78: 300 | AE78: 500 | AH78: 500 | AI78: 150 | AJ78: 250 | AK78: 250 | AL78: 350 | AM78: 350 | AN78: 450 | AO78: 60#150 | AP78: 60#250 | AQ78: 60#250 | AR78: 60#350 | AS78: 60#350 | AT78: 60#450
V81: 橙 | AH81: 上 | AI81: 低下 | AJ81: 低上 | AK81: 中下 | AL81: 中上 | AM81: 高下 | AN81: 高上 | AO81: 低下 | AP81: 低上 | AQ81: 中下 | AR81: 中上 | AS81: 高下 | AT81: 高上
W82: 5 | X82: 140 | Y82: 112 | AA82: 168 | AB82: 140 | AD82: 112 | AE82: 168 | AH82: 168 | AI82: =INT(AH82*$AO$43) -> 100 | AJ82: =INT(AH82*$AP$43) -> 117 | AK82: =INT(AH82*AO$44) -> 117 | AL82: =INT(AH82*AP$44) -> 134 | AM82: =INT(AH82*$AO$45) -> 134 | AN82: =INT(AH82*$AP$45) -> 168 | AO82: =$W82&"#"&AI82 -> 5#100 | AP82: 5#117 | AQ82: 5#117 | AR82: 5#134 | AS82: 5#134 | AT82: 5#168 | AV82: 5 | AW82: =AI82 -> 100
W83: 53 | X83: 1000 | Y83: 750 | AA83: 1250 | AB83: 1000 | AD83: 750 | AE83: 1250 | AH83: 1250 | AI83: =INT(AH83*$AO$43) -> 750 | AJ83: =INT(AH83*$AP$43) -> 875 | AK83: =INT(AH83*AO$44) -> 875 | AL83: =INT(AH83*AP$44) -> 1000 | AM83: =INT(AH83*$AO$45) -> 1000 | AN83: =INT(AH83*$AP$45) -> 1250 | AO83: =$W83&"#"&AI83 -> 53#750 | AP83: 53#875 | AQ83: 53#875 | AR83: 53#1000 | AS83: 53#1000 | AT83: 53#1250 | AV83: 53 | AW83: =AI83 -> 750
W84: 54 | X84: 1000 | Y84: 750 | AA84: 1250 | AB84: 1000 | AD84: 750 | AE84: 1250 | AH84: 1250 | AI84: 750 | AJ84: 875 | AK84: 875 | AL84: 1000 | AM84: 1000 | AN84: 1250 | AO84: =$W84&"#"&AI84 -> 54#750 | AP84: 54#875 | AQ84: 54#875 | AR84: 54#1000 | AS84: 54#1000 | AT84: 54#1250 | AV84: 54 | AW84: 750
W85: 55 | X85: 960 | Y85: 720 | AA85: 1200 | AB85: 960 | AD85: 720 | AE85: 1200 | AH85: 1200 | AI85: 720 | AJ85: 840 | AK85: 840 | AL85: 960 | AM85: 960 | AN85: 1200 | AO85: =$W85&"#"&AI85 -> 55#720 | AP85: 55#840 | AQ85: 55#840 | AR85: 55#960 | AS85: 55#960 | AT85: 55#1200 | AV85: 55 | AW85: 720
W86: 56 | X86: 3360 | Y86: 2520 | AA86: 4200 | AB86: 3360 | AD86: 2520 | AE86: 4200 | AH86: 4200 | AI86: 2520 | AJ86: 2940 | AK86: 2940 | AL86: 3360 | AM86: 3360 | AN86: 4200 | AO86: =$W86&"#"&AI86 -> 56#2520 | AP86: 56#2940 | AQ86: 56#2940 | AR86: 56#3360 | AS86: 56#3360 | AT86: 56#4200 | AV86: 56 | AW86: 2520
W87: 101 | X87: 1280 | Y87: 960 | AA87: 1600 | AB87: 1280 | AD87: 960 | AE87: 1600 | AH87: 1600 | AI87: 960 | AJ87: 1120 | AK87: 1120 | AL87: 1280 | AM87: 1280 | AN87: 1600 | AO87: =$W87&"#"&AI87 -> 101#960 | AP87: 101#1120 | AQ87: 101#1120 | AR87: 101#1280 | AS87: 101#1280 | AT87: 101#1600 | AV87: 101 | AW87: 960
W88: 102 | X88: 1280 | Y88: 960 | AA88: 1600 | AB88: 1280 | AD88: 960 | AE88: 1600 | AH88: 1600 | AI88: 960 | AJ88: 1120 | AK88: 1120 | AL88: 1280 | AM88: 1280 | AN88: 1600 | AO88: =$W88&"#"&AI88 -> 102#960 | AP88: 102#1120 | AQ88: 102#1120 | AR88: 102#1280 | AS88: 102#1280 | AT88: 102#1600 | AV88: 102 | AW88: 960
W89: 103 | X89: 1280 | Y89: 960 | AA89: 1600 | AB89: 1280 | AD89: 960 | AE89: 1600 | AH89: 1600 | AI89: 960 | AJ89: 1120 | AK89: 1120 | AL89: 1280 | AM89: 1280 | AN89: 1600 | AO89: =$W89&"#"&AI89 -> 103#960 | AP89: 103#1120 | AQ89: 103#1120 | AR89: 103#1280 | AS89: 103#1280 | AT89: 103#1600 | AV89: 103 | AW89: 960
W90: 104 | X90: 1280 | Y90: 960 | AA90: 1600 | AB90: 1280 | AD90: 960 | AE90: 1600 | AH90: 1600 | AI90: 960 | AJ90: 1120 | AK90: 1120 | AL90: 1280 | AM90: 1280 | AN90: 1600 | AO90: =$W90&"#"&AI90 -> 104#960 | AP90: 104#1120 | AQ90: 104#1120 | AR90: 104#1280 | AS90: 104#1280 | AT90: 104#1600 | AV90: 104 | AW90: 960
W91: 105 | X91: 1280 | Y91: 960 | AA91: 1600 | AB91: 1280 | AD91: 960 | AE91: 1600 | AH91: 1600 | AI91: 960 | AJ91: 1120 | AK91: 1120 | AL91: 1280 | AM91: 1280 | AN91: 1600 | AO91: =$W91&"#"&AI91 -> 105#960 | AP91: 105#1120 | AQ91: 105#1120 | AR91: 105#1280 | AS91: 105#1280 | AT91: 105#1600 | AV91: 105 | AW91: 960
W92: 106 | X92: 1280 | Y92: 960 | AA92: 1600 | AB92: 1280 | AD92: 960 | AE92: 1600 | AH92: 1600 | AI92: 960 | AJ92: 1120 | AK92: 1120 | AL92: 1280 | AM92: 1280 | AN92: 1600 | AO92: =$W92&"#"&AI92 -> 106#960 | AP92: 106#1120 | AQ92: 106#1120 | AR92: 106#1280 | AS92: 106#1280 | AT92: 106#1600 | AV92: 106 | AW92: 960
W93: 1 | X93: 4500 | Y93: 3600 | AA93: 5400 | AB93: 4500 | AD93: 3600 | AE93: 6000 | AH93: 6000 | AI93: 3600 | AJ93: 4200 | AK93: 4200 | AL93: 4800 | AM93: 4800 | AN93: 6000 | AO93: =$W93&"#"&AI93 -> 1#3600 | AP93: 1#4200 | AQ93: 1#4200 | AR93: 1#4800 | AS93: 1#4800 | AT93: 1#6000 | AV93: 1 | AW93: 3600
W94: 2 | X94: 300 | Y94: 240 | AA94: 360 | AB94: 300 | AD94: 240 | AE94: 360 | AH94: 360 | AI94: 216 | AJ94: 252 | AK94: 252 | AL94: 288 | AM94: 288 | AN94: 360 | AO94: =$W94&"#"&AI94 -> 2#216 | AP94: 2#252 | AQ94: 2#252 | AR94: 2#288 | AS94: 2#288 | AT94: 2#360 | AV94: 2 | AW94: 216
W95: 53 | X95: 600 | Y95: 450 | AA95: 750 | AB95: 600 | AD95: 450 | AE95: 750 | AH95: 750 | AI95: 450 | AJ95: 525 | AK95: 525 | AL95: 600 | AM95: 600 | AN95: 750 | AO95: =$W95&"#"&AI95 -> 53#450 | AP95: 53#525 | AQ95: 53#525 | AR95: 53#600 | AS95: 53#600 | AT95: 53#750 | AV95: 53 | AW95: 450
W96: 54 | X96: 600 | Y96: 450 | AA96: 750 | AB96: 600 | AD96: 450 | AE96: 750 | AH96: 750 | AI96: 450 | AJ96: 525 | AK96: 525 | AL96: 600 | AM96: 600 | AN96: 750 | AO96: =$W96&"#"&AI96 -> 54#450 | AP96: 54#525 | AQ96: 54#525 | AR96: 54#600 | AS96: 54#600 | AT96: 54#750 | AV96: 54 | AW96: 450
W97: 60 | X97: 1600 | Y97: 1200 | AA97: 2000 | AB97: 1600 | AD97: 1200 | AE97: 2000 | AH97: 2000 | AI97: 1200 | AJ97: 1400 | AK97: 1400 | AL97: 1600 | AM97: 1600 | AN97: 2000 | AO97: =$W97&"#"&AI97 -> 60#1200 | AP97: 60#1400 | AQ97: 60#1400 | AR97: 60#1600 | AS97: 60#1600 | AT97: 60#2000 | AV97: 60 | AW97: 1200
W98: 107 | X98: 1280 | Y98: 960 | AA98: 1600 | AB98: 1280 | AD98: 960 | AE98: 1600 | AH98: 1600 | AI98: 960 | AJ98: 1120 | AK98: 1120 | AL98: 1280 | AM98: 1280 | AN98: 1600 | AO98: =$W98&"#"&AI98 -> 107#960 | AP98: 107#1120 | AQ98: 107#1120 | AR98: 107#1280 | AS98: 107#1280 | AT98: 107#1600 | AV98: 107 | AW98: 960
W99: 108 | X99: 1280 | Y99: 960 | AA99: 1600 | AB99: 1280 | AD99: 960 | AE99: 1600 | AH99: 1600 | AI99: 960 | AJ99: 1120 | AK99: 1120 | AL99: 1280 | AM99: 1280 | AN99: 1600 | AO99: =$W99&"#"&AI99 -> 108#960 | AP99: 108#1120 | AQ99: 108#1120 | AR99: 108#1280 | AS99: 108#1280 | AT99: 108#1600 | AV99: 108 | AW99: 960
W100: 109 | X100: 1280 | Y100: 960 | AA100: 1600 | AB100: 1280 | AD100: 960 | AE100: 1600 | AH100: 1600 | AI100: 960 | AJ100: 1120 | AK100: 1120 | AL100: 1280 | AM100: 1280 | AN100: 1600 | AO100: =$W100&"#"&AI100 -> 109#960 | AP100: 109#1120 | AQ100: 109#1120 | AR100: 109#1280 | AS100: 109#1280 | AT100: 109#1600 | AV100: 109 | AW100: 960
W101: 110 | X101: 1280 | Y101: 960 | AA101: 1600 | AB101: 1280 | AD101: 960 | AE101: 1600 | AH101: 1600 | AI101: 960 | AJ101: 1120 | AK101: 1120 | AL101: 1280 | AM101: 1280 | AN101: 1600 | AO101: =$W101&"#"&AI101 -> 110#960 | AP101: 110#1120 | AQ101: 110#1120 | AR101: 110#1280 | AS101: 110#1280 | AT101: 110#1600 | AV101: 110 | AW101: 960
W102: 111 | X102: 1280 | Y102: 960 | AA102: 1600 | AB102: 1280 | AD102: 960 | AE102: 1600 | AH102: 1600 | AI102: 960 | AJ102: 1120 | AK102: 1120 | AL102: 1280 | AM102: 1280 | AN102: 1600 | AO102: =$W102&"#"&AI102 -> 111#960 | AP102: 111#1120 | AQ102: 111#1120 | AR102: 111#1280 | AS102: 111#1280 | AT102: 111#1600 | AV102: 111 | AW102: 960
W103: 112 | X103: 1280 | Y103: 960 | AA103: 1600 | AB103: 1280 | AD103: 960 | AE103: 1600 | AH103: 1600 | AI103: 960 | AJ103: 1120 | AK103: 1120 | AL103: 1280 | AM103: 1280 | AN103: 1600 | AO103: =$W103&"#"&AI103 -> 112#960 | AP103: 112#1120 | AQ103: 112#1120 | AR103: 112#1280 | AS103: 112#1280 | AT103: 112#1600 | AV103: 112 | AW103: 960
W104: 3 | X104: 750 | Y104: 600 | AA104: 900 | AB104: 750 | AD104: 600 | AE104: 900 | AH104: 900 | AI104: 540 | AJ104: 630 | AK104: 630 | AL104: 720 | AM104: 720 | AN104: 900 | AO104: =$W104&"#"&AI104 -> 3#540 | AP104: 3#630 | AQ104: 3#630 | AR104: 3#720 | AS104: 3#720 | AT104: 3#900 | AV104: 3 | AW104: 540
W105: 4 | X105: 750 | Y105: 600 | AA105: 900 | AB105: 750 | AD105: 600 | AE105: 900 | AH105: 900 | AI105: 540 | AJ105: 630 | AK105: 630 | AL105: 720 | AM105: 720 | AN105: 900 | AO105: =$W105&"#"&AI105 -> 4#540 | AP105: 4#630 | AQ105: 4#630 | AR105: 4#720 | AS105: 4#720 | AT105: 4#900 | AV105: 4 | AW105: 540
W106: 5 | X106: 70 | Y106: 56 | AA106: 84 | AB106: 70 | AD106: 56 | AE106: 84 | AH106: 84 | AI106: 50 | AJ106: 58 | AK106: 58 | AL106: 67 | AM106: 67 | AN106: 84 | AO106: =$W106&"#"&AI106 -> 5#50 | AP106: 5#58 | AQ106: 5#58 | AR106: 5#67 | AS106: 5#67 | AT106: 5#84 | AV106: 5 | AW106: 50
W107: 53 | X107: 2400 | Y107: 1800 | AA107: 3000 | AB107: 2400 | AD107: 1800 | AE107: 3000 | AH107: 3000 | AI107: 1800 | AJ107: 2100 | AK107: 2100 | AL107: 2400 | AM107: 2400 | AN107: 3000 | AO107: =$W107&"#"&AI107 -> 53#1800 | AP107: 53#2100 | AQ107: 53#2100 | AR107: 53#2400 | AS107: 53#2400 | AT107: 53#3000 | AV107: 53 | AW107: 1800
W108: 54 | X108: 2400 | Y108: 1800 | AA108: 3000 | AB108: 2400 | AD108: 1800 | AE108: 3000 | AH108: 3000 | AI108: 1800 | AJ108: 2100 | AK108: 2100 | AL108: 2400 | AM108: 2400 | AN108: 3000 | AO108: =$W108&"#"&AI108 -> 54#1800 | AP108: 54#2100 | AQ108: 54#2100 | AR108: 54#2400 | AS108: 54#2400 | AT108: 54#3000 | AV108: 54 | AW108: 1800
W109: 55 | X109: 240 | Y109: 180 | AA109: 300 | AB109: 240 | AD109: 180 | AE109: 300 | AH109: 300 | AI109: 180 | AJ109: 210 | AK109: 210 | AL109: 240 | AM109: 240 | AN109: 300 | AO109: =$W109&"#"&AI109 -> 55#180 | AP109: 55#210 | AQ109: 55#210 | AR109: 55#240 | AS109: 55#240 | AT109: 55#300 | AV109: 55 | AW109: 180
W110: 56 | X110: 960 | Y110: 720 | AA110: 1200 | AB110: 960 | AD110: 720 | AE110: 1200 | AH110: 1200 | AI110: 720 | AJ110: 840 | AK110: 840 | AL110: 960 | AM110: 960 | AN110: 1200 | AO110: =$W110&"#"&AI110 -> 56#720 | AP110: 56#840 | AQ110: 56#840 | AR110: 56#960 | AS110: 56#960 | AT110: 56#1200 | AV110: 56 | AW110: 720
W111: 1 | X111: 1500 | Y111: 1200 | AA111: 1800 | AB111: 1500 | AD111: =Y111 -> 1200 | AE111: =AA111 -> 1800 | AH111: =AE111 -> 1800 | AI111: 1080 | AJ111: 1260 | AK111: 1260 | AL111: 1440 | AM111: 1440 | AN111: 1800 | AO111: =$W111&"#"&AI111 -> 1#1080 | AP111: =$W111&"#"&AJ111 -> 1#1260 | AQ111: =$W111&"#"&AK111 -> 1#1260 | AR111: =$W111&"#"&AL111 -> 1#1440 | AS111: =$W111&"#"&AM111 -> 1#1440 | AT111: =$W111&"#"&AN111 -> 1#1800 | AV111: 1 | AW111: 1080
W112: 2 | X112: 300 | Y112: 240 | AA112: 360 | AB112: 300 | AD112: 240 | AE112: 360 | AH112: 360 | AI112: 216 | AJ112: 252 | AK112: 252 | AL112: 288 | AM112: 288 | AN112: 360 | AO112: 2#216 | AP112: 2#252 | AQ112: 2#252 | AR112: 2#288 | AS112: 2#288 | AT112: 2#360 | AV112: 2 | AW112: 216
W113: 3 | X113: 300 | Y113: 240 | AA113: 360 | AB113: 300 | AD113: 240 | AE113: 360 | AH113: 360 | AI113: 216 | AJ113: 252 | AK113: 252 | AL113: 288 | AM113: 288 | AN113: 360 | AO113: 3#216 | AP113: 3#252 | AQ113: 3#252 | AR113: 3#288 | AS113: 3#288 | AT113: 3#360 | AV113: 3 | AW113: 216
W114: 4 | X114: 300 | Y114: 240 | AA114: 360 | AB114: 300 | AD114: 240 | AE114: 360 | AH114: 360 | AI114: 216 | AJ114: 252 | AK114: 252 | AL114: 288 | AM114: 288 | AN114: 360 | AO114: 4#216 | AP114: 4#252 | AQ114: 4#252 | AR114: 4#288 | AS114: 4#288 | AT114: 4#360 | AV114: 4 | AW114: 216
W115: 55 | X115: 400 | Y115: 300 | AA115: 500 | AB115: 400 | AD115: 300 | AE115: 500 | AH115: 500 | AI115: 300 | AJ115: 350 | AK115: 350 | AL115: 400 | AM115: 400 | AN115: 500 | AO115: 55#300 | AP115: 55#350 | AQ115: 55#350 | AR115: 55#400 | AS115: 55#400 | AT115: 55#500 | AV115: 55 | AW115: 300
W116: 56 | X116: 480 | Y116: 360 | AA116: 600 | AB116: 480 | AD116: 360 | AE116: 600 | AH116: 600 | AI116: 360 | AJ116: 420 | AK116: 420 | AL116: 480 | AM116: 480 | AN116: 600 | AO116: 56#360 | AP116: 56#420 | AQ116: 56#420 | AR116: 56#480 | AS116: 56#480 | AT116: 56#600 | AV116: 56 | AW116: 360
W117: 5 | X117: 70 | Y117: 56 | AA117: 84 | AB117: 70 | AD117: 56 | AE117: 84 | AH117: 84 | AI117: 50 | AJ117: 58 | AK117: 58 | AL117: 67 | AM117: 67 | AN117: 84 | AO117: 5#50 | AP117: 5#58 | AQ117: 5#58 | AR117: 5#67 | AS117: 5#67 | AT117: 5#84 | AV117: 5 | AW117: 50
W118: 53 | X118: 800 | Y118: 600 | AA118: 1000 | AB118: 800 | AD118: 600 | AE118: 1000 | AH118: 1000 | AI118: 600 | AJ118: 700 | AK118: 700 | AL118: 800 | AM118: 800 | AN118: 1000 | AO118: 53#600 | AP118: 53#700 | AQ118: 53#700 | AR118: 53#800 | AS118: 53#800 | AT118: 53#1000 | AV118: 53 | AW118: 600
W119: 55 | X119: 800 | Y119: 600 | AA119: 1000 | AB119: 800 | AD119: 600 | AE119: 1000 | AH119: 1000 | AI119: 600 | AJ119: 700 | AK119: 700 | AL119: 800 | AM119: 800 | AN119: 1000 | AO119: 55#600 | AP119: 55#700 | AQ119: 55#700 | AR119: 55#800 | AS119: 55#800 | AT119: 55#1000 | AV119: 55 | AW119: 600
W120: 56 | X120: 1600 | Y120: 1200 | AA120: 2000 | AB120: 1600 | AD120: 1200 | AE120: 2000 | AH120: 2000 | AI120: 1200 | AJ120: 1400 | AK120: 1400 | AL120: 1600 | AM120: 1600 | AN120: 2000 | AO120: 56#1200 | AP120: 56#1400 | AQ120: 56#1400 | AR120: 56#1600 | AS120: 56#1600 | AT120: 56#2000 | AV120: 56 | AW120: 1200
W121: 51 | X121: 800 | Y121: 600 | AA121: 1000 | AB121: 800 | AD121: 600 | AE121: 1000 | AH121: 1000 | AI121: 600 | AJ121: 700 | AK121: 700 | AL121: 800 | AM121: 800 | AN121: 1000 | AO121: 51#600 | AP121: 51#700 | AQ121: 51#700 | AR121: 51#800 | AS121: 51#800 | AT121: 51#1000 | AV121: 51 | AW121: 600
W122: 62 | X122: 800 | Y122: 600 | AA122: 1000 | AB122: 800 | AD122: 600 | AE122: 1000 | AH122: 1000 | AI122: 600 | AJ122: 700 | AK122: 700 | AL122: 800 | AM122: 800 | AN122: 1000 | AO122: 62#600 | AP122: 62#700 | AQ122: 62#700 | AR122: 62#800 | AS122: 62#800 | AT122: 62#1000 | AV122: 62 | AW122: 600
W123: 54 | X123: 800 | Y123: 600 | AA123: 1000 | AB123: 800 | AD123: 600 | AE123: 1000 | AH123: 1000 | AI123: 600 | AJ123: 700 | AK123: 700 | AL123: 800 | AM123: 800 | AN123: 1000 | AO123: 54#600 | AP123: 54#700 | AQ123: 54#700 | AR123: 54#800 | AS123: 54#800 | AT123: 54#1000 | AV123: 54 | AW123: 600
W124: 60 | X124: 800 | Y124: 600 | AA124: 1000 | AB124: 800 | AD124: 600 | AE124: 1000 | AH124: 1000 | AI124: 600 | AJ124: 700 | AK124: 700 | AL124: 800 | AM124: 800 | AN124: 1000 | AO124: 60#600 | AP124: 60#700 | AQ124: 60#700 | AR124: 60#800 | AS124: 60#800 | AT124: 60#1000 | AV124: 60 | AW124: 600
W125: 57 | X125: 1600 | Y125: 1200 | AA125: 2000 | AB125: 1600 | AD125: 1200 | AE125: 2000 | AH125: 2000 | AI125: 1200 | AJ125: 1400 | AK125: 1400 | AL125: 1600 | AM125: 1600 | AN125: 2000 | AO125: 57#1200 | AP125: 57#1400 | AQ125: 57#1400 | AR125: 57#1600 | AS125: 57#1600 | AT125: 57#2000 | AV125: 57 | AW125: 1200
W126: 58 | X126: 1600 | Y126: 1200 | AA126: 2000 | AB126: 1600 | AD126: 1200 | AE126: 2000 | AH126: 2000 | AI126: 1200 | AJ126: 1400 | AK126: 1400 | AL126: 1600 | AM126: 1600 | AN126: 2000 | AO126: 58#1200 | AP126: 58#1400 | AQ126: 58#1400 | AR126: 58#1600 | AS126: 58#1600 | AT126: 58#2000 | AV126: 58 | AW126: 1200
W127: 52 | X127: 800 | Y127: 600 | AA127: 1000 | AB127: 800 | AD127: 600 | AE127: 1000 | AH127: 1000 | AI127: 600 | AJ127: 700 | AK127: 700 | AL127: 800 | AM127: 800 | AN127: 1000 | AO127: 52#600 | AP127: 52#700 | AQ127: 52#700 | AR127: 52#800 | AS127: 52#800 | AT127: 52#1000 | AV127: 52 | AW127: 600
W128: 61 | X128: 800 | Y128: 600 | AA128: 1000 | AB128: 800 | AD128: 600 | AE128: 1000 | AH128: 1000 | AI128: 600 | AJ128: 700 | AK128: 700 | AL128: 800 | AM128: 800 | AN128: 1000 | AO128: 61#600 | AP128: 61#700 | AQ128: 61#700 | AR128: 61#800 | AS128: 61#800 | AT128: 61#1000 | AV128: 61 | AW128: 600
